Transaction Date,Local Authority Department,Beneficiary,Purpose of Expenditure,Amount (excluding VAT),Non Recoverable VAT,Merchant Category
 01-12-2021,Balance Sheet,Project Centre Ltd,Capital Outlay,1280.00,0.00,COMMERCIAL SUPPLIER 
 01-12-2021,Brighter Futures Director,HOPE 2 HUMANITY,Private Contractors Payment - Other,44604.80,0.00,COMMERCIAL SUPPLIER 
 01-12-2021,Balance Sheet,Fire Door Compliance Consultants Ltd,Capital Outlay,1000.00,0.00,COMMERCIAL SUPPLIER 
 01-12-2021,Adults & Health,Medstar Domiciliary Care Services Ltd,Daycare - Private Contractors Payment,929.20,0.00,COMMERCIAL SUPPLIER 
 01-12-2021,Adults & Health,London Care Plc,Home Care - Private Contractors Payment,309.84,0.00,COMMERCIAL SUPPLIER 
 01-12-2021,Adults & Health,London Care Plc,Daycare - Private Contractors Payment,93.60,0.00,COMMERCIAL SUPPLIER 
 01-12-2021,Adults & Health,London Care Plc,Home Care - Private Contractors Payment,74.88,0.00,COMMERCIAL SUPPLIER 
 01-12-2021,Adults & Health,London Care Plc,Daycare - Private Contractors Payment,74.88,0.00,COMMERCIAL SUPPLIER 
 01-12-2021,Adults & Health,London Care Plc,Home Care - Private Contractors Payment,18.72,0.00,COMMERCIAL SUPPLIER 
 01-12-2021,Adults & Health,London Care Plc,Home Care - Private Contractors Payment,163.80,0.00,COMMERCIAL SUPPLIER 
 01-12-2021,Adults & Health,London Care Plc,Daycare - Private Contractors Payment,74.88,0.00,COMMERCIAL SUPPLIER 
 01-12-2021,Adults & Health,London Care Plc,Home Care - Private Contractors Payment,131.04,0.00,COMMERCIAL SUPPLIER 
 01-12-2021,Adults & Health,London Care Plc,Home Care - Private Contractors Payment,229.32,0.00,COMMERCIAL SUPPLIER 
 01-12-2021,Adults & Health,London Care Plc,Home Care - Private Contractors Payment,294.84,0.00,COMMERCIAL SUPPLIER 
 01-12-2021,Adults & Health,London Care Plc,Daycare - Private Contractors Payment,262.08,0.00,COMMERCIAL SUPPLIER 
 01-12-2021,Adults & Health,London Care Plc,Home Care - Private Contractors Payment,163.80,0.00,COMMERCIAL SUPPLIER 
 01-12-2021,Adults & Health,London Care Plc,Home Care - Private Contractors Payment,131.04,0.00,COMMERCIAL SUPPLIER 
 01-12-2021,Adults & Health,London Care Plc,Home Care - Private Contractors Payment,18.72,0.00,COMMERCIAL SUPPLIER 
 01-12-2021,Adults & Health,London Care Plc,Home Care - Private Contractors Payment,42.12,0.00,COMMERCIAL SUPPLIER 
 01-12-2021,Adults & Health,London Care Plc,Home Care - Private Contractors Payment,163.80,0.00,COMMERCIAL SUPPLIER 
 01-12-2021,Adults & Health,London Care Plc,Home Care - Private Contractors Payment,18.72,0.00,COMMERCIAL SUPPLIER 
 01-12-2021,Adults & Health,London Care Plc,Home Care - Private Contractors Payment,294.84,0.00,COMMERCIAL SUPPLIER 
 01-12-2021,Adults & Health,London Care Plc,Home Care - Private Contractors Payment,18.72,0.00,COMMERCIAL SUPPLIER 
 01-12-2021,Adults & Health,London Care Plc,Respite Care - Private Contractors Payment,37.44,0.00,COMMERCIAL SUPPLIER 
 01-12-2021,Adults & Health,London Care Plc,Home Care - Private Contractors Payment,18.72,0.00,COMMERCIAL SUPPLIER 
 01-12-2021,Adults & Health,London Care Plc,Home Care - Private Contractors Payment,294.84,0.00,COMMERCIAL SUPPLIER 
 01-12-2021,Adults & Health,London Care Plc,Home Care - Private Contractors Payment,98.28,0.00,COMMERCIAL SUPPLIER 
 01-12-2021,Adults & Health,London Care Plc,Daycare - Private Contractors Payment,93.60,0.00,COMMERCIAL SUPPLIER 
 01-12-2021,Adults & Health,London Care Plc,Home Care - Private Contractors Payment,46.80,0.00,COMMERCIAL SUPPLIER 
 01-12-2021,Adults & Health,London Care Plc,Home Care - Private Contractors Payment,229.32,0.00,COMMERCIAL SUPPLIER 
 01-12-2021,Adults & Health,London Care Plc,Home Care - Private Contractors Payment,229.32,0.00,COMMERCIAL SUPPLIER 
 01-12-2021,Adults & Health,London Care Plc,Daycare - Private Contractors Payment,262.08,0.00,COMMERCIAL SUPPLIER 
 01-12-2021,Adults & Health,London Care Plc,Home Care - Private Contractors Payment,262.08,0.00,COMMERCIAL SUPPLIER 
 01-12-2021,Adults & Health,London Care Plc,Home Care - Private Contractors Payment,37.44,0.00,COMMERCIAL SUPPLIER 
 01-12-2021,Adults & Health,London Care Plc,Home Care - Private Contractors Payment,28.08,0.00,COMMERCIAL SUPPLIER 
 01-12-2021,Adults & Health,London Care Plc,Home Care - Private Contractors Payment,98.28,0.00,COMMERCIAL SUPPLIER 
 01-12-2021,Adults & Health,London Care Plc,Home Care - Private Contractors Payment,37.44,0.00,COMMERCIAL SUPPLIER 
 01-12-2021,Adults & Health,London Care Plc,Home Care - Private Contractors Payment,294.84,0.00,COMMERCIAL SUPPLIER 
 01-12-2021,Adults & Health,London Care Plc,Home Care - Private Contractors Payment,98.28,0.00,COMMERCIAL SUPPLIER 
 01-12-2021,Adults & Health,London Care Plc,Home Care - Private Contractors Payment,238.68,0.00,COMMERCIAL SUPPLIER 
 01-12-2021,Adults & Health,London Care Plc,Home Care - Private Contractors Payment,18.72,0.00,COMMERCIAL SUPPLIER 
 01-12-2021,Adults & Health,London Care Plc,Home Care - Private Contractors Payment,294.84,0.00,COMMERCIAL SUPPLIER 
 01-12-2021,Adults & Health,London Care Plc,Home Care - Private Contractors Payment,163.80,0.00,COMMERCIAL SUPPLIER 
 01-12-2021,Adults & Health,London Care Plc,Daycare - Private Contractors Payment,56.16,0.00,COMMERCIAL SUPPLIER 
 01-12-2021,Adults & Health,London Care Plc,Home Care - Private Contractors Payment,294.84,0.00,COMMERCIAL SUPPLIER 
 01-12-2021,Adults & Health,London Care Plc,Home Care - Private Contractors Payment,131.04,0.00,COMMERCIAL SUPPLIER 
 01-12-2021,Adults & Health,London Care Plc,Home Care - Private Contractors Payment,556.92,0.00,COMMERCIAL SUPPLIER 
 01-12-2021,Adults & Health,London Care Plc,Home Care - Private Contractors Payment,196.56,0.00,COMMERCIAL SUPPLIER 
 01-12-2021,Adults & Health,London Care Plc,Home Care - Private Contractors Payment,126.36,0.00,COMMERCIAL SUPPLIER 
 01-12-2021,Adults & Health,London Care Plc,Home Care - Private Contractors Payment,18.72,0.00,COMMERCIAL SUPPLIER 
 01-12-2021,Adults & Health,London Care Plc,Home Care - Private Contractors Payment,149.76,0.00,COMMERCIAL SUPPLIER 
 01-12-2021,Adults & Health,London Care Plc,Home Care - Private Contractors Payment,18.72,0.00,COMMERCIAL SUPPLIER 
 01-12-2021,Adults & Health,London Care Plc,Home Care - Private Contractors Payment,98.28,0.00,COMMERCIAL SUPPLIER 
 01-12-2021,Adults & Health,London Care Plc,Home Care - Private Contractors Payment,131.04,0.00,COMMERCIAL SUPPLIER 
 01-12-2021,Adults & Health,London Care Plc,Daycare - Private Contractors Payment,131.04,0.00,COMMERCIAL SUPPLIER 
 01-12-2021,Adults & Health,London Care Plc,Home Care - Private Contractors Payment,131.04,0.00,COMMERCIAL SUPPLIER 
 01-12-2021,Adults & Health,London Care Plc,Home Care - Private Contractors Payment,112.32,0.00,COMMERCIAL SUPPLIER 
 01-12-2021,Adults & Health,London Care Plc,Home Care - Private Contractors Payment,196.56,0.00,COMMERCIAL SUPPLIER 
 01-12-2021,Adults & Health,London Care Plc,Home Care - Private Contractors Payment,163.80,0.00,COMMERCIAL SUPPLIER 
 01-12-2021,Adults & Health,London Care Plc,Home Care - Private Contractors Payment,192.84,0.00,COMMERCIAL SUPPLIER 
 01-12-2021,Adults & Health,London Care Plc,Home Care - Private Contractors Payment,259.90,0.00,COMMERCIAL SUPPLIER 
 01-12-2021,Adults & Health,London Care Plc,Home Care - Private Contractors Payment,98.28,0.00,COMMERCIAL SUPPLIER 
 01-12-2021,Adults & Health,London Care Plc,Home Care - Private Contractors Payment,381.28,0.00,COMMERCIAL SUPPLIER 
 01-12-2021,Adults & Health,London Care Plc,Home Care - Private Contractors Payment,12.17,0.00,COMMERCIAL SUPPLIER 
 01-12-2021,Adults & Health,London Care Plc,Home Care - Private Contractors Payment,18.72,0.00,COMMERCIAL SUPPLIER 
 01-12-2021,Adults & Health,London Care Plc,Home Care - Private Contractors Payment,37.44,0.00,COMMERCIAL SUPPLIER 
 01-12-2021,Adults & Health,London Care Plc,Home Care - Private Contractors Payment,491.40,0.00,COMMERCIAL SUPPLIER 
 01-12-2021,Adults & Health,London Care Plc,Home Care - Private Contractors Payment,294.84,0.00,COMMERCIAL SUPPLIER 
 01-12-2021,Adults & Health,London Care Plc,Home Care - Private Contractors Payment,163.80,0.00,COMMERCIAL SUPPLIER 
 01-12-2021,Adults & Health,London Care Plc,Daycare - Private Contractors Payment,56.16,0.00,COMMERCIAL SUPPLIER 
 01-12-2021,Adults & Health,London Care Plc,Home Care - Private Contractors Payment,168.48,0.00,COMMERCIAL SUPPLIER 
 01-12-2021,Adults & Health,London Care Plc,Home Care - Private Contractors Payment,136.68,0.00,COMMERCIAL SUPPLIER 
 01-12-2021,Adults & Health,London Care Plc,Home Care - Private Contractors Payment,166.59,0.00,COMMERCIAL SUPPLIER 
 01-12-2021,Adults & Health,London Care Plc,Home Care - Private Contractors Payment,18.72,0.00,COMMERCIAL SUPPLIER 
 01-12-2021,Adults & Health,London Care Plc,Home Care - Private Contractors Payment,211.56,0.00,COMMERCIAL SUPPLIER 
 01-12-2021,Adults & Health,London Care Plc,Home Care - Private Contractors Payment,37.44,0.00,COMMERCIAL SUPPLIER 
 01-12-2021,Adults & Health,London Care Plc,Home Care - Private Contractors Payment,173.78,0.00,COMMERCIAL SUPPLIER 
 01-12-2021,Adults & Health,London Care Plc,Home Care - Private Contractors Payment,18.72,0.00,COMMERCIAL SUPPLIER 
 01-12-2021,Adults & Health,London Care Plc,Home Care - Private Contractors Payment,18.72,0.00,COMMERCIAL SUPPLIER 
 01-12-2021,Adults & Health,London Care Plc,Home Care - Private Contractors Payment,18.72,0.00,COMMERCIAL SUPPLIER 
 01-12-2021,Adults & Health,London Care Plc,Home Care - Private Contractors Payment,18.72,0.00,COMMERCIAL SUPPLIER 
 01-12-2021,Adults & Health,London Care Plc,Home Care - Private Contractors Payment,262.08,0.00,COMMERCIAL SUPPLIER 
 01-12-2021,Adults & Health,London Care Plc,Home Care - Private Contractors Payment,37.44,0.00,COMMERCIAL SUPPLIER 
 01-12-2021,Adults & Health,London Care Plc,Home Care - Private Contractors Payment,37.44,0.00,COMMERCIAL SUPPLIER 
 01-12-2021,Adults & Health,London Care Plc,Daycare - Private Contractors Payment,37.44,0.00,COMMERCIAL SUPPLIER 
 01-12-2021,Adults & Health,London Care Plc,Home Care - Private Contractors Payment,196.56,0.00,COMMERCIAL SUPPLIER 
 01-12-2021,Adults & Health,London Care Plc,Daycare - Private Contractors Payment,37.44,0.00,COMMERCIAL SUPPLIER 
 01-12-2021,Adults & Health,London Care Plc,Home Care - Private Contractors Payment,277.08,0.00,COMMERCIAL SUPPLIER 
 01-12-2021,Adults & Health,London Care Plc,Home Care - Private Contractors Payment,415.58,0.00,COMMERCIAL SUPPLIER 
 01-12-2021,Adults & Health,London Care Plc,Home Care - Private Contractors Payment,18.72,0.00,COMMERCIAL SUPPLIER 
 01-12-2021,Adults & Health,London Care Plc,Daycare - Private Contractors Payment,56.16,0.00,COMMERCIAL SUPPLIER 
 01-12-2021,Adults & Health,London Care Plc,Home Care - Private Contractors Payment,37.44,0.00,COMMERCIAL SUPPLIER 
 01-12-2021,Adults & Health,London Care Plc,Home Care - Private Contractors Payment,46.80,0.00,COMMERCIAL SUPPLIER 
 01-12-2021,Adults & Health,London Care Plc,Daycare - Private Contractors Payment,56.16,0.00,COMMERCIAL SUPPLIER 
 01-12-2021,Adults & Health,London Care Plc,Home Care - Private Contractors Payment,448.34,0.00,COMMERCIAL SUPPLIER 
 01-12-2021,Adults & Health,London Care Plc,Home Care - Private Contractors Payment,18.72,0.00,COMMERCIAL SUPPLIER 
 01-12-2021,Adults & Health,London Care Plc,Home Care - Private Contractors Payment,131.04,0.00,COMMERCIAL SUPPLIER 
 01-12-2021,Adults & Health,London Care Plc,Daycare - Private Contractors Payment,252.72,0.00,COMMERCIAL SUPPLIER 
 01-12-2021,Adults & Health,London Care Plc,Home Care - Private Contractors Payment,56.16,0.00,COMMERCIAL SUPPLIER 
 01-12-2021,Adults & Health,London Care Plc,Home Care - Private Contractors Payment,18.72,0.00,COMMERCIAL SUPPLIER 
 01-12-2021,Adults & Health,London Care Plc,Daycare - Private Contractors Payment,37.44,0.00,COMMERCIAL SUPPLIER 
 01-12-2021,Adults & Health,London Care Plc,Home Care - Private Contractors Payment,163.80,0.00,COMMERCIAL SUPPLIER 
 01-12-2021,Adults & Health,London Care Plc,Home Care - Private Contractors Payment,121.68,0.00,COMMERCIAL SUPPLIER 
 01-12-2021,Adults & Health,London Care Plc,Home Care - Private Contractors Payment,18.72,0.00,COMMERCIAL SUPPLIER 
 01-12-2021,Adults & Health,London Care Plc,Home Care - Private Contractors Payment,262.08,0.00,COMMERCIAL SUPPLIER 
 01-12-2021,Adults & Health,London Care Plc,Home Care - Private Contractors Payment,98.28,0.00,COMMERCIAL SUPPLIER 
 01-12-2021,Adults & Health,London Care Plc,Daycare - Private Contractors Payment,112.32,0.00,COMMERCIAL SUPPLIER 
 01-12-2021,Adults & Health,London Care Plc,Respite Care - Private Contractors Payment,74.88,0.00,COMMERCIAL SUPPLIER 
 01-12-2021,Adults & Health,London Care Plc,Home Care - Private Contractors Payment,56.16,0.00,COMMERCIAL SUPPLIER 
 01-12-2021,Adults & Health,London Care Plc,Daycare - Private Contractors Payment,56.16,0.00,COMMERCIAL SUPPLIER 
 01-12-2021,Adults & Health,London Care Plc,Daycare - Private Contractors Payment,37.44,0.00,COMMERCIAL SUPPLIER 
 01-12-2021,Adults & Health,London Care Plc,Home Care - Private Contractors Payment,163.80,0.00,COMMERCIAL SUPPLIER 
 01-12-2021,Adults & Health,London Care Plc,Home Care - Private Contractors Payment,262.08,0.00,COMMERCIAL SUPPLIER 
 01-12-2021,Adults & Health,London Care Plc,Daycare - Private Contractors Payment,18.72,0.00,COMMERCIAL SUPPLIER 
 01-12-2021,Adults & Health,London Care Plc,Home Care - Private Contractors Payment,18.72,0.00,COMMERCIAL SUPPLIER 
 01-12-2021,Adults & Health,London Care Plc,Home Care - Private Contractors Payment,65.52,0.00,COMMERCIAL SUPPLIER 
 01-12-2021,Adults & Health,London Care Plc,Home Care - Private Contractors Payment,74.88,0.00,COMMERCIAL SUPPLIER 
 01-12-2021,Adults & Health,London Care Plc,Home Care - Private Contractors Payment,18.72,0.00,COMMERCIAL SUPPLIER 
 01-12-2021,Adults & Health,London Care Plc,Home Care - Private Contractors Payment,102.96,0.00,COMMERCIAL SUPPLIER 
 01-12-2021,Adults & Health,London Care Plc,Home Care - Private Contractors Payment,18.72,0.00,COMMERCIAL SUPPLIER 
 01-12-2021,Adults & Health,London Care Plc,Home Care - Private Contractors Payment,244.32,0.00,COMMERCIAL SUPPLIER 
 01-12-2021,Adults & Health,London Care Plc,Home Care - Private Contractors Payment,178.80,0.00,COMMERCIAL SUPPLIER 
 01-12-2021,Adults & Health,London Care Plc,Home Care - Private Contractors Payment,28.08,0.00,COMMERCIAL SUPPLIER 
 01-12-2021,Adults & Health,London Care Plc,Home Care - Private Contractors Payment,93.60,0.00,COMMERCIAL SUPPLIER 
 01-12-2021,Adults & Health,London Care Plc,Daycare - Private Contractors Payment,187.20,0.00,COMMERCIAL SUPPLIER 
 01-12-2021,Adults & Health,London Care Plc,Home Care - Private Contractors Payment,18.72,0.00,COMMERCIAL SUPPLIER 
 01-12-2021,Adults & Health,London Care Plc,Home Care - Private Contractors Payment,131.04,0.00,COMMERCIAL SUPPLIER 
 01-12-2021,Adults & Health,London Care Plc,Home Care - Private Contractors Payment,60.82,0.00,COMMERCIAL SUPPLIER 
 01-12-2021,Adults & Health,London Care Plc,Home Care - Private Contractors Payment,9.36,0.00,COMMERCIAL SUPPLIER 
 01-12-2021,Adults & Health,London Care Plc,Daycare - Private Contractors Payment,28.08,0.00,COMMERCIAL SUPPLIER 
 01-12-2021,Adults & Health,London Care Plc,Home Care - Private Contractors Payment,89.86,0.00,COMMERCIAL SUPPLIER 
 01-12-2021,Adults & Health,London Care Plc,Home Care - Private Contractors Payment,131.04,0.00,COMMERCIAL SUPPLIER 
 01-12-2021,Adults & Health,London Care Plc,Home Care - Private Contractors Payment,28.08,0.00,COMMERCIAL SUPPLIER 
 01-12-2021,Adults & Health,London Care Plc,Home Care - Private Contractors Payment,146.04,0.00,COMMERCIAL SUPPLIER 
 01-12-2021,Adults & Health,London Care Plc,Home Care - Private Contractors Payment,80.52,0.00,COMMERCIAL SUPPLIER 
 01-12-2021,Adults & Health,London Care Plc,Daycare - Private Contractors Payment,37.44,0.00,COMMERCIAL SUPPLIER 
 01-12-2021,Adults & Health,London Care Plc,Home Care - Private Contractors Payment,18.72,0.00,COMMERCIAL SUPPLIER 
 01-12-2021,Adults & Health,London Care Plc,Home Care - Private Contractors Payment,84.24,0.00,COMMERCIAL SUPPLIER 
 01-12-2021,Adults & Health,London Care Plc,Home Care - Private Contractors Payment,28.08,0.00,COMMERCIAL SUPPLIER 
 01-12-2021,Adults & Health,London Care Plc,Home Care - Private Contractors Payment,18.72,0.00,COMMERCIAL SUPPLIER 
 01-12-2021,Adults & Health,London Care Plc,Daycare - Private Contractors Payment,74.88,0.00,COMMERCIAL SUPPLIER 
 01-12-2021,Adults & Health,London Care Plc,Home Care - Private Contractors Payment,79.56,0.00,COMMERCIAL SUPPLIER 
 01-12-2021,Adults & Health,London Care Plc,Home Care - Private Contractors Payment,283.61,0.00,COMMERCIAL SUPPLIER 
 01-12-2021,Adults & Health,London Care Plc,Home Care - Private Contractors Payment,196.56,0.00,COMMERCIAL SUPPLIER 
 01-12-2021,Adults & Health,London Care Plc,Home Care - Private Contractors Payment,18.72,0.00,COMMERCIAL SUPPLIER 
 01-12-2021,Adults & Health,London Care Plc,Home Care - Private Contractors Payment,37.44,0.00,COMMERCIAL SUPPLIER 
 01-12-2021,Adults & Health,London Care Plc,Home Care - Private Contractors Payment,65.52,0.00,COMMERCIAL SUPPLIER 
 01-12-2021,Adults & Health,London Care Plc,Home Care - Private Contractors Payment,65.52,0.00,COMMERCIAL SUPPLIER 
 01-12-2021,Adults & Health,London Care Plc,Home Care - Private Contractors Payment,18.72,0.00,COMMERCIAL SUPPLIER 
 01-12-2021,Adults & Health,London Care Plc,Home Care - Private Contractors Payment,327.60,0.00,COMMERCIAL SUPPLIER 
 01-12-2021,Adults & Health,London Care Plc,Home Care - Private Contractors Payment,163.80,0.00,COMMERCIAL SUPPLIER 
 01-12-2021,Adults & Health,London Care Plc,Home Care - Private Contractors Payment,65.52,0.00,COMMERCIAL SUPPLIER 
 01-12-2021,Adults & Health,London Care Plc,Daycare - Private Contractors Payment,37.44,0.00,COMMERCIAL SUPPLIER 
 01-12-2021,Adults & Health,London Care Plc,Home Care - Private Contractors Payment,149.76,0.00,COMMERCIAL SUPPLIER 
 01-12-2021,Adults & Health,London Care Plc,Home Care - Private Contractors Payment,229.32,0.00,COMMERCIAL SUPPLIER 
 01-12-2021,Adults & Health,London Care Plc,Home Care - Private Contractors Payment,561.60,0.00,COMMERCIAL SUPPLIER 
 01-12-2021,Adults & Health,London Care Plc,Home Care - Private Contractors Payment,229.32,0.00,COMMERCIAL SUPPLIER 
 01-12-2021,Adults & Health,London Care Plc,Home Care - Private Contractors Payment,196.56,0.00,COMMERCIAL SUPPLIER 
 01-12-2021,Adults & Health,London Care Plc,Daycare - Private Contractors Payment,56.16,0.00,COMMERCIAL SUPPLIER 
 01-12-2021,Adults & Health,London Care Plc,Daycare - Private Contractors Payment,252.72,0.00,COMMERCIAL SUPPLIER 
 01-12-2021,Adults & Health,London Care Plc,Home Care - Private Contractors Payment,163.80,0.00,COMMERCIAL SUPPLIER 
 01-12-2021,Adults & Health,London Care Plc,Home Care - Private Contractors Payment,140.40,0.00,COMMERCIAL SUPPLIER 
 01-12-2021,Adults & Health,London Care Plc,Home Care - Private Contractors Payment,229.32,0.00,COMMERCIAL SUPPLIER 
 01-12-2021,Adults & Health,London Care Plc,Home Care - Private Contractors Payment,107.02,0.00,COMMERCIAL SUPPLIER 
 01-12-2021,Adults & Health,London Care Plc,Home Care - Private Contractors Payment,93.60,0.00,COMMERCIAL SUPPLIER 
 01-12-2021,Adults & Health,London Care Plc,Home Care - Private Contractors Payment,28.69,0.00,COMMERCIAL SUPPLIER 
 01-12-2021,Adults & Health,London Care Plc,Home Care - Private Contractors Payment,131.04,0.00,COMMERCIAL SUPPLIER 
 01-12-2021,Adults & Health,London Care Plc,Home Care - Private Contractors Payment,28.08,0.00,COMMERCIAL SUPPLIER 
 01-12-2021,Adults & Health,London Care Plc,Home Care - Private Contractors Payment,308.88,0.00,COMMERCIAL SUPPLIER 
 01-12-2021,Adults & Health,London Care Plc,Daycare - Private Contractors Payment,110.45,0.00,COMMERCIAL SUPPLIER 
 01-12-2021,Adults & Health,London Care Plc,Daycare - Private Contractors Payment,18.72,0.00,COMMERCIAL SUPPLIER 
 01-12-2021,Adults & Health,London Care Plc,Home Care - Private Contractors Payment,98.28,0.00,COMMERCIAL SUPPLIER 
 01-12-2021,Adults & Health,London Care Plc,Home Care - Private Contractors Payment,18.72,0.00,COMMERCIAL SUPPLIER 
 01-12-2021,Adults & Health,London Care Plc,Home Care - Private Contractors Payment,42.12,0.00,COMMERCIAL SUPPLIER 
 01-12-2021,Adults & Health,London Care Plc,Home Care - Private Contractors Payment,163.80,0.00,COMMERCIAL SUPPLIER 
 01-12-2021,Adults & Health,London Care Plc,Home Care - Private Contractors Payment,196.56,0.00,COMMERCIAL SUPPLIER 
 01-12-2021,Adults & Health,London Care Plc,Home Care - Private Contractors Payment,121.68,0.00,COMMERCIAL SUPPLIER 
 01-12-2021,Adults & Health,London Care Plc,Home Care - Private Contractors Payment,65.52,0.00,COMMERCIAL SUPPLIER 
 01-12-2021,Adults & Health,London Care Plc,Home Care - Private Contractors Payment,280.80,0.00,COMMERCIAL SUPPLIER 
 01-12-2021,Adults & Health,London Care Plc,Home Care - Private Contractors Payment,146.04,0.00,COMMERCIAL SUPPLIER 
 01-12-2021,Adults & Health,London Care Plc,Home Care - Private Contractors Payment,56.47,0.00,COMMERCIAL SUPPLIER 
 01-12-2021,Adults & Health,London Care Plc,Home Care - Private Contractors Payment,18.72,0.00,COMMERCIAL SUPPLIER 
 01-12-2021,Adults & Health,London Care Plc,Home Care - Private Contractors Payment,37.44,0.00,COMMERCIAL SUPPLIER 
 01-12-2021,Adults & Health,London Care Plc,Home Care - Private Contractors Payment,84.24,0.00,COMMERCIAL SUPPLIER 
 01-12-2021,Adults & Health,London Care Plc,Home Care - Private Contractors Payment,112.32,0.00,COMMERCIAL SUPPLIER 
 01-12-2021,Adults & Health,London Care Plc,Home Care - Private Contractors Payment,18.72,0.00,COMMERCIAL SUPPLIER 
 01-12-2021,Adults & Health,London Care Plc,Home Care - Private Contractors Payment,28.08,0.00,COMMERCIAL SUPPLIER 
 01-12-2021,Adults & Health,London Care Plc,Home Care - Private Contractors Payment,149.76,0.00,COMMERCIAL SUPPLIER 
 01-12-2021,Adults & Health,London Care Plc,Home Care - Private Contractors Payment,18.72,0.00,COMMERCIAL SUPPLIER 
 01-12-2021,Adults & Health,London Care Plc,Daycare - Private Contractors Payment,131.04,0.00,COMMERCIAL SUPPLIER 
 01-12-2021,Adults & Health,London Care Plc,Home Care - Private Contractors Payment,18.72,0.00,COMMERCIAL SUPPLIER 
 01-12-2021,Adults & Health,London Care Plc,Home Care - Private Contractors Payment,163.80,0.00,COMMERCIAL SUPPLIER 
 01-12-2021,Adults & Health,London Care Plc,Home Care - Private Contractors Payment,294.84,0.00,COMMERCIAL SUPPLIER 
 01-12-2021,Adults & Health,London Care Plc,Home Care - Private Contractors Payment,121.68,0.00,COMMERCIAL SUPPLIER 
 01-12-2021,Adults & Health,London Care Plc,Home Care - Private Contractors Payment,56.16,0.00,COMMERCIAL SUPPLIER 
 01-12-2021,Adults & Health,London Care Plc,Home Care - Private Contractors Payment,98.28,0.00,COMMERCIAL SUPPLIER 
 01-12-2021,Adults & Health,London Care Plc,Home Care - Private Contractors Payment,79.56,0.00,COMMERCIAL SUPPLIER 
 01-12-2021,Adults & Health,London Care Plc,Home Care - Private Contractors Payment,93.60,0.00,COMMERCIAL SUPPLIER 
 01-12-2021,Adults & Health,London Care Plc,Home Care - Private Contractors Payment,14.04,0.00,COMMERCIAL SUPPLIER 
 01-12-2021,Adults & Health,London Care Plc,Home Care - Private Contractors Payment,65.52,0.00,COMMERCIAL SUPPLIER 
 01-12-2021,Adults & Health,London Care Plc,Respite Care - Private Contractors Payment,36.50,0.00,COMMERCIAL SUPPLIER 
 01-12-2021,Adults & Health,London Care Plc,Home Care - Private Contractors Payment,46.80,0.00,COMMERCIAL SUPPLIER 
 01-12-2021,Adults & Health,London Care Plc,Daycare - Private Contractors Payment,74.88,0.00,COMMERCIAL SUPPLIER 
 01-12-2021,Adults & Health,London Care Plc,Home Care - Private Contractors Payment,211.56,0.00,COMMERCIAL SUPPLIER 
 01-12-2021,Adults & Health,London Care Plc,Home Care - Private Contractors Payment,244.32,0.00,COMMERCIAL SUPPLIER 
 01-12-2021,Adults & Health,London Care Plc,Home Care - Private Contractors Payment,135.70,0.00,COMMERCIAL SUPPLIER 
 01-12-2021,Adults & Health,London Care Plc,Home Care - Private Contractors Payment,244.32,0.00,COMMERCIAL SUPPLIER 
 01-12-2021,Adults & Health,London Care Plc,Home Care - Private Contractors Payment,18.72,0.00,COMMERCIAL SUPPLIER 
 01-12-2021,Adults & Health,London Care Plc,Home Care - Private Contractors Payment,18.72,0.00,COMMERCIAL SUPPLIER 
 01-12-2021,Adults & Health,London Care Plc,Home Care - Private Contractors Payment,101.40,0.00,COMMERCIAL SUPPLIER 
 01-12-2021,Adults & Health,London Care Plc,Daycare - Private Contractors Payment,93.60,0.00,COMMERCIAL SUPPLIER 
 01-12-2021,Adults & Health,London Care Plc,Home Care - Private Contractors Payment,40.87,0.00,COMMERCIAL SUPPLIER 
 01-12-2021,Adults & Health,London Care Plc,Home Care - Private Contractors Payment,524.16,0.00,COMMERCIAL SUPPLIER 
 01-12-2021,Adults & Health,London Care Plc,Home Care - Private Contractors Payment,163.80,0.00,COMMERCIAL SUPPLIER 
 01-12-2021,Adults & Health,London Care Plc,Home Care - Private Contractors Payment,56.16,0.00,COMMERCIAL SUPPLIER 
 01-12-2021,Adults & Health,London Care Plc,Home Care - Private Contractors Payment,121.68,0.00,COMMERCIAL SUPPLIER 
 01-12-2021,Adults & Health,London Care Plc,Home Care - Private Contractors Payment,112.32,0.00,COMMERCIAL SUPPLIER 
 01-12-2021,Adults & Health,London Care Plc,Home Care - Private Contractors Payment,177.84,0.00,COMMERCIAL SUPPLIER 
 01-12-2021,Adults & Health,London Care Plc,Daycare - Private Contractors Payment,112.32,0.00,COMMERCIAL SUPPLIER 
 01-12-2021,Adults & Health,London Care Plc,Home Care - Private Contractors Payment,28.08,0.00,COMMERCIAL SUPPLIER 
 01-12-2021,Adults & Health,London Care Plc,Home Care - Private Contractors Payment,23.40,0.00,COMMERCIAL SUPPLIER 
 01-12-2021,Adults & Health,London Care Plc,Home Care - Private Contractors Payment,425.88,0.00,COMMERCIAL SUPPLIER 
 01-12-2021,Adults & Health,London Care Plc,Daycare - Private Contractors Payment,37.44,0.00,COMMERCIAL SUPPLIER 
 01-12-2021,Adults & Health,London Care Plc,Daycare - Private Contractors Payment,56.16,0.00,COMMERCIAL SUPPLIER 
 01-12-2021,Adults & Health,London Care Plc,Daycare - Private Contractors Payment,131.04,0.00,COMMERCIAL SUPPLIER 
 01-12-2021,Adults & Health,London Care Plc,Home Care - Private Contractors Payment,18.72,0.00,COMMERCIAL SUPPLIER 
 01-12-2021,Adults & Health,London Care Plc,Daycare - Private Contractors Payment,56.16,0.00,COMMERCIAL SUPPLIER 
 01-12-2021,Adults & Health,London Care Plc,Home Care - Private Contractors Payment,229.32,0.00,COMMERCIAL SUPPLIER 
 01-12-2021,Adults & Health,London Care Plc,Daycare - Private Contractors Payment,37.44,0.00,COMMERCIAL SUPPLIER 
 01-12-2021,Adults & Health,London Care Plc,Home Care - Private Contractors Payment,290.16,0.00,COMMERCIAL SUPPLIER 
 01-12-2021,Adults & Health,London Care Plc,Home Care - Private Contractors Payment,262.08,0.00,COMMERCIAL SUPPLIER 
 01-12-2021,Adults & Health,London Care Plc,Home Care - Private Contractors Payment,168.48,0.00,COMMERCIAL SUPPLIER 
 01-12-2021,Adults & Health,London Care Plc,Home Care - Private Contractors Payment,229.32,0.00,COMMERCIAL SUPPLIER 
 01-12-2021,Adults & Health,London Care Plc,Daycare - Private Contractors Payment,18.72,0.00,COMMERCIAL SUPPLIER 
 01-12-2021,Adults & Health,London Care Plc,Home Care - Private Contractors Payment,37.44,0.00,COMMERCIAL SUPPLIER 
 01-12-2021,Adults & Health,London Care Plc,Daycare - Private Contractors Payment,74.88,0.00,COMMERCIAL SUPPLIER 
 01-12-2021,Adults & Health,London Care Plc,Home Care - Private Contractors Payment,229.32,0.00,COMMERCIAL SUPPLIER 
 01-12-2021,Adults & Health,London Care Plc,Home Care - Private Contractors Payment,18.72,0.00,COMMERCIAL SUPPLIER 
 01-12-2021,Adults & Health,London Care Plc,Home Care - Private Contractors Payment,65.52,0.00,COMMERCIAL SUPPLIER 
 01-12-2021,Adults & Health,London Care Plc,Home Care - Private Contractors Payment,211.56,0.00,COMMERCIAL SUPPLIER 
 01-12-2021,Adults & Health,London Care Plc,Home Care - Private Contractors Payment,218.59,0.00,COMMERCIAL SUPPLIER 
 01-12-2021,Adults & Health,London Care Plc,Home Care - Private Contractors Payment,340.70,0.00,COMMERCIAL SUPPLIER 
 01-12-2021,Adults & Health,London Care Plc,Home Care - Private Contractors Payment,211.56,0.00,COMMERCIAL SUPPLIER 
 01-12-2021,Adults & Health,London Care Plc,Home Care - Private Contractors Payment,277.08,0.00,COMMERCIAL SUPPLIER 
 01-12-2021,Adults & Health,London Care Plc,Home Care - Private Contractors Payment,72.70,0.00,COMMERCIAL SUPPLIER 
 01-12-2021,Adults & Health,London Care Plc,Home Care - Private Contractors Payment,229.32,0.00,COMMERCIAL SUPPLIER 
 01-12-2021,Adults & Health,London Care Plc,Home Care - Private Contractors Payment,37.44,0.00,COMMERCIAL SUPPLIER 
 01-12-2021,Adults & Health,London Care Plc,Daycare - Private Contractors Payment,28.08,0.00,COMMERCIAL SUPPLIER 
 01-12-2021,Adults & Health,London Care Plc,Home Care - Private Contractors Payment,74.88,0.00,COMMERCIAL SUPPLIER 
 01-12-2021,Adults & Health,London Care Plc,Home Care - Private Contractors Payment,327.60,0.00,COMMERCIAL SUPPLIER 
 01-12-2021,Adults & Health,London Care Plc,Home Care - Private Contractors Payment,163.80,0.00,COMMERCIAL SUPPLIER 
 01-12-2021,Adults & Health,London Care Plc,Daycare - Private Contractors Payment,74.88,0.00,COMMERCIAL SUPPLIER 
 01-12-2021,Adults & Health,London Care Plc,Home Care - Private Contractors Payment,37.44,0.00,COMMERCIAL SUPPLIER 
 01-12-2021,Adults & Health,London Care Plc,Daycare - Private Contractors Payment,18.72,0.00,COMMERCIAL SUPPLIER 
 01-12-2021,Adults & Health,London Care Plc,Home Care - Private Contractors Payment,18.72,0.00,COMMERCIAL SUPPLIER 
 01-12-2021,Adults & Health,London Care Plc,Home Care - Private Contractors Payment,18.72,0.00,COMMERCIAL SUPPLIER 
 01-12-2021,Adults & Health,London Care Plc,Daycare - Private Contractors Payment,18.72,0.00,COMMERCIAL SUPPLIER 
 01-12-2021,Adults & Health,London Care Plc,Home Care - Private Contractors Payment,210.60,0.00,COMMERCIAL SUPPLIER 
 01-12-2021,Adults & Health,London Care Plc,Home Care - Private Contractors Payment,294.84,0.00,COMMERCIAL SUPPLIER 
 01-12-2021,Adults & Health,London Care Plc,Home Care - Private Contractors Payment,93.60,0.00,COMMERCIAL SUPPLIER 
 01-12-2021,Adults & Health,London Care Plc,Home Care - Private Contractors Payment,0.31,0.00,COMMERCIAL SUPPLIER 
 01-12-2021,Adults & Health,London Care Plc,Daycare - Private Contractors Payment,93.60,0.00,COMMERCIAL SUPPLIER 
 01-12-2021,Adults & Health,London Care Plc,Daycare - Private Contractors Payment,37.44,0.00,COMMERCIAL SUPPLIER 
 01-12-2021,Adults & Health,London Care Plc,Home Care - Private Contractors Payment,290.16,0.00,COMMERCIAL SUPPLIER 
 01-12-2021,Adults & Health,London Care Plc,Daycare - Private Contractors Payment,74.88,0.00,COMMERCIAL SUPPLIER 
 01-12-2021,Adults & Health,London Care Plc,Home Care - Private Contractors Payment,229.32,0.00,COMMERCIAL SUPPLIER 
 01-12-2021,Adults & Health,London Care Plc,Home Care - Private Contractors Payment,196.56,0.00,COMMERCIAL SUPPLIER 
 01-12-2021,Adults & Health,London Care Plc,Home Care - Private Contractors Payment,28.08,0.00,COMMERCIAL SUPPLIER 
 01-12-2021,Adults & Health,London Care Plc,Home Care - Private Contractors Payment,42.12,0.00,COMMERCIAL SUPPLIER 
 01-12-2021,Adults & Health,London Care Plc,Daycare - Private Contractors Payment,37.44,0.00,COMMERCIAL SUPPLIER 
 01-12-2021,Adults & Health,London Care Plc,Daycare - Private Contractors Payment,93.60,0.00,COMMERCIAL SUPPLIER 
 01-12-2021,Adults & Health,London Care Plc,Home Care - Private Contractors Payment,425.88,0.00,COMMERCIAL SUPPLIER 
 01-12-2021,Adults & Health,London Care Plc,Home Care - Private Contractors Payment,163.80,0.00,COMMERCIAL SUPPLIER 
 01-12-2021,Adults & Health,London Care Plc,Home Care - Private Contractors Payment,93.60,0.00,COMMERCIAL SUPPLIER 
 01-12-2021,Adults & Health,London Care Plc,Home Care - Private Contractors Payment,93.60,0.00,COMMERCIAL SUPPLIER 
 01-12-2021,Adults & Health,London Care Plc,Home Care - Private Contractors Payment,294.84,0.00,COMMERCIAL SUPPLIER 
 01-12-2021,Adults & Health,London Care Plc,Home Care - Private Contractors Payment,327.60,0.00,COMMERCIAL SUPPLIER 
 01-12-2021,Adults & Health,London Care Plc,Home Care - Private Contractors Payment,131.04,0.00,COMMERCIAL SUPPLIER 
 01-12-2021,Adults & Health,London Care Plc,Home Care - Private Contractors Payment,121.68,0.00,COMMERCIAL SUPPLIER 
 01-12-2021,Adults & Health,London Care Plc,Home Care - Private Contractors Payment,9.36,0.00,COMMERCIAL SUPPLIER 
 01-12-2021,Adults & Health,London Care Plc,Home Care - Private Contractors Payment,168.48,0.00,COMMERCIAL SUPPLIER 
 01-12-2021,Adults & Health,London Care Plc,Daycare - Private Contractors Payment,74.88,0.00,COMMERCIAL SUPPLIER 
 01-12-2021,Adults & Health,London Care Plc,Home Care - Private Contractors Payment,244.32,0.00,COMMERCIAL SUPPLIER 
 01-12-2021,Adults & Health,London Care Plc,Daycare - Private Contractors Payment,224.03,0.00,COMMERCIAL SUPPLIER 
 01-12-2021,Adults & Health,London Care Plc,Home Care - Private Contractors Payment,37.44,0.00,COMMERCIAL SUPPLIER 
 01-12-2021,Adults & Health,London Care Plc,Daycare - Private Contractors Payment,112.32,0.00,COMMERCIAL SUPPLIER 
 01-12-2021,Adults & Health,London Care Plc,Home Care - Private Contractors Payment,112.32,0.00,COMMERCIAL SUPPLIER 
 01-12-2021,Adults & Health,London Care Plc,Home Care - Private Contractors Payment,168.48,0.00,COMMERCIAL SUPPLIER 
 01-12-2021,Adults & Health,London Care Plc,Home Care - Private Contractors Payment,107.64,0.00,COMMERCIAL SUPPLIER 
 01-12-2021,Adults & Health,London Care Plc,Home Care - Private Contractors Payment,18.72,0.00,COMMERCIAL SUPPLIER 
 01-12-2021,Adults & Health,London Care Plc,Home Care - Private Contractors Payment,18.72,0.00,COMMERCIAL SUPPLIER 
 01-12-2021,Adults & Health,London Care Plc,Respite Care - Private Contractors Payment,80.18,0.00,COMMERCIAL SUPPLIER 
 01-12-2021,Adults & Health,London Care Plc,Home Care - Private Contractors Payment,68.31,0.00,COMMERCIAL SUPPLIER 
 01-12-2021,Adults & Health,London Care Plc,Home Care - Private Contractors Payment,28.08,0.00,COMMERCIAL SUPPLIER 
 01-12-2021,Adults & Health,London Care Plc,Home Care - Private Contractors Payment,18.72,0.00,COMMERCIAL SUPPLIER 
 01-12-2021,Adults & Health,London Care Plc,Home Care - Private Contractors Payment,238.68,0.00,COMMERCIAL SUPPLIER 
 01-12-2021,Adults & Health,London Care Plc,Home Care - Private Contractors Payment,327.60,0.00,COMMERCIAL SUPPLIER 
 01-12-2021,Adults & Health,London Care Plc,Respite Care - Private Contractors Payment,224.64,0.00,COMMERCIAL SUPPLIER 
 01-12-2021,Adults & Health,London Care Plc,Home Care - Private Contractors Payment,196.56,0.00,COMMERCIAL SUPPLIER 
 01-12-2021,Adults & Health,London Care Plc,Daycare - Private Contractors Payment,37.44,0.00,COMMERCIAL SUPPLIER 
 01-12-2021,Adults & Health,London Care Plc,Daycare - Private Contractors Payment,18.72,0.00,COMMERCIAL SUPPLIER 
 01-12-2021,Adults & Health,London Care Plc,Home Care - Private Contractors Payment,42.12,0.00,COMMERCIAL SUPPLIER 
 01-12-2021,Adults & Health,London Care Plc,Daycare - Private Contractors Payment,56.16,0.00,COMMERCIAL SUPPLIER 
 01-12-2021,Adults & Health,London Care Plc,Home Care - Private Contractors Payment,18.72,0.00,COMMERCIAL SUPPLIER 
 01-12-2021,Adults & Health,London Care Plc,Daycare - Private Contractors Payment,56.16,0.00,COMMERCIAL SUPPLIER 
 01-12-2021,Adults & Health,London Care Plc,Home Care - Private Contractors Payment,37.44,0.00,COMMERCIAL SUPPLIER 
 01-12-2021,Adults & Health,London Care Plc,Home Care - Private Contractors Payment,18.72,0.00,COMMERCIAL SUPPLIER 
 01-12-2021,Adults & Health,London Care Plc,Home Care - Private Contractors Payment,229.32,0.00,COMMERCIAL SUPPLIER 
 01-12-2021,Adults & Health,London Care Plc,Home Care - Private Contractors Payment,56.16,0.00,COMMERCIAL SUPPLIER 
 01-12-2021,Adults & Health,London Care Plc,Daycare - Private Contractors Payment,37.44,0.00,COMMERCIAL SUPPLIER 
 01-12-2021,Adults & Health,London Care Plc,Home Care - Private Contractors Payment,196.56,0.00,COMMERCIAL SUPPLIER 
 01-12-2021,Adults & Health,London Care Plc,Home Care - Private Contractors Payment,98.28,0.00,COMMERCIAL SUPPLIER 
 01-12-2021,Adults & Health,London Care Plc,Home Care - Private Contractors Payment,18.72,0.00,COMMERCIAL SUPPLIER 
 01-12-2021,Adults & Health,London Care Plc,Daycare - Private Contractors Payment,74.88,0.00,COMMERCIAL SUPPLIER 
 01-12-2021,Adults & Health,London Care Plc,Home Care - Private Contractors Payment,98.28,0.00,COMMERCIAL SUPPLIER 
 01-12-2021,Adults & Health,London Care Plc,Home Care - Private Contractors Payment,28.08,0.00,COMMERCIAL SUPPLIER 
 01-12-2021,Adults & Health,London Care Plc,Home Care - Private Contractors Payment,163.80,0.00,COMMERCIAL SUPPLIER 
 01-12-2021,Adults & Health,London Care Plc,Daycare - Private Contractors Payment,112.32,0.00,COMMERCIAL SUPPLIER 
 01-12-2021,Adults & Health,London Care Plc,Home Care - Private Contractors Payment,425.88,0.00,COMMERCIAL SUPPLIER 
 01-12-2021,Adults & Health,London Care Plc,Daycare - Private Contractors Payment,37.44,0.00,COMMERCIAL SUPPLIER 
 01-12-2021,Adults & Health,London Care Plc,Home Care - Private Contractors Payment,163.80,0.00,COMMERCIAL SUPPLIER 
 01-12-2021,Adults & Health,London Care Plc,Home Care - Private Contractors Payment,42.12,0.00,COMMERCIAL SUPPLIER 
 01-12-2021,Adults & Health,London Care Plc,Home Care - Private Contractors Payment,28.08,0.00,COMMERCIAL SUPPLIER 
 01-12-2021,Adults & Health,London Care Plc,Home Care - Private Contractors Payment,229.32,0.00,COMMERCIAL SUPPLIER 
 01-12-2021,Adults & Health,London Care Plc,Home Care - Private Contractors Payment,327.60,0.00,COMMERCIAL SUPPLIER 
 01-12-2021,Adults & Health,London Care Plc,Home Care - Private Contractors Payment,141.36,0.00,COMMERCIAL SUPPLIER 
 01-12-2021,Adults & Health,London Care Plc,Home Care - Private Contractors Payment,146.04,0.00,COMMERCIAL SUPPLIER 
 01-12-2021,Adults & Health,London Care Plc,Home Care - Private Contractors Payment,163.80,0.00,COMMERCIAL SUPPLIER 
 01-12-2021,Adults & Health,London Care Plc,Daycare - Private Contractors Payment,37.44,0.00,COMMERCIAL SUPPLIER 
 01-12-2021,Adults & Health,London Care Plc,Home Care - Private Contractors Payment,113.28,0.00,COMMERCIAL SUPPLIER 
 01-12-2021,Adults & Health,London Care Plc,Daycare - Private Contractors Payment,74.88,0.00,COMMERCIAL SUPPLIER 
 01-12-2021,Adults & Health,London Care Plc,Daycare - Private Contractors Payment,112.32,0.00,COMMERCIAL SUPPLIER 
 01-12-2021,Adults & Health,London Care Plc,Home Care - Private Contractors Payment,37.75,0.00,COMMERCIAL SUPPLIER 
 01-12-2021,Adults & Health,London Care Plc,Home Care - Private Contractors Payment,37.44,0.00,COMMERCIAL SUPPLIER 
 01-12-2021,Adults & Health,London Care Plc,Home Care - Private Contractors Payment,308.88,0.00,COMMERCIAL SUPPLIER 
 01-12-2021,Adults & Health,London Care Plc,Home Care - Private Contractors Payment,28.08,0.00,COMMERCIAL SUPPLIER 
 01-12-2021,Adults & Health,London Care Plc,Home Care - Private Contractors Payment,65.52,0.00,COMMERCIAL SUPPLIER 
 01-12-2021,Adults & Health,London Care Plc,Home Care - Private Contractors Payment,131.04,0.00,COMMERCIAL SUPPLIER 
 01-12-2021,Adults & Health,London Care Plc,Home Care - Private Contractors Payment,327.60,0.00,COMMERCIAL SUPPLIER 
 01-12-2021,Adults & Health,London Care Plc,Home Care - Private Contractors Payment,196.56,0.00,COMMERCIAL SUPPLIER 
 01-12-2021,Adults & Health,London Care Plc,Home Care - Private Contractors Payment,18.72,0.00,COMMERCIAL SUPPLIER 
 01-12-2021,Adults & Health,London Care Plc,Home Care - Private Contractors Payment,16.23,0.00,COMMERCIAL SUPPLIER 
 01-12-2021,Adults & Health,London Care Plc,Home Care - Private Contractors Payment,42.12,0.00,COMMERCIAL SUPPLIER 
 01-12-2021,Adults & Health,London Care Plc,Home Care - Private Contractors Payment,74.88,0.00,COMMERCIAL SUPPLIER 
 01-12-2021,Adults & Health,London Care Plc,Daycare - Private Contractors Payment,74.88,0.00,COMMERCIAL SUPPLIER 
 01-12-2021,Adults & Health,London Care Plc,Home Care - Private Contractors Payment,65.52,0.00,COMMERCIAL SUPPLIER 
 01-12-2021,Adults & Health,London Care Plc,Home Care - Private Contractors Payment,42.12,0.00,COMMERCIAL SUPPLIER 
 01-12-2021,Adults & Health,London Care Plc,Home Care - Private Contractors Payment,524.16,0.00,COMMERCIAL SUPPLIER 
 01-12-2021,Adults & Health,London Care Plc,Home Care - Private Contractors Payment,168.48,0.00,COMMERCIAL SUPPLIER 
 01-12-2021,Adults & Health,London Care Plc,Home Care - Private Contractors Payment,140.40,0.00,COMMERCIAL SUPPLIER 
 01-12-2021,Adults & Health,London Care Plc,Home Care - Private Contractors Payment,131.04,0.00,COMMERCIAL SUPPLIER 
 01-12-2021,Adults & Health,London Care Plc,Home Care - Private Contractors Payment,196.56,0.00,COMMERCIAL SUPPLIER 
 01-12-2021,Adults & Health,London Care Plc,Home Care - Private Contractors Payment,327.60,0.00,COMMERCIAL SUPPLIER 
 01-12-2021,Adults & Health,London Care Plc,Respite Care - Private Contractors Payment,93.60,0.00,COMMERCIAL SUPPLIER 
 01-12-2021,Adults & Health,London Care Plc,Home Care - Private Contractors Payment,163.80,0.00,COMMERCIAL SUPPLIER 
 01-12-2021,Adults & Health,London Care Plc,Daycare - Private Contractors Payment,28.08,0.00,COMMERCIAL SUPPLIER 
 01-12-2021,Adults & Health,London Care Plc,Home Care - Private Contractors Payment,93.60,0.00,COMMERCIAL SUPPLIER 
 01-12-2021,Adults & Health,London Care Plc,Daycare - Private Contractors Payment,56.16,0.00,COMMERCIAL SUPPLIER 
 01-12-2021,Adults & Health,London Care Plc,Home Care - Private Contractors Payment,98.28,0.00,COMMERCIAL SUPPLIER 
 01-12-2021,Adults & Health,London Care Plc,Daycare - Private Contractors Payment,93.60,0.00,COMMERCIAL SUPPLIER 
 01-12-2021,Adults & Health,London Care Plc,Home Care - Private Contractors Payment,18.72,0.00,COMMERCIAL SUPPLIER 
 01-12-2021,Adults & Health,London Care Plc,Home Care - Private Contractors Payment,37.44,0.00,COMMERCIAL SUPPLIER 
 01-12-2021,Adults & Health,London Care Plc,Home Care - Private Contractors Payment,93.60,0.00,COMMERCIAL SUPPLIER 
 01-12-2021,Adults & Health,London Care Plc,Home Care - Private Contractors Payment,163.80,0.00,COMMERCIAL SUPPLIER 
 01-12-2021,Adults & Health,London Care Plc,Home Care - Private Contractors Payment,229.32,0.00,COMMERCIAL SUPPLIER 
 01-12-2021,Adults & Health,London Care Plc,Home Care - Private Contractors Payment,65.52,0.00,COMMERCIAL SUPPLIER 
 01-12-2021,Adults & Health,London Care Plc,Respite Care - Private Contractors Payment,37.44,0.00,COMMERCIAL SUPPLIER 
 01-12-2021,Adults & Health,London Care Plc,Home Care - Private Contractors Payment,196.56,0.00,COMMERCIAL SUPPLIER 
 01-12-2021,Adults & Health,London Care Plc,Daycare - Private Contractors Payment,74.88,0.00,COMMERCIAL SUPPLIER 
 01-12-2021,Adults & Health,London Care Plc,Home Care - Private Contractors Payment,360.36,0.00,COMMERCIAL SUPPLIER 
 01-12-2021,Adults & Health,London Care Plc,Home Care - Private Contractors Payment,49.30,0.00,COMMERCIAL SUPPLIER 
 01-12-2021,Adults & Health,London Care Plc,Home Care - Private Contractors Payment,238.68,0.00,COMMERCIAL SUPPLIER 
 01-12-2021,Adults & Health,London Care Plc,Home Care - Private Contractors Payment,88.92,0.00,COMMERCIAL SUPPLIER 
 01-12-2021,Adults & Health,London Care Plc,Home Care - Private Contractors Payment,458.64,0.00,COMMERCIAL SUPPLIER 
 01-12-2021,Adults & Health,London Care Plc,Home Care - Private Contractors Payment,277.08,0.00,COMMERCIAL SUPPLIER 
 01-12-2021,Adults & Health,London Care Plc,Home Care - Private Contractors Payment,18.72,0.00,COMMERCIAL SUPPLIER 
 01-12-2021,Adults & Health,London Care Plc,Home Care - Private Contractors Payment,18.72,0.00,COMMERCIAL SUPPLIER 
 01-12-2021,Adults & Health,London Care Plc,Home Care - Private Contractors Payment,196.56,0.00,COMMERCIAL SUPPLIER 
 01-12-2021,Adults & Health,London Care Plc,Home Care - Private Contractors Payment,22.77,0.00,COMMERCIAL SUPPLIER 
 01-12-2021,Adults & Health,London Care Plc,Home Care - Private Contractors Payment,163.80,0.00,COMMERCIAL SUPPLIER 
 01-12-2021,Adults & Health,London Care Plc,Daycare - Private Contractors Payment,18.72,0.00,COMMERCIAL SUPPLIER 
 01-12-2021,Adults & Health,London Care Plc,Home Care - Private Contractors Payment,163.80,0.00,COMMERCIAL SUPPLIER 
 01-12-2021,Adults & Health,London Care Plc,Home Care - Private Contractors Payment,28.08,0.00,COMMERCIAL SUPPLIER 
 01-12-2021,Adults & Health,London Care Plc,Home Care - Private Contractors Payment,294.84,0.00,COMMERCIAL SUPPLIER 
 01-12-2021,Adults & Health,London Care Plc,Respite Care - Private Contractors Payment,74.88,0.00,COMMERCIAL SUPPLIER 
 01-12-2021,Adults & Health,London Care Plc,Home Care - Private Contractors Payment,37.44,0.00,COMMERCIAL SUPPLIER 
 01-12-2021,Adults & Health,London Care Plc,Home Care - Private Contractors Payment,121.68,0.00,COMMERCIAL SUPPLIER 
 01-12-2021,Adults & Health,London Care Plc,Home Care - Private Contractors Payment,18.72,0.00,COMMERCIAL SUPPLIER 
 01-12-2021,Adults & Health,London Care Plc,Home Care - Private Contractors Payment,18.72,0.00,COMMERCIAL SUPPLIER 
 01-12-2021,Adults & Health,London Care Plc,Daycare - Private Contractors Payment,187.20,0.00,COMMERCIAL SUPPLIER 
 01-12-2021,Adults & Health,London Care Plc,Home Care - Private Contractors Payment,18.72,0.00,COMMERCIAL SUPPLIER 
 01-12-2021,Adults & Health,London Care Plc,Home Care - Private Contractors Payment,163.80,0.00,COMMERCIAL SUPPLIER 
 01-12-2021,Adults & Health,London Care Plc,Home Care - Private Contractors Payment,131.04,0.00,COMMERCIAL SUPPLIER 
 01-12-2021,Adults & Health,London Care Plc,Home Care - Private Contractors Payment,327.60,0.00,COMMERCIAL SUPPLIER 
 01-12-2021,Adults & Health,London Care Plc,Home Care - Private Contractors Payment,84.24,0.00,COMMERCIAL SUPPLIER 
 01-12-2021,Adults & Health,London Care Plc,Daycare - Private Contractors Payment,74.88,0.00,COMMERCIAL SUPPLIER 
 01-12-2021,Adults & Health,London Care Plc,Home Care - Private Contractors Payment,131.04,0.00,COMMERCIAL SUPPLIER 
 01-12-2021,Adults & Health,London Care Plc,Home Care - Private Contractors Payment,18.72,0.00,COMMERCIAL SUPPLIER 
 01-12-2021,Adults & Health,London Care Plc,Home Care - Private Contractors Payment,491.40,0.00,COMMERCIAL SUPPLIER 
 01-12-2021,Adults & Health,London Care Plc,Home Care - Private Contractors Payment,131.04,0.00,COMMERCIAL SUPPLIER 
 01-12-2021,Adults & Health,London Care Plc,Home Care - Private Contractors Payment,65.52,0.00,COMMERCIAL SUPPLIER 
 01-12-2021,Adults & Health,London Care Plc,Home Care - Private Contractors Payment,294.84,0.00,COMMERCIAL SUPPLIER 
 01-12-2021,Adults & Health,London Care Plc,Home Care - Private Contractors Payment,98.28,0.00,COMMERCIAL SUPPLIER 
 01-12-2021,Adults & Health,London Care Plc,Daycare - Private Contractors Payment,28.08,0.00,COMMERCIAL SUPPLIER 
 01-12-2021,Adults & Health,London Care Plc,Daycare - Private Contractors Payment,74.88,0.00,COMMERCIAL SUPPLIER 
 01-12-2021,Adults & Health,London Care Plc,Home Care - Private Contractors Payment,18.72,0.00,COMMERCIAL SUPPLIER 
 01-12-2021,Adults & Health,London Care Plc,Daycare - Private Contractors Payment,18.72,0.00,COMMERCIAL SUPPLIER 
 01-12-2021,Adults & Health,London Care Plc,Home Care - Private Contractors Payment,425.88,0.00,COMMERCIAL SUPPLIER 
 01-12-2021,Adults & Health,London Care Plc,Home Care - Private Contractors Payment,262.08,0.00,COMMERCIAL SUPPLIER 
 01-12-2021,Adults & Health,London Care Plc,Home Care - Private Contractors Payment,294.84,0.00,COMMERCIAL SUPPLIER 
 01-12-2021,Adults & Health,London Care Plc,Home Care - Private Contractors Payment,37.44,0.00,COMMERCIAL SUPPLIER 
 01-12-2021,Adults & Health,London Care Plc,Home Care - Private Contractors Payment,163.80,0.00,COMMERCIAL SUPPLIER 
 01-12-2021,Adults & Health,London Care Plc,Home Care - Private Contractors Payment,196.56,0.00,COMMERCIAL SUPPLIER 
 01-12-2021,Adults & Health,London Care Plc,Home Care - Private Contractors Payment,18.72,0.00,COMMERCIAL SUPPLIER 
 01-12-2021,Adults & Health,London Care Plc,Daycare - Private Contractors Payment,74.88,0.00,COMMERCIAL SUPPLIER 
 01-12-2021,Adults & Health,London Care Plc,Home Care - Private Contractors Payment,238.68,0.00,COMMERCIAL SUPPLIER 
 01-12-2021,Adults & Health,London Care Plc,Home Care - Private Contractors Payment,327.60,0.00,COMMERCIAL SUPPLIER 
 01-12-2021,Adults & Health,London Care Plc,Home Care - Private Contractors Payment,18.72,0.00,COMMERCIAL SUPPLIER 
 01-12-2021,Adults & Health,London Care Plc,Home Care - Private Contractors Payment,720.72,0.00,COMMERCIAL SUPPLIER 
 01-12-2021,Adults & Health,London Care Plc,Respite Care - Private Contractors Payment,93.60,0.00,COMMERCIAL SUPPLIER 
 01-12-2021,Adults & Health,London Care Plc,Daycare - Private Contractors Payment,93.60,0.00,COMMERCIAL SUPPLIER 
 01-12-2021,Adults & Health,London Care Plc,Home Care - Private Contractors Payment,140.40,0.00,COMMERCIAL SUPPLIER 
 01-12-2021,Adults & Health,London Care Plc,Home Care - Private Contractors Payment,229.32,0.00,COMMERCIAL SUPPLIER 
 01-12-2021,Adults & Health,London Care Plc,Home Care - Private Contractors Payment,56.16,0.00,COMMERCIAL SUPPLIER 
 01-12-2021,Adults & Health,London Care Plc,Home Care - Private Contractors Payment,18.72,0.00,COMMERCIAL SUPPLIER 
 01-12-2021,Adults & Health,London Care Plc,Home Care - Private Contractors Payment,327.60,0.00,COMMERCIAL SUPPLIER 
 01-12-2021,Adults & Health,London Care Plc,Daycare - Private Contractors Payment,37.44,0.00,COMMERCIAL SUPPLIER 
 01-12-2021,Adults & Health,London Care Plc,Daycare - Private Contractors Payment,18.72,0.00,COMMERCIAL SUPPLIER 
 01-12-2021,Adults & Health,London Care Plc,Home Care - Private Contractors Payment,74.88,0.00,COMMERCIAL SUPPLIER 
 01-12-2021,Adults & Health,London Care Plc,Home Care - Private Contractors Payment,18.72,0.00,COMMERCIAL SUPPLIER 
 01-12-2021,Adults & Health,London Care Plc,Home Care - Private Contractors Payment,271.44,0.00,COMMERCIAL SUPPLIER 
 01-12-2021,Adults & Health,London Care Plc,Home Care - Private Contractors Payment,196.56,0.00,COMMERCIAL SUPPLIER 
 01-12-2021,Adults & Health,London Care Plc,Home Care - Private Contractors Payment,229.32,0.00,COMMERCIAL SUPPLIER 
 01-12-2021,Adults & Health,London Care Plc,Home Care - Private Contractors Payment,262.08,0.00,COMMERCIAL SUPPLIER 
 01-12-2021,Adults & Health,London Care Plc,Home Care - Private Contractors Payment,93.60,0.00,COMMERCIAL SUPPLIER 
 01-12-2021,Adults & Health,London Care Plc,Home Care - Private Contractors Payment,41.80,0.00,COMMERCIAL SUPPLIER 
 01-12-2021,Adults & Health,London Care Plc,Home Care - Private Contractors Payment,18.72,0.00,COMMERCIAL SUPPLIER 
 01-12-2021,Adults & Health,London Care Plc,Home Care - Private Contractors Payment,294.84,0.00,COMMERCIAL SUPPLIER 
 01-12-2021,Adults & Health,London Care Plc,Daycare - Private Contractors Payment,131.04,0.00,COMMERCIAL SUPPLIER 
 01-12-2021,Adults & Health,London Care Plc,Home Care - Private Contractors Payment,655.20,0.00,COMMERCIAL SUPPLIER 
 01-12-2021,Adults & Health,London Care Plc,Daycare - Private Contractors Payment,112.32,0.00,COMMERCIAL SUPPLIER 
 01-12-2021,Adults & Health,London Care Plc,Home Care - Private Contractors Payment,229.32,0.00,COMMERCIAL SUPPLIER 
 01-12-2021,Adults & Health,London Care Plc,Home Care - Private Contractors Payment,163.80,0.00,COMMERCIAL SUPPLIER 
 01-12-2021,Adults & Health,London Care Plc,Home Care - Private Contractors Payment,37.44,0.00,COMMERCIAL SUPPLIER 
 01-12-2021,Adults & Health,London Care Plc,Home Care - Private Contractors Payment,262.08,0.00,COMMERCIAL SUPPLIER 
 01-12-2021,Adults & Health,London Care Plc,Home Care - Private Contractors Payment,131.04,0.00,COMMERCIAL SUPPLIER 
 01-12-2021,Adults & Health,London Care Plc,Home Care - Private Contractors Payment,42.12,0.00,COMMERCIAL SUPPLIER 
 01-12-2021,Adults & Health,London Care Plc,Home Care - Private Contractors Payment,37.44,0.00,COMMERCIAL SUPPLIER 
 01-12-2021,Adults & Health,London Care Plc,Home Care - Private Contractors Payment,56.16,0.00,COMMERCIAL SUPPLIER 
 01-12-2021,Adults & Health,London Care Plc,Home Care - Private Contractors Payment,561.60,0.00,COMMERCIAL SUPPLIER 
 01-12-2021,Adults & Health,London Care Plc,Home Care - Private Contractors Payment,196.56,0.00,COMMERCIAL SUPPLIER 
 01-12-2021,Adults & Health,London Care Plc,Home Care - Private Contractors Payment,18.72,0.00,COMMERCIAL SUPPLIER 
 01-12-2021,Adults & Health,London Care Plc,Home Care - Private Contractors Payment,150.07,0.00,COMMERCIAL SUPPLIER 
 01-12-2021,Adults & Health,London Care Plc,Home Care - Private Contractors Payment,163.80,0.00,COMMERCIAL SUPPLIER 
 01-12-2021,Adults & Health,London Care Plc,Home Care - Private Contractors Payment,229.32,0.00,COMMERCIAL SUPPLIER 
 01-12-2021,Adults & Health,London Care Plc,Home Care - Private Contractors Payment,98.28,0.00,COMMERCIAL SUPPLIER 
 01-12-2021,Adults & Health,London Care Plc,Home Care - Private Contractors Payment,18.72,0.00,COMMERCIAL SUPPLIER 
 01-12-2021,Adults & Health,London Care Plc,Daycare - Private Contractors Payment,37.44,0.00,COMMERCIAL SUPPLIER 
 01-12-2021,Adults & Health,London Care Plc,Home Care - Private Contractors Payment,229.32,0.00,COMMERCIAL SUPPLIER 
 01-12-2021,Adults & Health,London Care Plc,Home Care - Private Contractors Payment,262.08,0.00,COMMERCIAL SUPPLIER 
 01-12-2021,Adults & Health,London Care Plc,Home Care - Private Contractors Payment,37.44,0.00,COMMERCIAL SUPPLIER 
 01-12-2021,Adults & Health,London Care Plc,Home Care - Private Contractors Payment,294.84,0.00,COMMERCIAL SUPPLIER 
 01-12-2021,Adults & Health,London Care Plc,Home Care - Private Contractors Payment,37.44,0.00,COMMERCIAL SUPPLIER 
 01-12-2021,Adults & Health,London Care Plc,Home Care - Private Contractors Payment,98.28,0.00,COMMERCIAL SUPPLIER 
 01-12-2021,Adults & Health,London Care Plc,Home Care - Private Contractors Payment,98.28,0.00,COMMERCIAL SUPPLIER 
 01-12-2021,Adults & Health,London Care Plc,Home Care - Private Contractors Payment,229.32,0.00,COMMERCIAL SUPPLIER 
 01-12-2021,Adults & Health,London Care Plc,Daycare - Private Contractors Payment,37.44,0.00,COMMERCIAL SUPPLIER 
 01-12-2021,Adults & Health,London Care Plc,Home Care - Private Contractors Payment,18.72,0.00,COMMERCIAL SUPPLIER 
 01-12-2021,Adults & Health,London Care Plc,Daycare - Private Contractors Payment,131.04,0.00,COMMERCIAL SUPPLIER 
 01-12-2021,Adults & Health,London Care Plc,Home Care - Private Contractors Payment,18.72,0.00,COMMERCIAL SUPPLIER 
 01-12-2021,Adults & Health,London Care Plc,Daycare - Private Contractors Payment,131.04,0.00,COMMERCIAL SUPPLIER 
 01-12-2021,Adults & Health,London Care Plc,Respite Care - Private Contractors Payment,224.64,0.00,COMMERCIAL SUPPLIER 
 01-12-2021,Adults & Health,London Care Plc,Home Care - Private Contractors Payment,98.28,0.00,COMMERCIAL SUPPLIER 
 01-12-2021,Adults & Health,London Care Plc,Home Care - Private Contractors Payment,229.32,0.00,COMMERCIAL SUPPLIER 
 01-12-2021,Adults & Health,London Care Plc,Home Care - Private Contractors Payment,18.72,0.00,COMMERCIAL SUPPLIER 
 01-12-2021,Adults & Health,London Care Plc,Home Care - Private Contractors Payment,163.80,0.00,COMMERCIAL SUPPLIER 
 01-12-2021,Adults & Health,London Care Plc,Home Care - Private Contractors Payment,37.44,0.00,COMMERCIAL SUPPLIER 
 01-12-2021,Adults & Health,London Care Plc,Home Care - Private Contractors Payment,46.80,0.00,COMMERCIAL SUPPLIER 
 01-12-2021,Adults & Health,London Care Plc,Home Care - Private Contractors Payment,131.04,0.00,COMMERCIAL SUPPLIER 
 01-12-2021,Adults & Health,London Care Plc,Home Care - Private Contractors Payment,131.04,0.00,COMMERCIAL SUPPLIER 
 01-12-2021,Adults & Health,London Care Plc,Home Care - Private Contractors Payment,18.72,0.00,COMMERCIAL SUPPLIER 
 01-12-2021,Adults & Health,London Care Plc,Home Care - Private Contractors Payment,28.08,0.00,COMMERCIAL SUPPLIER 
 01-12-2021,Adults & Health,London Care Plc,Home Care - Private Contractors Payment,720.72,0.00,COMMERCIAL SUPPLIER 
 01-12-2021,Adults & Health,London Care Plc,Home Care - Private Contractors Payment,18.72,0.00,COMMERCIAL SUPPLIER 
 01-12-2021,Adults & Health,London Care Plc,Daycare - Private Contractors Payment,93.60,0.00,COMMERCIAL SUPPLIER 
 01-12-2021,Adults & Health,London Care Plc,Home Care - Private Contractors Payment,65.52,0.00,COMMERCIAL SUPPLIER 
 01-12-2021,Adults & Health,London Care Plc,Home Care - Private Contractors Payment,165.36,0.00,COMMERCIAL SUPPLIER 
 01-12-2021,Adults & Health,London Care Plc,Home Care - Private Contractors Payment,42.12,0.00,COMMERCIAL SUPPLIER 
 01-12-2021,Adults & Health,London Care Plc,Home Care - Private Contractors Payment,65.52,0.00,COMMERCIAL SUPPLIER 
 01-12-2021,Adults & Health,London Care Plc,Home Care - Private Contractors Payment,163.80,0.00,COMMERCIAL SUPPLIER 
 01-12-2021,Adults & Health,London Care Plc,Home Care - Private Contractors Payment,294.84,0.00,COMMERCIAL SUPPLIER 
 01-12-2021,Adults & Health,London Care Plc,Home Care - Private Contractors Payment,491.40,0.00,COMMERCIAL SUPPLIER 
 01-12-2021,Adults & Health,London Care Plc,Home Care - Private Contractors Payment,294.84,0.00,COMMERCIAL SUPPLIER 
 01-12-2021,Adults & Health,London Care Plc,Home Care - Private Contractors Payment,294.84,0.00,COMMERCIAL SUPPLIER 
 01-12-2021,Adults & Health,London Care Plc,Home Care - Private Contractors Payment,524.16,0.00,COMMERCIAL SUPPLIER 
 01-12-2021,Adults & Health,London Care Plc,Home Care - Private Contractors Payment,294.84,0.00,COMMERCIAL SUPPLIER 
 01-12-2021,Adults & Health,London Care Plc,Home Care - Private Contractors Payment,37.44,0.00,COMMERCIAL SUPPLIER 
 01-12-2021,Adults & Health,London Care Plc,Daycare - Private Contractors Payment,74.88,0.00,COMMERCIAL SUPPLIER 
 01-12-2021,Adults & Health,London Care Plc,Home Care - Private Contractors Payment,74.88,0.00,COMMERCIAL SUPPLIER 
 01-12-2021,Adults & Health,London Care Plc,Home Care - Private Contractors Payment,93.60,0.00,COMMERCIAL SUPPLIER 
 01-12-2021,Adults & Health,London Care Plc,Daycare - Private Contractors Payment,37.44,0.00,COMMERCIAL SUPPLIER 
 01-12-2021,Adults & Health,London Care Plc,Home Care - Private Contractors Payment,294.84,0.00,COMMERCIAL SUPPLIER 
 01-12-2021,Adults & Health,London Care Plc,Home Care - Private Contractors Payment,28.08,0.00,COMMERCIAL SUPPLIER 
 01-12-2021,Adults & Health,London Care Plc,Home Care - Private Contractors Payment,28.08,0.00,COMMERCIAL SUPPLIER 
 01-12-2021,Adults & Health,London Care Plc,Home Care - Private Contractors Payment,210.60,0.00,COMMERCIAL SUPPLIER 
 01-12-2021,Adults & Health,London Care Plc,Home Care - Private Contractors Payment,28.08,0.00,COMMERCIAL SUPPLIER 
 01-12-2021,Adults & Health,London Care Plc,Home Care - Private Contractors Payment,28.08,0.00,COMMERCIAL SUPPLIER 
 01-12-2021,Adults & Health,London Care Plc,Home Care - Private Contractors Payment,294.84,0.00,COMMERCIAL SUPPLIER 
 01-12-2021,Adults & Health,London Care Plc,Home Care - Private Contractors Payment,18.72,0.00,COMMERCIAL SUPPLIER 
 01-12-2021,Adults & Health,London Care Plc,Home Care - Private Contractors Payment,360.36,0.00,COMMERCIAL SUPPLIER 
 01-12-2021,Adults & Health,London Care Plc,Home Care - Private Contractors Payment,229.32,0.00,COMMERCIAL SUPPLIER 
 01-12-2021,Adults & Health,London Care Plc,Home Care - Private Contractors Payment,163.80,0.00,COMMERCIAL SUPPLIER 
 01-12-2021,Adults & Health,London Care Plc,Daycare - Private Contractors Payment,56.16,0.00,COMMERCIAL SUPPLIER 
 01-12-2021,Adults & Health,London Care Plc,Home Care - Private Contractors Payment,102.96,0.00,COMMERCIAL SUPPLIER 
 01-12-2021,Adults & Health,London Care Plc,Home Care - Private Contractors Payment,539.16,0.00,COMMERCIAL SUPPLIER 
 01-12-2021,Adults & Health,London Care Plc,Home Care - Private Contractors Payment,163.80,0.00,COMMERCIAL SUPPLIER 
 01-12-2021,Adults & Health,London Care Plc,Home Care - Private Contractors Payment,277.08,0.00,COMMERCIAL SUPPLIER 
 01-12-2021,Adults & Health,London Care Plc,Daycare - Private Contractors Payment,131.04,0.00,COMMERCIAL SUPPLIER 
 01-12-2021,Adults & Health,London Care Plc,Daycare - Private Contractors Payment,37.44,0.00,COMMERCIAL SUPPLIER 
 01-12-2021,Adults & Health,London Care Plc,Home Care - Private Contractors Payment,294.84,0.00,COMMERCIAL SUPPLIER 
 01-12-2021,Adults & Health,London Care Plc,Daycare - Private Contractors Payment,185.32,0.00,COMMERCIAL SUPPLIER 
 01-12-2021,Adults & Health,London Care Plc,Daycare - Private Contractors Payment,37.44,0.00,COMMERCIAL SUPPLIER 
 01-12-2021,Adults & Health,London Care Plc,Daycare - Private Contractors Payment,93.60,0.00,COMMERCIAL SUPPLIER 
 01-12-2021,Adults & Health,London Care Plc,Daycare - Private Contractors Payment,29.95,0.00,COMMERCIAL SUPPLIER 
 01-12-2021,Adults & Health,London Care Plc,Home Care - Private Contractors Payment,342.60,0.00,COMMERCIAL SUPPLIER 
 01-12-2021,Adults & Health,London Care Plc,Home Care - Private Contractors Payment,229.32,0.00,COMMERCIAL SUPPLIER 
 01-12-2021,Adults & Health,London Care Plc,Home Care - Private Contractors Payment,18.72,0.00,COMMERCIAL SUPPLIER 
 01-12-2021,Adults & Health,London Care Plc,Home Care - Private Contractors Payment,56.16,0.00,COMMERCIAL SUPPLIER 
 01-12-2021,Adults & Health,London Care Plc,Home Care - Private Contractors Payment,229.32,0.00,COMMERCIAL SUPPLIER 
 01-12-2021,Adults & Health,London Care Plc,Home Care - Private Contractors Payment,177.84,0.00,COMMERCIAL SUPPLIER 
 01-12-2021,Adults & Health,London Care Plc,Home Care - Private Contractors Payment,163.80,0.00,COMMERCIAL SUPPLIER 
 01-12-2021,Adults & Health,London Care Plc,Home Care - Private Contractors Payment,74.88,0.00,COMMERCIAL SUPPLIER 
 01-12-2021,Adults & Health,London Care Plc,Home Care - Private Contractors Payment,18.72,0.00,COMMERCIAL SUPPLIER 
 01-12-2021,Adults & Health,London Care Plc,Home Care - Private Contractors Payment,154.44,0.00,COMMERCIAL SUPPLIER 
 01-12-2021,Adults & Health,London Care Plc,Home Care - Private Contractors Payment,121.68,0.00,COMMERCIAL SUPPLIER 
 01-12-2021,Adults & Health,London Care Plc,Daycare - Private Contractors Payment,74.88,0.00,COMMERCIAL SUPPLIER 
 01-12-2021,Adults & Health,London Care Plc,Home Care - Private Contractors Payment,98.28,0.00,COMMERCIAL SUPPLIER 
 01-12-2021,Adults & Health,London Care Plc,Home Care - Private Contractors Payment,28.08,0.00,COMMERCIAL SUPPLIER 
 01-12-2021,Adults & Health,London Care Plc,Respite Care - Private Contractors Payment,37.44,0.00,COMMERCIAL SUPPLIER 
 01-12-2021,Adults & Health,London Care Plc,Home Care - Private Contractors Payment,393.12,0.00,COMMERCIAL SUPPLIER 
 01-12-2021,Adults & Health,London Care Plc,Home Care - Private Contractors Payment,37.44,0.00,COMMERCIAL SUPPLIER 
 01-12-2021,Adults & Health,London Care Plc,Home Care - Private Contractors Payment,229.32,0.00,COMMERCIAL SUPPLIER 
 01-12-2021,Adults & Health,London Care Plc,Home Care - Private Contractors Payment,720.72,0.00,COMMERCIAL SUPPLIER 
 01-12-2021,Adults & Health,London Care Plc,Home Care - Private Contractors Payment,65.52,0.00,COMMERCIAL SUPPLIER 
 01-12-2021,Adults & Health,London Care Plc,Home Care - Private Contractors Payment,18.72,0.00,COMMERCIAL SUPPLIER 
 01-12-2021,Adults & Health,London Care Plc,Home Care - Private Contractors Payment,196.56,0.00,COMMERCIAL SUPPLIER 
 01-12-2021,Adults & Health,London Care Plc,Home Care - Private Contractors Payment,18.72,0.00,COMMERCIAL SUPPLIER 
 01-12-2021,Adults & Health,London Care Plc,Home Care - Private Contractors Payment,98.28,0.00,COMMERCIAL SUPPLIER 
 01-12-2021,Adults & Health,London Care Plc,Daycare - Private Contractors Payment,56.16,0.00,COMMERCIAL SUPPLIER 
 01-12-2021,Adults & Health,London Care Plc,Daycare - Private Contractors Payment,74.88,0.00,COMMERCIAL SUPPLIER 
 01-12-2021,Adults & Health,London Care Plc,Home Care - Private Contractors Payment,121.68,0.00,COMMERCIAL SUPPLIER 
 01-12-2021,Adults & Health,London Care Plc,Home Care - Private Contractors Payment,93.60,0.00,COMMERCIAL SUPPLIER 
 01-12-2021,Adults & Health,London Care Plc,Home Care - Private Contractors Payment,98.28,0.00,COMMERCIAL SUPPLIER 
 01-12-2021,Adults & Health,London Care Plc,Home Care - Private Contractors Payment,229.32,0.00,COMMERCIAL SUPPLIER 
 01-12-2021,Adults & Health,London Care Plc,Home Care - Private Contractors Payment,28.08,0.00,COMMERCIAL SUPPLIER 
 01-12-2021,Adults & Health,London Care Plc,Home Care - Private Contractors Payment,294.84,0.00,COMMERCIAL SUPPLIER 
 01-12-2021,Adults & Health,London Care Plc,Home Care - Private Contractors Payment,229.32,0.00,COMMERCIAL SUPPLIER 
 01-12-2021,Adults & Health,London Care Plc,Daycare - Private Contractors Payment,74.88,0.00,COMMERCIAL SUPPLIER 
 01-12-2021,Adults & Health,London Care Plc,Home Care - Private Contractors Payment,18.72,0.00,COMMERCIAL SUPPLIER 
 01-12-2021,Adults & Health,London Care Plc,Home Care - Private Contractors Payment,229.32,0.00,COMMERCIAL SUPPLIER 
 01-12-2021,Adults & Health,London Care Plc,Home Care - Private Contractors Payment,131.04,0.00,COMMERCIAL SUPPLIER 
 01-12-2021,Adults & Health,London Care Plc,Daycare - Private Contractors Payment,18.72,0.00,COMMERCIAL SUPPLIER 
 01-12-2021,Adults & Health,London Care Plc,Home Care - Private Contractors Payment,37.44,0.00,COMMERCIAL SUPPLIER 
 01-12-2021,Adults & Health,London Care Plc,Home Care - Private Contractors Payment,393.12,0.00,COMMERCIAL SUPPLIER 
 01-12-2021,Adults & Health,London Care Plc,Home Care - Private Contractors Payment,37.44,0.00,COMMERCIAL SUPPLIER 
 01-12-2021,Adults & Health,London Care Plc,Home Care - Private Contractors Payment,74.88,0.00,COMMERCIAL SUPPLIER 
 01-12-2021,Adults & Health,London Care Plc,Home Care - Private Contractors Payment,196.56,0.00,COMMERCIAL SUPPLIER 
 01-12-2021,Adults & Health,London Care Plc,Daycare - Private Contractors Payment,28.08,0.00,COMMERCIAL SUPPLIER 
 01-12-2021,Adults & Health,London Care Plc,Daycare - Private Contractors Payment,46.80,0.00,COMMERCIAL SUPPLIER 
 01-12-2021,Adults & Health,London Care Plc,Daycare - Private Contractors Payment,252.72,0.00,COMMERCIAL SUPPLIER 
 01-12-2021,Adults & Health,London Care Plc,Home Care - Private Contractors Payment,177.84,0.00,COMMERCIAL SUPPLIER 
 01-12-2021,Adults & Health,London Care Plc,Home Care - Private Contractors Payment,74.88,0.00,COMMERCIAL SUPPLIER 
 01-12-2021,Adults & Health,London Care Plc,Home Care - Private Contractors Payment,18.72,0.00,COMMERCIAL SUPPLIER 
 01-12-2021,Adults & Health,London Care Plc,Home Care - Private Contractors Payment,131.04,0.00,COMMERCIAL SUPPLIER 
 01-12-2021,Adults & Health,London Care Plc,Home Care - Private Contractors Payment,18.72,0.00,COMMERCIAL SUPPLIER 
 01-12-2021,Adults & Health,London Care Plc,Home Care - Private Contractors Payment,126.36,0.00,COMMERCIAL SUPPLIER 
 01-12-2021,Adults & Health,London Care Plc,Home Care - Private Contractors Payment,46.80,0.00,COMMERCIAL SUPPLIER 
 01-12-2021,Adults & Health,London Care Plc,Home Care - Private Contractors Payment,243.36,0.00,COMMERCIAL SUPPLIER 
 01-12-2021,Adults & Health,London Care Plc,Daycare - Private Contractors Payment,74.88,0.00,COMMERCIAL SUPPLIER 
 01-12-2021,Adults & Health,London Care Plc,Home Care - Private Contractors Payment,211.56,0.00,COMMERCIAL SUPPLIER 
 01-12-2021,Adults & Health,London Care Plc,Daycare - Private Contractors Payment,74.88,0.00,COMMERCIAL SUPPLIER 
 01-12-2021,Adults & Health,London Care Plc,Home Care - Private Contractors Payment,42.12,0.00,COMMERCIAL SUPPLIER 
 01-12-2021,Adults & Health,London Care Plc,Home Care - Private Contractors Payment,28.08,0.00,COMMERCIAL SUPPLIER 
 01-12-2021,Adults & Health,London Care Plc,Home Care - Private Contractors Payment,309.84,0.00,COMMERCIAL SUPPLIER 
 01-12-2021,Adults & Health,London Care Plc,Home Care - Private Contractors Payment,18.72,0.00,COMMERCIAL SUPPLIER 
 01-12-2021,Adults & Health,London Care Plc,Home Care - Private Contractors Payment,93.60,0.00,COMMERCIAL SUPPLIER 
 01-12-2021,Adults & Health,London Care Plc,Home Care - Private Contractors Payment,126.36,0.00,COMMERCIAL SUPPLIER 
 01-12-2021,Adults & Health,London Care Plc,Respite Care - Private Contractors Payment,224.64,0.00,COMMERCIAL SUPPLIER 
 01-12-2021,Adults & Health,London Care Plc,Home Care - Private Contractors Payment,37.44,0.00,COMMERCIAL SUPPLIER 
 01-12-2021,Adults & Health,London Care Plc,Home Care - Private Contractors Payment,121.68,0.00,COMMERCIAL SUPPLIER 
 01-12-2021,Adults & Health,London Care Plc,Home Care - Private Contractors Payment,107.64,0.00,COMMERCIAL SUPPLIER 
 01-12-2021,Adults & Health,London Care Plc,Daycare - Private Contractors Payment,187.49,0.00,COMMERCIAL SUPPLIER 
 01-12-2021,Adults & Health,London Care Plc,Home Care - Private Contractors Payment,229.32,0.00,COMMERCIAL SUPPLIER 
 01-12-2021,Adults & Health,London Care Plc,Daycare - Private Contractors Payment,131.04,0.00,COMMERCIAL SUPPLIER 
 01-12-2021,Adults & Health,London Care Plc,Home Care - Private Contractors Payment,163.80,0.00,COMMERCIAL SUPPLIER 
 01-12-2021,Adults & Health,London Care Plc,Home Care - Private Contractors Payment,65.52,0.00,COMMERCIAL SUPPLIER 
 01-12-2021,Adults & Health,London Care Plc,Home Care - Private Contractors Payment,229.32,0.00,COMMERCIAL SUPPLIER 
 01-12-2021,Adults & Health,London Care Plc,Home Care - Private Contractors Payment,18.72,0.00,COMMERCIAL SUPPLIER 
 01-12-2021,Adults & Health,London Care Plc,Home Care - Private Contractors Payment,360.36,0.00,COMMERCIAL SUPPLIER 
 01-12-2021,Adults & Health,London Care Plc,Home Care - Private Contractors Payment,98.28,0.00,COMMERCIAL SUPPLIER 
 01-12-2021,Adults & Health,London Care Plc,Home Care - Private Contractors Payment,327.60,0.00,COMMERCIAL SUPPLIER 
 01-12-2021,Adults & Health,London Care Plc,Daycare - Private Contractors Payment,187.20,0.00,COMMERCIAL SUPPLIER 
 01-12-2021,Adults & Health,London Care Plc,Home Care - Private Contractors Payment,65.52,0.00,COMMERCIAL SUPPLIER 
 01-12-2021,Adults & Health,London Care Plc,Home Care - Private Contractors Payment,37.44,0.00,COMMERCIAL SUPPLIER 
 01-12-2021,Adults & Health,London Care Plc,Home Care - Private Contractors Payment,430.56,0.00,COMMERCIAL SUPPLIER 
 01-12-2021,Adults & Health,London Care Plc,Home Care - Private Contractors Payment,56.16,0.00,COMMERCIAL SUPPLIER 
 01-12-2021,Adults & Health,London Care Plc,Daycare - Private Contractors Payment,74.88,0.00,COMMERCIAL SUPPLIER 
 01-12-2021,Adults & Health,London Care Plc,Daycare - Private Contractors Payment,131.04,0.00,COMMERCIAL SUPPLIER 
 01-12-2021,Adults & Health,London Care Plc,Home Care - Private Contractors Payment,37.44,0.00,COMMERCIAL SUPPLIER 
 01-12-2021,Adults & Health,London Care Plc,Home Care - Private Contractors Payment,196.56,0.00,COMMERCIAL SUPPLIER 
 01-12-2021,Adults & Health,London Care Plc,Daycare - Private Contractors Payment,37.44,0.00,COMMERCIAL SUPPLIER 
 01-12-2021,Adults & Health,London Care Plc,Respite Care - Private Contractors Payment,74.88,0.00,COMMERCIAL SUPPLIER 
 01-12-2021,Adults & Health,London Care Plc,Home Care - Private Contractors Payment,430.56,0.00,COMMERCIAL SUPPLIER 
 01-12-2021,Adults & Health,London Care Plc,Home Care - Private Contractors Payment,262.08,0.00,COMMERCIAL SUPPLIER 
 01-12-2021,Adults & Health,London Care Plc,Home Care - Private Contractors Payment,28.08,0.00,COMMERCIAL SUPPLIER 
 01-12-2021,Adults & Health,London Care Plc,Daycare - Private Contractors Payment,28.08,0.00,COMMERCIAL SUPPLIER 
 01-12-2021,Adults & Health,London Care Plc,Home Care - Private Contractors Payment,112.32,0.00,COMMERCIAL SUPPLIER 
 01-12-2021,Adults & Health,London Care Plc,Home Care - Private Contractors Payment,327.60,0.00,COMMERCIAL SUPPLIER 
 01-12-2021,Adults & Health,London Care Plc,Home Care - Private Contractors Payment,238.68,0.00,COMMERCIAL SUPPLIER 
 01-12-2021,Adults & Health,London Care Plc,Home Care - Private Contractors Payment,9.36,0.00,COMMERCIAL SUPPLIER 
 01-12-2021,Adults & Health,London Care Plc,Daycare - Private Contractors Payment,93.60,0.00,COMMERCIAL SUPPLIER 
 01-12-2021,Adults & Health,London Care Plc,Daycare - Private Contractors Payment,18.72,0.00,COMMERCIAL SUPPLIER 
 01-12-2021,Adults & Health,London Care Plc,Daycare - Private Contractors Payment,74.88,0.00,COMMERCIAL SUPPLIER 
 01-12-2021,Adults & Health,London Care Plc,Home Care - Private Contractors Payment,154.44,0.00,COMMERCIAL SUPPLIER 
 01-12-2021,Adults & Health,London Care Plc,Home Care - Private Contractors Payment,18.72,0.00,COMMERCIAL SUPPLIER 
 01-12-2021,Adults & Health,London Care Plc,Daycare - Private Contractors Payment,112.32,0.00,COMMERCIAL SUPPLIER 
 01-12-2021,Adults & Health,London Care Plc,Home Care - Private Contractors Payment,98.28,0.00,COMMERCIAL SUPPLIER 
 01-12-2021,Adults & Health,London Care Plc,Home Care - Private Contractors Payment,46.80,0.00,COMMERCIAL SUPPLIER 
 01-12-2021,Adults & Health,London Care Plc,Home Care - Private Contractors Payment,18.72,0.00,COMMERCIAL SUPPLIER 
 01-12-2021,Adults & Health,London Care Plc,Home Care - Private Contractors Payment,290.16,0.00,COMMERCIAL SUPPLIER 
 01-12-2021,Adults & Health,London Care Plc,Home Care - Private Contractors Payment,65.52,0.00,COMMERCIAL SUPPLIER 
 01-12-2021,Adults & Health,London Care Plc,Home Care - Private Contractors Payment,327.60,0.00,COMMERCIAL SUPPLIER 
 01-12-2021,Adults & Health,London Care Plc,Home Care - Private Contractors Payment,18.72,0.00,COMMERCIAL SUPPLIER 
 01-12-2021,Adults & Health,London Care Plc,Daycare - Private Contractors Payment,56.16,0.00,COMMERCIAL SUPPLIER 
 01-12-2021,Adults & Health,London Care Plc,Daycare - Private Contractors Payment,74.88,0.00,COMMERCIAL SUPPLIER 
 01-12-2021,Adults & Health,London Care Plc,Home Care - Private Contractors Payment,196.56,0.00,COMMERCIAL SUPPLIER 
 01-12-2021,Adults & Health,London Care Plc,Home Care - Private Contractors Payment,244.32,0.00,COMMERCIAL SUPPLIER 
 01-12-2021,Adults & Health,London Care Plc,Home Care - Private Contractors Payment,84.24,0.00,COMMERCIAL SUPPLIER 
 01-12-2021,Adults & Health,London Care Plc,Home Care - Private Contractors Payment,244.32,0.00,COMMERCIAL SUPPLIER 
 01-12-2021,Adults & Health,London Care Plc,Home Care - Private Contractors Payment,18.72,0.00,COMMERCIAL SUPPLIER 
 01-12-2021,Adults & Health,London Care Plc,Home Care - Private Contractors Payment,146.04,0.00,COMMERCIAL SUPPLIER 
 01-12-2021,Adults & Health,London Care Plc,Home Care - Private Contractors Payment,425.57,0.00,COMMERCIAL SUPPLIER 
 01-12-2021,Adults & Health,London Care Plc,Daycare - Private Contractors Payment,93.60,0.00,COMMERCIAL SUPPLIER 
 01-12-2021,Adults & Health,London Care Plc,Home Care - Private Contractors Payment,290.16,0.00,COMMERCIAL SUPPLIER 
 01-12-2021,Adults & Health,London Care Plc,Home Care - Private Contractors Payment,243.05,0.00,COMMERCIAL SUPPLIER 
 01-12-2021,Adults & Health,London Care Plc,Home Care - Private Contractors Payment,342.60,0.00,COMMERCIAL SUPPLIER 
 01-12-2021,Adults & Health,London Care Plc,Home Care - Private Contractors Payment,131.04,0.00,COMMERCIAL SUPPLIER 
 01-12-2021,Adults & Health,London Care Plc,Home Care - Private Contractors Payment,18.72,0.00,COMMERCIAL SUPPLIER 
 01-12-2021,Adults & Health,London Care Plc,Home Care - Private Contractors Payment,244.32,0.00,COMMERCIAL SUPPLIER 
 01-12-2021,Adults & Health,London Care Plc,Home Care - Private Contractors Payment,430.88,0.00,COMMERCIAL SUPPLIER 
 01-12-2021,Adults & Health,London Care Plc,Home Care - Private Contractors Payment,56.16,0.00,COMMERCIAL SUPPLIER 
 01-12-2021,Adults & Health,London Care Plc,Home Care - Private Contractors Payment,18.72,0.00,COMMERCIAL SUPPLIER 
 01-12-2021,Adults & Health,London Care Plc,Home Care - Private Contractors Payment,229.32,0.00,COMMERCIAL SUPPLIER 
 01-12-2021,Adults & Health,London Care Plc,Home Care - Private Contractors Payment,229.32,0.00,COMMERCIAL SUPPLIER 
 01-12-2021,Adults & Health,London Care Plc,Home Care - Private Contractors Payment,262.08,0.00,COMMERCIAL SUPPLIER 
 01-12-2021,Adults & Health,London Care Plc,Home Care - Private Contractors Payment,98.28,0.00,COMMERCIAL SUPPLIER 
 01-12-2021,Adults & Health,London Care Plc,Home Care - Private Contractors Payment,327.60,0.00,COMMERCIAL SUPPLIER 
 01-12-2021,Adults & Health,London Care Plc,Respite Care - Private Contractors Payment,224.64,0.00,COMMERCIAL SUPPLIER 
 01-12-2021,Adults & Health,London Care Plc,Home Care - Private Contractors Payment,18.72,0.00,COMMERCIAL SUPPLIER 
 01-12-2021,Adults & Health,London Care Plc,Respite Care - Private Contractors Payment,93.60,0.00,COMMERCIAL SUPPLIER 
 01-12-2021,Adults & Health,London Care Plc,Home Care - Private Contractors Payment,18.72,0.00,COMMERCIAL SUPPLIER 
 01-12-2021,Adults & Health,London Care Plc,Home Care - Private Contractors Payment,163.80,0.00,COMMERCIAL SUPPLIER 
 01-12-2021,Adults & Health,London Care Plc,Home Care - Private Contractors Payment,18.72,0.00,COMMERCIAL SUPPLIER 
 01-12-2021,Adults & Health,London Care Plc,Home Care - Private Contractors Payment,121.68,0.00,COMMERCIAL SUPPLIER 
 01-12-2021,Adults & Health,London Care Plc,Home Care - Private Contractors Payment,28.08,0.00,COMMERCIAL SUPPLIER 
 01-12-2021,Adults & Health,London Care Plc,Home Care - Private Contractors Payment,655.20,0.00,COMMERCIAL SUPPLIER 
 01-12-2021,Adults & Health,London Care Plc,Home Care - Private Contractors Payment,37.44,0.00,COMMERCIAL SUPPLIER 
 01-12-2021,Adults & Health,London Care Plc,Home Care - Private Contractors Payment,56.16,0.00,COMMERCIAL SUPPLIER 
 01-12-2021,Adults & Health,London Care Plc,Daycare - Private Contractors Payment,93.60,0.00,COMMERCIAL SUPPLIER 
 01-12-2021,Adults & Health,London Care Plc,Home Care - Private Contractors Payment,196.56,0.00,COMMERCIAL SUPPLIER 
 01-12-2021,Adults & Health,London Care Plc,Home Care - Private Contractors Payment,177.84,0.00,COMMERCIAL SUPPLIER 
 01-12-2021,Adults & Health,London Care Plc,Home Care - Private Contractors Payment,163.80,0.00,COMMERCIAL SUPPLIER 
 01-12-2021,Adults & Health,London Care Plc,Home Care - Private Contractors Payment,37.44,0.00,COMMERCIAL SUPPLIER 
 01-12-2021,Adults & Health,London Care Plc,Daycare - Private Contractors Payment,74.88,0.00,COMMERCIAL SUPPLIER 
 01-12-2021,Adults & Health,London Care Plc,Home Care - Private Contractors Payment,93.60,0.00,COMMERCIAL SUPPLIER 
 01-12-2021,Adults & Health,London Care Plc,Home Care - Private Contractors Payment,28.08,0.00,COMMERCIAL SUPPLIER 
 01-12-2021,Adults & Health,London Care Plc,Home Care - Private Contractors Payment,37.44,0.00,COMMERCIAL SUPPLIER 
 01-12-2021,Adults & Health,London Care Plc,Home Care - Private Contractors Payment,168.48,0.00,COMMERCIAL SUPPLIER 
 01-12-2021,Adults & Health,London Care Plc,Home Care - Private Contractors Payment,37.44,0.00,COMMERCIAL SUPPLIER 
 01-12-2021,Adults & Health,London Care Plc,Home Care - Private Contractors Payment,327.60,0.00,COMMERCIAL SUPPLIER 
 01-12-2021,Adults & Health,London Care Plc,Daycare - Private Contractors Payment,37.44,0.00,COMMERCIAL SUPPLIER 
 01-12-2021,Adults & Health,London Care Plc,Home Care - Private Contractors Payment,196.56,0.00,COMMERCIAL SUPPLIER 
 01-12-2021,Adults & Health,London Care Plc,Daycare - Private Contractors Payment,37.44,0.00,COMMERCIAL SUPPLIER 
 01-12-2021,Adults & Health,London Care Plc,Daycare - Private Contractors Payment,56.16,0.00,COMMERCIAL SUPPLIER 
 01-12-2021,Adults & Health,London Care Plc,Home Care - Private Contractors Payment,28.08,0.00,COMMERCIAL SUPPLIER 
 01-12-2021,Adults & Health,London Care Plc,Home Care - Private Contractors Payment,196.56,0.00,COMMERCIAL SUPPLIER 
 01-12-2021,Adults & Health,London Care Plc,Home Care - Private Contractors Payment,262.08,0.00,COMMERCIAL SUPPLIER 
 01-12-2021,Adults & Health,London Care Plc,Home Care - Private Contractors Payment,196.56,0.00,COMMERCIAL SUPPLIER 
 01-12-2021,Adults & Health,London Care Plc,Home Care - Private Contractors Payment,126.36,0.00,COMMERCIAL SUPPLIER 
 01-12-2021,Adults & Health,London Care Plc,Home Care - Private Contractors Payment,430.56,0.00,COMMERCIAL SUPPLIER 
 01-12-2021,Adults & Health,London Care Plc,Home Care - Private Contractors Payment,65.52,0.00,COMMERCIAL SUPPLIER 
 01-12-2021,Adults & Health,London Care Plc,Home Care - Private Contractors Payment,655.20,0.00,COMMERCIAL SUPPLIER 
 01-12-2021,Adults & Health,London Care Plc,Daycare - Private Contractors Payment,93.60,0.00,COMMERCIAL SUPPLIER 
 01-12-2021,Adults & Health,London Care Plc,Home Care - Private Contractors Payment,18.72,0.00,COMMERCIAL SUPPLIER 
 01-12-2021,Adults & Health,London Care Plc,Daycare - Private Contractors Payment,18.72,0.00,COMMERCIAL SUPPLIER 
 01-12-2021,Adults & Health,London Care Plc,Home Care - Private Contractors Payment,303.58,0.00,COMMERCIAL SUPPLIER 
 01-12-2021,Adults & Health,London Care Plc,Daycare - Private Contractors Payment,74.88,0.00,COMMERCIAL SUPPLIER 
 01-12-2021,Adults & Health,London Care Plc,Home Care - Private Contractors Payment,229.32,0.00,COMMERCIAL SUPPLIER 
 01-12-2021,Adults & Health,London Care Plc,Home Care - Private Contractors Payment,18.72,0.00,COMMERCIAL SUPPLIER 
 01-12-2021,Adults & Health,London Care Plc,Daycare - Private Contractors Payment,46.80,0.00,COMMERCIAL SUPPLIER 
 01-12-2021,Adults & Health,London Care Plc,Daycare - Private Contractors Payment,18.72,0.00,COMMERCIAL SUPPLIER 
 01-12-2021,Adults & Health,London Care Plc,Home Care - Private Contractors Payment,350.07,0.00,COMMERCIAL SUPPLIER 
 01-12-2021,Adults & Health,London Care Plc,Home Care - Private Contractors Payment,37.44,0.00,COMMERCIAL SUPPLIER 
 01-12-2021,Adults & Health,London Care Plc,Home Care - Private Contractors Payment,491.40,0.00,COMMERCIAL SUPPLIER 
 01-12-2021,Adults & Health,London Care Plc,Home Care - Private Contractors Payment,145.08,0.00,COMMERCIAL SUPPLIER 
 01-12-2021,Adults & Health,London Care Plc,Home Care - Private Contractors Payment,201.24,0.00,COMMERCIAL SUPPLIER 
 01-12-2021,Adults & Health,London Care Plc,Home Care - Private Contractors Payment,79.56,0.00,COMMERCIAL SUPPLIER 
 01-12-2021,Adults & Health,London Care Plc,Daycare - Private Contractors Payment,56.16,0.00,COMMERCIAL SUPPLIER 
 01-12-2021,Adults & Health,London Care Plc,Home Care - Private Contractors Payment,294.84,0.00,COMMERCIAL SUPPLIER 
 01-12-2021,Adults & Health,London Care Plc,Home Care - Private Contractors Payment,37.44,0.00,COMMERCIAL SUPPLIER 
 01-12-2021,Adults & Health,London Care Plc,Daycare - Private Contractors Payment,37.44,0.00,COMMERCIAL SUPPLIER 
 01-12-2021,Adults & Health,London Care Plc,Daycare - Private Contractors Payment,131.04,0.00,COMMERCIAL SUPPLIER 
 01-12-2021,Adults & Health,London Care Plc,Home Care - Private Contractors Payment,37.44,0.00,COMMERCIAL SUPPLIER 
 01-12-2021,Adults & Health,London Care Plc,Home Care - Private Contractors Payment,524.16,0.00,COMMERCIAL SUPPLIER 
 01-12-2021,Adults & Health,London Care Plc,Daycare - Private Contractors Payment,93.60,0.00,COMMERCIAL SUPPLIER 
 01-12-2021,Adults & Health,London Care Plc,Home Care - Private Contractors Payment,229.32,0.00,COMMERCIAL SUPPLIER 
 01-12-2021,Adults & Health,London Care Plc,Home Care - Private Contractors Payment,229.32,0.00,COMMERCIAL SUPPLIER 
 01-12-2021,Adults & Health,London Care Plc,Home Care - Private Contractors Payment,65.52,0.00,COMMERCIAL SUPPLIER 
 01-12-2021,Adults & Health,London Care Plc,Home Care - Private Contractors Payment,98.28,0.00,COMMERCIAL SUPPLIER 
 01-12-2021,Adults & Health,London Care Plc,Daycare - Private Contractors Payment,56.16,0.00,COMMERCIAL SUPPLIER 
 01-12-2021,Adults & Health,London Care Plc,Home Care - Private Contractors Payment,163.80,0.00,COMMERCIAL SUPPLIER 
 01-12-2021,Adults & Health,London Care Plc,Home Care - Private Contractors Payment,262.08,0.00,COMMERCIAL SUPPLIER 
 01-12-2021,Adults & Health,London Care Plc,Home Care - Private Contractors Payment,18.72,0.00,COMMERCIAL SUPPLIER 
 01-12-2021,Adults & Health,London Care Plc,Home Care - Private Contractors Payment,28.08,0.00,COMMERCIAL SUPPLIER 
 01-12-2021,Adults & Health,London Care Plc,Home Care - Private Contractors Payment,37.44,0.00,COMMERCIAL SUPPLIER 
 01-12-2021,Adults & Health,London Care Plc,Home Care - Private Contractors Payment,229.32,0.00,COMMERCIAL SUPPLIER 
 01-12-2021,Adults & Health,London Care Plc,Home Care - Private Contractors Payment,18.72,0.00,COMMERCIAL SUPPLIER 
 01-12-2021,Adults & Health,London Care Plc,Home Care - Private Contractors Payment,18.72,0.00,COMMERCIAL SUPPLIER 
 01-12-2021,Adults & Health,London Care Plc,Daycare - Private Contractors Payment,18.72,0.00,COMMERCIAL SUPPLIER 
 01-12-2021,Adults & Health,London Care Plc,Home Care - Private Contractors Payment,262.08,0.00,COMMERCIAL SUPPLIER 
 01-12-2021,Adults & Health,London Care Plc,Home Care - Private Contractors Payment,327.60,0.00,COMMERCIAL SUPPLIER 
 01-12-2021,Adults & Health,London Care Plc,Home Care - Private Contractors Payment,262.08,0.00,COMMERCIAL SUPPLIER 
 01-12-2021,Adults & Health,London Care Plc,Home Care - Private Contractors Payment,79.56,0.00,COMMERCIAL SUPPLIER 
 01-12-2021,Adults & Health,London Care Plc,Home Care - Private Contractors Payment,196.56,0.00,COMMERCIAL SUPPLIER 
 01-12-2021,Adults & Health,London Care Plc,Daycare - Private Contractors Payment,56.16,0.00,COMMERCIAL SUPPLIER 
 01-12-2021,Adults & Health,London Care Plc,Home Care - Private Contractors Payment,74.88,0.00,COMMERCIAL SUPPLIER 
 01-12-2021,Adults & Health,London Care Plc,Home Care - Private Contractors Payment,131.04,0.00,COMMERCIAL SUPPLIER 
 01-12-2021,Adults & Health,London Care Plc,Home Care - Private Contractors Payment,98.28,0.00,COMMERCIAL SUPPLIER 
 01-12-2021,Adults & Health,London Care Plc,Home Care - Private Contractors Payment,93.60,0.00,COMMERCIAL SUPPLIER 
 01-12-2021,Adults & Health,London Care Plc,Daycare - Private Contractors Payment,74.88,0.00,COMMERCIAL SUPPLIER 
 01-12-2021,Adults & Health,London Care Plc,Home Care - Private Contractors Payment,37.44,0.00,COMMERCIAL SUPPLIER 
 01-12-2021,Adults & Health,London Care Plc,Home Care - Private Contractors Payment,18.72,0.00,COMMERCIAL SUPPLIER 
 01-12-2021,Adults & Health,London Care Plc,Home Care - Private Contractors Payment,28.08,0.00,COMMERCIAL SUPPLIER 
 01-12-2021,Adults & Health,London Care Plc,Home Care - Private Contractors Payment,229.32,0.00,COMMERCIAL SUPPLIER 
 01-12-2021,Adults & Health,London Care Plc,Home Care - Private Contractors Payment,18.72,0.00,COMMERCIAL SUPPLIER 
 01-12-2021,Adults & Health,London Care Plc,Daycare - Private Contractors Payment,28.08,0.00,COMMERCIAL SUPPLIER 
 01-12-2021,Adults & Health,London Care Plc,Daycare - Private Contractors Payment,262.08,0.00,COMMERCIAL SUPPLIER 
 01-12-2021,Adults & Health,London Care Plc,Home Care - Private Contractors Payment,18.72,0.00,COMMERCIAL SUPPLIER 
 01-12-2021,Adults & Health,London Care Plc,Home Care - Private Contractors Payment,65.52,0.00,COMMERCIAL SUPPLIER 
 01-12-2021,Adults & Health,London Care Plc,Daycare - Private Contractors Payment,28.08,0.00,COMMERCIAL SUPPLIER 
 01-12-2021,Adults & Health,London Care Plc,Home Care - Private Contractors Payment,170.98,0.00,COMMERCIAL SUPPLIER 
 01-12-2021,Adults & Health,London Care Plc,Home Care - Private Contractors Payment,149.76,0.00,COMMERCIAL SUPPLIER 
 01-12-2021,Adults & Health,London Care Plc,Home Care - Private Contractors Payment,262.08,0.00,COMMERCIAL SUPPLIER 
 01-12-2021,Adults & Health,London Care Plc,Home Care - Private Contractors Payment,425.88,0.00,COMMERCIAL SUPPLIER 
 01-12-2021,Adults & Health,London Care Plc,Home Care - Private Contractors Payment,65.52,0.00,COMMERCIAL SUPPLIER 
 01-12-2021,Adults & Health,London Care Plc,Daycare - Private Contractors Payment,74.88,0.00,COMMERCIAL SUPPLIER 
 01-12-2021,Adults & Health,London Care Plc,Home Care - Private Contractors Payment,556.92,0.00,COMMERCIAL SUPPLIER 
 01-12-2021,Adults & Health,London Care Plc,Home Care - Private Contractors Payment,28.08,0.00,COMMERCIAL SUPPLIER 
 01-12-2021,Adults & Health,London Care Plc,Home Care - Private Contractors Payment,33.72,0.00,COMMERCIAL SUPPLIER 
 01-12-2021,Adults & Health,London Care Plc,Daycare - Private Contractors Payment,46.80,0.00,COMMERCIAL SUPPLIER 
 01-12-2021,Adults & Health,London Care Plc,Home Care - Private Contractors Payment,37.44,0.00,COMMERCIAL SUPPLIER 
 01-12-2021,Adults & Health,London Care Plc,Home Care - Private Contractors Payment,37.44,0.00,COMMERCIAL SUPPLIER 
 01-12-2021,Adults & Health,London Care Plc,Home Care - Private Contractors Payment,56.16,0.00,COMMERCIAL SUPPLIER 
 01-12-2021,Adults & Health,London Care Plc,Home Care - Private Contractors Payment,524.16,0.00,COMMERCIAL SUPPLIER 
 01-12-2021,Adults & Health,London Care Plc,Daycare - Private Contractors Payment,56.16,0.00,COMMERCIAL SUPPLIER 
 01-12-2021,Adults & Health,London Care Plc,Home Care - Private Contractors Payment,168.48,0.00,COMMERCIAL SUPPLIER 
 01-12-2021,Adults & Health,London Care Plc,Home Care - Private Contractors Payment,205.92,0.00,COMMERCIAL SUPPLIER 
 01-12-2021,Adults & Health,London Care Plc,Home Care - Private Contractors Payment,445.56,0.00,COMMERCIAL SUPPLIER 
 01-12-2021,Adults & Health,London Care Plc,Home Care - Private Contractors Payment,37.44,0.00,COMMERCIAL SUPPLIER 
 01-12-2021,Adults & Health,London Care Plc,Home Care - Private Contractors Payment,131.04,0.00,COMMERCIAL SUPPLIER 
 01-12-2021,Adults & Health,London Care Plc,Home Care - Private Contractors Payment,98.28,0.00,COMMERCIAL SUPPLIER 
 01-12-2021,Adults & Health,London Care Plc,Home Care - Private Contractors Payment,37.44,0.00,COMMERCIAL SUPPLIER 
 01-12-2021,Adults & Health,London Care Plc,Daycare - Private Contractors Payment,93.60,0.00,COMMERCIAL SUPPLIER 
 01-12-2021,Adults & Health,London Care Plc,Home Care - Private Contractors Payment,154.44,0.00,COMMERCIAL SUPPLIER 
 01-12-2021,Adults & Health,London Care Plc,Home Care - Private Contractors Payment,229.32,0.00,COMMERCIAL SUPPLIER 
 01-12-2021,Adults & Health,London Care Plc,Home Care - Private Contractors Payment,65.52,0.00,COMMERCIAL SUPPLIER 
 01-12-2021,Adults & Health,London Care Plc,Home Care - Private Contractors Payment,18.72,0.00,COMMERCIAL SUPPLIER 
 01-12-2021,Adults & Health,London Care Plc,Home Care - Private Contractors Payment,262.08,0.00,COMMERCIAL SUPPLIER 
 01-12-2021,Adults & Health,London Care Plc,Daycare - Private Contractors Payment,112.32,0.00,COMMERCIAL SUPPLIER 
 01-12-2021,Adults & Health,London Care Plc,Home Care - Private Contractors Payment,229.32,0.00,COMMERCIAL SUPPLIER 
 01-12-2021,Adults & Health,London Care Plc,Home Care - Private Contractors Payment,229.32,0.00,COMMERCIAL SUPPLIER 
 01-12-2021,Adults & Health,London Care Plc,Daycare - Private Contractors Payment,46.80,0.00,COMMERCIAL SUPPLIER 
 01-12-2021,Adults & Health,London Care Plc,Home Care - Private Contractors Payment,393.12,0.00,COMMERCIAL SUPPLIER 
 01-12-2021,Adults & Health,London Care Plc,Home Care - Private Contractors Payment,37.44,0.00,COMMERCIAL SUPPLIER 
 01-12-2021,Adults & Health,London Care Plc,Home Care - Private Contractors Payment,42.12,0.00,COMMERCIAL SUPPLIER 
 01-12-2021,Adults & Health,London Care Plc,Home Care - Private Contractors Payment,18.72,0.00,COMMERCIAL SUPPLIER 
 01-12-2021,Adults & Health,London Care Plc,Home Care - Private Contractors Payment,262.08,0.00,COMMERCIAL SUPPLIER 
 01-12-2021,Adults & Health,London Care Plc,Home Care - Private Contractors Payment,28.08,0.00,COMMERCIAL SUPPLIER 
 01-12-2021,Adults & Health,London Care Plc,Daycare - Private Contractors Payment,18.72,0.00,COMMERCIAL SUPPLIER 
 01-12-2021,Adults & Health,London Care Plc,Home Care - Private Contractors Payment,18.72,0.00,COMMERCIAL SUPPLIER 
 01-12-2021,Adults & Health,London Care Plc,Home Care - Private Contractors Payment,425.88,0.00,COMMERCIAL SUPPLIER 
 01-12-2021,Adults & Health,London Care Plc,Home Care - Private Contractors Payment,28.08,0.00,COMMERCIAL SUPPLIER 
 01-12-2021,Adults & Health,London Care Plc,Home Care - Private Contractors Payment,28.08,0.00,COMMERCIAL SUPPLIER 
 01-12-2021,Adults & Health,London Care Plc,Home Care - Private Contractors Payment,163.80,0.00,COMMERCIAL SUPPLIER 
 01-12-2021,Adults & Health,London Care Plc,Home Care - Private Contractors Payment,135.72,0.00,COMMERCIAL SUPPLIER 
 01-12-2021,Adults & Health,London Care Plc,Daycare - Private Contractors Payment,93.60,0.00,COMMERCIAL SUPPLIER 
 01-12-2021,Adults & Health,London Care Plc,Home Care - Private Contractors Payment,561.60,0.00,COMMERCIAL SUPPLIER 
 01-12-2021,Adults & Health,London Care Plc,Daycare - Private Contractors Payment,28.08,0.00,COMMERCIAL SUPPLIER 
 01-12-2021,Adults & Health,London Care Plc,Home Care - Private Contractors Payment,196.56,0.00,COMMERCIAL SUPPLIER 
 01-12-2021,Adults & Health,London Care Plc,Home Care - Private Contractors Payment,229.32,0.00,COMMERCIAL SUPPLIER 
 01-12-2021,Adults & Health,London Care Plc,Home Care - Private Contractors Payment,294.84,0.00,COMMERCIAL SUPPLIER 
 01-12-2021,Adults & Health,London Care Plc,Home Care - Private Contractors Payment,131.04,0.00,COMMERCIAL SUPPLIER 
 01-12-2021,Adults & Health,London Care Plc,Home Care - Private Contractors Payment,65.52,0.00,COMMERCIAL SUPPLIER 
 01-12-2021,Adults & Health,London Care Plc,Daycare - Private Contractors Payment,37.44,0.00,COMMERCIAL SUPPLIER 
 01-12-2021,Adults & Health,London Care Plc,Home Care - Private Contractors Payment,18.72,0.00,COMMERCIAL SUPPLIER 
 01-12-2021,Adults & Health,London Care Plc,Home Care - Private Contractors Payment,4.68,0.00,COMMERCIAL SUPPLIER 
 01-12-2021,Adults & Health,London Care Plc,Home Care - Private Contractors Payment,229.32,0.00,COMMERCIAL SUPPLIER 
 01-12-2021,Adults & Health,London Care Plc,Home Care - Private Contractors Payment,229.32,0.00,COMMERCIAL SUPPLIER 
 01-12-2021,Adults & Health,London Care Plc,Home Care - Private Contractors Payment,93.60,0.00,COMMERCIAL SUPPLIER 
 01-12-2021,Adults & Health,London Care Plc,Home Care - Private Contractors Payment,163.80,0.00,COMMERCIAL SUPPLIER 
 01-12-2021,Adults & Health,London Care Plc,Home Care - Private Contractors Payment,18.72,0.00,COMMERCIAL SUPPLIER 
 01-12-2021,Adults & Health,London Care Plc,Home Care - Private Contractors Payment,28.08,0.00,COMMERCIAL SUPPLIER 
 01-12-2021,Adults & Health,London Care Plc,Home Care - Private Contractors Payment,163.80,0.00,COMMERCIAL SUPPLIER 
 01-12-2021,Adults & Health,London Care Plc,Daycare - Private Contractors Payment,18.72,0.00,COMMERCIAL SUPPLIER 
 01-12-2021,Adults & Health,London Care Plc,Home Care - Private Contractors Payment,131.04,0.00,COMMERCIAL SUPPLIER 
 01-12-2021,Adults & Health,London Care Plc,Home Care - Private Contractors Payment,18.72,0.00,COMMERCIAL SUPPLIER 
 01-12-2021,Adults & Health,London Care Plc,Home Care - Private Contractors Payment,149.76,0.00,COMMERCIAL SUPPLIER 
 01-12-2021,Adults & Health,London Care Plc,Home Care - Private Contractors Payment,9.36,0.00,COMMERCIAL SUPPLIER 
 01-12-2021,Adults & Health,London Care Plc,Home Care - Private Contractors Payment,18.72,0.00,COMMERCIAL SUPPLIER 
 01-12-2021,Adults & Health,London Care Plc,Home Care - Private Contractors Payment,294.84,0.00,COMMERCIAL SUPPLIER 
 01-12-2021,Adults & Health,London Care Plc,Home Care - Private Contractors Payment,294.84,0.00,COMMERCIAL SUPPLIER 
 01-12-2021,Adults & Health,London Care Plc,Home Care - Private Contractors Payment,262.08,0.00,COMMERCIAL SUPPLIER 
 01-12-2021,Adults & Health,London Care Plc,Home Care - Private Contractors Payment,37.44,0.00,COMMERCIAL SUPPLIER 
 01-12-2021,Adults & Health,London Care Plc,Home Care - Private Contractors Payment,18.72,0.00,COMMERCIAL SUPPLIER 
 01-12-2021,Adults & Health,London Care Plc,Home Care - Private Contractors Payment,196.56,0.00,COMMERCIAL SUPPLIER 
 01-12-2021,Adults & Health,London Care Plc,Home Care - Private Contractors Payment,229.32,0.00,COMMERCIAL SUPPLIER 
 01-12-2021,Adults & Health,London Care Plc,Home Care - Private Contractors Payment,18.72,0.00,COMMERCIAL SUPPLIER 
 01-12-2021,Adults & Health,London Care Plc,Daycare - Private Contractors Payment,37.44,0.00,COMMERCIAL SUPPLIER 
 01-12-2021,Adults & Health,London Care Plc,Home Care - Private Contractors Payment,131.04,0.00,COMMERCIAL SUPPLIER 
 01-12-2021,Adults & Health,London Care Plc,Home Care - Private Contractors Payment,229.32,0.00,COMMERCIAL SUPPLIER 
 01-12-2021,Adults & Health,London Care Plc,Home Care - Private Contractors Payment,327.60,0.00,COMMERCIAL SUPPLIER 
 01-12-2021,Adults & Health,London Care Plc,Home Care - Private Contractors Payment,327.60,0.00,COMMERCIAL SUPPLIER 
 01-12-2021,Children and Young People,Sarah Harris Early Help & Safeguarding Consultant,Staff Development And Training,395.00,0.00,COMMERCIAL SUPPLIER 
 01-12-2021,"People, Policy and Performance",Beckton Community Projects,Events,2500.00,0.00,VOLUNTARY ORGANISATION 
 01-12-2021,Inclusive Economy & Housing,Hays Specialist Recruitment Ltd,Staff Recruitment Costs,2148.65,0.00,VENDOR 
 01-12-2021,Children and Young People,Wesley Gryk Solicitors LLP,Legal Fees,3000.00,0.00,COMMERCIAL SUPPLIER 
 01-12-2021,Children and Young People,Wesley Gryk Solicitors LLP,Legal Fees,190.00,0.00,COMMERCIAL SUPPLIER 
 01-12-2021,Balance Sheet,Stannah Lift Services Ltd,Capital Outlay,326.25,0.00,CIS 
 01-12-2021,oneSource,Daisy Corporate Services Trading Ltd,Land Line Telephone Costs,6928.18,0.00,COMMERCIAL SUPPLIER 
 01-12-2021,oneSource,Daisy Corporate Services Trading Ltd,Land Line Telephone Costs,2345.67,0.00,COMMERCIAL SUPPLIER 
 01-12-2021,oneSource,Daisy Corporate Services Trading Ltd,Land Line Telephone Costs,22029.28,0.00,COMMERCIAL SUPPLIER 
 01-12-2021,Housing Revenue Account,Daisy Corporate Services Trading Ltd,Land Line Telephone Costs,409.13,0.00,COMMERCIAL SUPPLIER 
 01-12-2021,Housing Revenue Account,Daisy Corporate Services Trading Ltd,Land Line Telephone Costs,2507.40,0.00,COMMERCIAL SUPPLIER 
 01-12-2021,Children and Young People,Goldline Cars Ltd,Client Transport,11828.00,0.00,COMMERCIAL SUPPLIER 
 01-12-2021,RMS,Drain Aid Ltd,Private Contractors Payment - Other,600.00,0.00,COMMERCIAL SUPPLIER 
 01-12-2021,"People, Policy and Performance",Personal Information - Redacted,Consultancy Fees,787.50,0.00,VENDOR 
 01-12-2021,Dedicated Schools Budget,Personal Information - Redacted,Professional Services - General,1016.60,0.00,COMMERCIAL SUPPLIER 
 01-12-2021,Balance Sheet,New Country Homes Limited,Capital Outlay,7154.76,0.00,COMMERCIAL SUPPLIER 
 01-12-2021,Balance Sheet,New Country Homes Limited,Capital Outlay,5967.49,0.00,COMMERCIAL SUPPLIER 
 01-12-2021,RMS,Master Locking Systems Ltd,"Purchase - Equipment, Furniture And Materials",250.00,0.00,COMMERCIAL SUPPLIER 
 01-12-2021,Balance Sheet,Network Rail Infrastructure Limited,Capital Outlay,1397.12,0.00,COMMERCIAL SUPPLIER 
 01-12-2021,Environment and Sustainable Transport,Greener Solutions,Highway Services,0.32,0.00,VENDOR 
 01-12-2021,Environment and Sustainable Transport,Greener Solutions,Highway Services,150.00,0.00,VENDOR 
 01-12-2021,Environment and Sustainable Transport,Greener Solutions,Highway Services,288.75,0.00,VENDOR 
 01-12-2021,Environment and Sustainable Transport,Greener Solutions,Highway Services,74.40,0.00,VENDOR 
 01-12-2021,Environment and Sustainable Transport,Greener Solutions,Highway Services,131.76,0.00,VENDOR 
 01-12-2021,RMS,A M Forktrucks Ltd,Vehicle Hire,810.33,0.00,COMMERCIAL SUPPLIER 
 01-12-2021,RMS,A M Forktrucks Ltd,Vehicle Hire,433.33,0.00,COMMERCIAL SUPPLIER 
 01-12-2021,Adults & Health,The Nelson House Recovery Trust,Payment To Health Authorities,3085.56,0.00,VENDOR 
 01-12-2021,Inclusive Economy & Housing,L M Installations Ltd,"Maintenance - Equipment, Furniture And Materials",833.10,0.00,CIS 
 01-12-2021,Balance Sheet,TEB Builders Ltd,Capital Outlay,17999.09,0.00,COMMERCIAL SUPPLIER 
 01-12-2021,Children and Young People,Childhood First,Residential Placements - Private Contractors Payment,1198.40,0.00,NON COMMERCIAL SUPPLIER 
 01-12-2021,Children and Young People,Childhood First,Residential Placements - Private Contractors Payment,4793.60,0.00,NON COMMERCIAL SUPPLIER 
 01-12-2021,Children and Young People,Childhood First,Residential Placements - Private Contractors Payment,4793.60,0.00,NON COMMERCIAL SUPPLIER 
 01-12-2021,Children and Young People,Childhood First,Residential Placements - Private Contractors Payment,1198.40,0.00,NON COMMERCIAL SUPPLIER 
 01-12-2021,Children and Young People,Childhood First,Residential Placements - Private Contractors Payment,1198.40,0.00,NON COMMERCIAL SUPPLIER 
 01-12-2021,Children and Young People,Childhood First,Residential Placements - Private Contractors Payment,4793.60,0.00,NON COMMERCIAL SUPPLIER 
 01-12-2021,Children and Young People,Childhood First,Residential Placements - Private Contractors Payment,1198.40,0.00,NON COMMERCIAL SUPPLIER 
 01-12-2021,Children and Young People,Childhood First,Residential Placements - Private Contractors Payment,4793.60,0.00,NON COMMERCIAL SUPPLIER 
 01-12-2021,Balance Sheet,Stantec UK Limited,Capital Outlay,4300.00,0.00,COMMERCIAL SUPPLIER 
 01-12-2021,Housing Revenue Account,GATEVILLE LIMITED,"Maintenance - Equipment, Furniture And Materials",29363.55,0.00,COMMERCIAL SUPPLIER 
 01-12-2021,Balance Sheet,GATEVILLE LIMITED,Capital Outlay,8532.51,0.00,COMMERCIAL SUPPLIER 
 01-12-2021,Balance Sheet,GATEVILLE LIMITED,Capital Outlay,6632.00,0.00,COMMERCIAL SUPPLIER 
 01-12-2021,Balance Sheet,GATEVILLE LIMITED,Capital Outlay,5913.00,0.00,COMMERCIAL SUPPLIER 
 01-12-2021,Balance Sheet,GATEVILLE LIMITED,Capital Outlay,5913.00,0.00,COMMERCIAL SUPPLIER 
 01-12-2021,Balance Sheet,London and South East Electrical Ltd,Capital Outlay,4855.00,0.00,COMMERCIAL SUPPLIER 
 01-12-2021,Adults & Health,Plex Properties Ltd,Rents Payable,4370.00,0.00,COMMERCIAL SUPPLIER 
 01-12-2021,Adults & Health,Plex Properties Ltd,Rents Payable,2660.00,0.00,COMMERCIAL SUPPLIER 
 01-12-2021,Adults & Health,Plex Properties Ltd,Rents Payable,2660.00,0.00,COMMERCIAL SUPPLIER 
 01-12-2021,Adults & Health,Plex Properties Ltd,Rents Payable,2660.00,0.00,COMMERCIAL SUPPLIER 
 01-12-2021,Adults & Health,Plex Properties Ltd,Rents Payable,2660.00,0.00,COMMERCIAL SUPPLIER 
 01-12-2021,Adults & Health,Plex Properties Ltd,Rents Payable,2660.00,0.00,COMMERCIAL SUPPLIER 
 01-12-2021,Adults & Health,Plex Properties Ltd,Rents Payable,2660.00,0.00,COMMERCIAL SUPPLIER 
 01-12-2021,Adults & Health,Plex Properties Ltd,Rents Payable,2660.00,0.00,COMMERCIAL SUPPLIER 
 01-12-2021,Children and Young People,Fusion Fostering,Fostering Agency Placements - Private Contractors Payment,750.00,0.00,COMMERCIAL SUPPLIER 
 01-12-2021,Children and Young People,Fusion Fostering,Fostering Agency Placements - Private Contractors Payment,750.00,0.00,COMMERCIAL SUPPLIER 
 01-12-2021,Children and Young People,Fusion Fostering,Fostering Agency Placements - Private Contractors Payment,750.00,0.00,COMMERCIAL SUPPLIER 
 01-12-2021,Children and Young People,Fusion Fostering,Fostering Agency Placements - Private Contractors Payment,750.00,0.00,COMMERCIAL SUPPLIER 
 01-12-2021,Children and Young People,Fusion Fostering,Fostering Agency Placements - Private Contractors Payment,750.00,0.00,COMMERCIAL SUPPLIER 
 01-12-2021,Children and Young People,Fusion Fostering,Fostering Agency Placements - Private Contractors Payment,750.00,0.00,COMMERCIAL SUPPLIER 
 01-12-2021,Children and Young People,Fusion Fostering,Fostering Agency Placements - Private Contractors Payment,750.00,0.00,COMMERCIAL SUPPLIER 
 01-12-2021,Children and Young People,Fusion Fostering,Fostering Agency Placements - Private Contractors Payment,750.00,0.00,COMMERCIAL SUPPLIER 
 01-12-2021,Children and Young People,Language Link Plus Ltd,Legal Fees,278.52,0.00,NON COMMERCIAL SUPPLIER 
 01-12-2021,oneSource,Bdi Securities,Security Services (Excluding Premises),1059.75,0.00,COMMERCIAL SUPPLIER 
 01-12-2021,oneSource,Bdi Securities,Security Services (Excluding Premises),418.50,0.00,COMMERCIAL SUPPLIER 
 01-12-2021,Children and Young People,Fusion Fostering,Fostering Agency Placements - Private Contractors Payment,750.00,0.00,COMMERCIAL SUPPLIER 
 01-12-2021,Children and Young People,Fusion Fostering,Fostering Agency Placements - Private Contractors Payment,750.00,0.00,COMMERCIAL SUPPLIER 
 01-12-2021,Children and Young People,Fusion Fostering,Fostering Agency Placements - Private Contractors Payment,750.00,0.00,COMMERCIAL SUPPLIER 
 01-12-2021,Children and Young People,Fusion Fostering,Fostering Agency Placements - Private Contractors Payment,750.00,0.00,COMMERCIAL SUPPLIER 
 01-12-2021,Children and Young People,Fusion Fostering,Fostering Agency Placements - Private Contractors Payment,750.00,0.00,COMMERCIAL SUPPLIER 
 01-12-2021,Children and Young People,Fusion Fostering,Fostering Agency Placements - Private Contractors Payment,750.00,0.00,COMMERCIAL SUPPLIER 
 01-12-2021,Children and Young People,Fusion Fostering,Fostering Agency Placements - Private Contractors Payment,750.00,0.00,COMMERCIAL SUPPLIER 
 01-12-2021,Children and Young People,Fusion Fostering,Fostering Agency Placements - Private Contractors Payment,750.00,0.00,COMMERCIAL SUPPLIER 
 01-12-2021,Children and Young People,Fusion Fostering,Fostering Agency Placements - Private Contractors Payment,711.24,0.00,COMMERCIAL SUPPLIER 
 01-12-2021,Children and Young People,Fusion Fostering,Fostering Agency Placements - Private Contractors Payment,711.24,0.00,COMMERCIAL SUPPLIER 
 01-12-2021,Children and Young People,Fusion Fostering,Fostering Agency Placements - Private Contractors Payment,711.24,0.00,COMMERCIAL SUPPLIER 
 01-12-2021,Children and Young People,Fusion Fostering,Fostering Agency Placements - Private Contractors Payment,711.24,0.00,COMMERCIAL SUPPLIER 
 01-12-2021,Children and Young People,Fusion Fostering,Fostering Agency Placements - Private Contractors Payment,833.86,0.00,COMMERCIAL SUPPLIER 
 01-12-2021,Children and Young People,Fusion Fostering,Fostering Agency Placements - Private Contractors Payment,833.70,0.00,COMMERCIAL SUPPLIER 
 01-12-2021,Children and Young People,Fusion Fostering,Fostering Agency Placements - Private Contractors Payment,833.70,0.00,COMMERCIAL SUPPLIER 
 01-12-2021,Children and Young People,Fusion Fostering,Fostering Agency Placements - Private Contractors Payment,833.70,0.00,COMMERCIAL SUPPLIER 
 01-12-2021,Balance Sheet,AECOM Infrastructure & Environment UK Limited,Capital Outlay,3560.00,0.00,COMMERCIAL SUPPLIER 
 01-12-2021,Housing Revenue Account,Ocean Media Group Ltd,Private Contractors Payment - Other,870.00,0.00,COMMERCIAL SUPPLIER 
 01-12-2021,Housing Revenue Account,Every Project Counts Ltd (Epc),Professional Services - General,923.62,0.00,CIS 
 01-12-2021,Housing Revenue Account,TEC Quality Ltd,Consultancy Fees,1290.00,0.00,COMMERCIAL SUPPLIER 
 01-12-2021,Children and Young People,Crystal Washrooms t/a CrystalCare,Private Contractors Payment - Other,221.62,0.00,VENDOR 
 01-12-2021,Children and Young People,Resources for Autism,Professional Services - General,563.94,0.00,COMMERCIAL SUPPLIER 
 01-12-2021,Housing Revenue Account,IFR Services Ltd t/a Drain Doctor London Central,Waste Disposal Costs,1140.00,0.00,COMMERCIAL SUPPLIER 
 01-12-2021,Housing Revenue Account,IFR Services Ltd t/a Drain Doctor London Central,Waste Disposal Costs,225.00,0.00,COMMERCIAL SUPPLIER 
 01-12-2021,Adults & Health,Barts Health NHS Trust,Professional Services - General,100919.49,0.00,NHS BODIES 
 01-12-2021,Environment and Sustainable Transport,Personal Information - Redacted,Legal Fees,1750.00,0.00,INDIVIDUALS 
 01-12-2021,Adults & Health,Hope Superjobs Ltd,Home Care - Private Contractors Payment,691.53,0.00,COMMERCIAL SUPPLIER 
 01-12-2021,Adults & Health,Hope Superjobs Ltd,Home Care - Private Contractors Payment,691.53,0.00,COMMERCIAL SUPPLIER 
 01-12-2021,Adults & Health,Hope Superjobs Ltd,Home Care - Private Contractors Payment,691.53,0.00,COMMERCIAL SUPPLIER 
 01-12-2021,Adults & Health,Hope Superjobs Ltd,Home Care - Private Contractors Payment,691.53,0.00,COMMERCIAL SUPPLIER 
 01-12-2021,Adults & Health,Hope Superjobs Ltd,Home Care - Private Contractors Payment,691.53,0.00,COMMERCIAL SUPPLIER 
 01-12-2021,Adults & Health,Hope Superjobs Ltd,Home Care - Private Contractors Payment,691.53,0.00,COMMERCIAL SUPPLIER 
 01-12-2021,Adults & Health,Hope Superjobs Ltd,Home Care - Private Contractors Payment,691.53,0.00,COMMERCIAL SUPPLIER 
 01-12-2021,Adults & Health,Hope Superjobs Ltd,Home Care - Private Contractors Payment,691.53,0.00,COMMERCIAL SUPPLIER 
 01-12-2021,Adults & Health,Hope Superjobs Ltd,Home Care - Private Contractors Payment,691.53,0.00,COMMERCIAL SUPPLIER 
 01-12-2021,Adults & Health,Hope Superjobs Ltd,Home Care - Private Contractors Payment,383.41,0.00,COMMERCIAL SUPPLIER 
 01-12-2021,Adults & Health,Hope Superjobs Ltd,Home Care - Private Contractors Payment,999.65,0.00,COMMERCIAL SUPPLIER 
 01-12-2021,Adults & Health,Hope Superjobs Ltd,Home Care - Private Contractors Payment,691.53,0.00,COMMERCIAL SUPPLIER 
 01-12-2021,Adults & Health,Hope Superjobs Ltd,Home Care - Private Contractors Payment,760.83,0.00,COMMERCIAL SUPPLIER 
 01-12-2021,Adults & Health,Hope Superjobs Ltd,Home Care - Private Contractors Payment,999.65,0.00,COMMERCIAL SUPPLIER 
 01-12-2021,Adults & Health,Hope Superjobs Ltd,Home Care - Private Contractors Payment,943.49,0.00,COMMERCIAL SUPPLIER 
 01-12-2021,Environment and Sustainable Transport,Sparshatt Truck & Van Ltd,Highway Services,244.24,0.00,COMMERCIAL SUPPLIER 
 01-12-2021,oneSource,Personal Information - Redacted,Miscellaneous Expenses,50280.58,0.00,LOCAL AUTHORITY SERVICES 
 01-12-2021,Environment and Sustainable Transport,Fast Forward (Factors) Ltd,Highway Services,76.01,0.00,COMMERCIAL SUPPLIER 
 01-12-2021,Environment and Sustainable Transport,Fast Forward (Factors) Ltd,Highway Services,38.13,0.00,COMMERCIAL SUPPLIER 
 01-12-2021,Environment and Sustainable Transport,Fast Forward (Factors) Ltd,Highway Services,76.01,0.00,COMMERCIAL SUPPLIER 
 01-12-2021,Environment and Sustainable Transport,Fast Forward (Factors) Ltd,Highway Services,42.62,0.00,COMMERCIAL SUPPLIER 
 01-12-2021,Environment and Sustainable Transport,Fast Forward (Factors) Ltd,Highway Services,87.45,0.00,COMMERCIAL SUPPLIER 
 01-12-2021,Housing Revenue Account,Antony Hodari Solicitors,Legal Fees,967.81,0.00,LEGAL SERVICES 
 01-12-2021,Housing Revenue Account,Antony Hodari Solicitors,Legal Fees,4165.92,0.00,LEGAL SERVICES 
 01-12-2021,Balance Sheet,WT Partnership,Capital Outlay,2480.00,0.00,COMMERCIAL SUPPLIER 
 01-12-2021,RMS,Southern Drain Services Ltd,Private Contractors Payment - Other,1535.00,0.00,COMMERCIAL SUPPLIER 
 01-12-2021,Resources,Jones Lang LaSalle Ltd,Consultancy Fees,387500.00,0.00,COMMERCIAL SUPPLIER 
 01-12-2021,oneSource,Data Interchange Plc,Ict Hardware,252.74,0.00,COMMERCIAL SUPPLIER 
 01-12-2021,Environment and Sustainable Transport,Worldline IT Services UK Ltd Re Fuel Genie,Transport Fuel,280.81,0.00,COMMERCIAL SUPPLIER 
 01-12-2021,Environment and Sustainable Transport,Worldline IT Services UK Ltd Re Fuel Genie,Transport Fuel,993.78,0.00,COMMERCIAL SUPPLIER 
 01-12-2021,Balance Sheet,Rivington St Studio,Capital Outlay,5300.00,0.00,VENDOR 
 01-12-2021,oneSource,Thomson Reuters,Legal Fees,28219.92,0.00,COMMERCIAL SUPPLIER 
 01-12-2021,Children and Young People,Radical Services Ltd,Residential Placements - Private Contractors Payment,6200.00,0.00,COMMERCIAL SUPPLIER 
 01-12-2021,Children and Young People,Radical Services Ltd,Residential Placements - Private Contractors Payment,6200.00,0.00,COMMERCIAL SUPPLIER 
 01-12-2021,Children and Young People,Radical Services Ltd,Residential Placements - Private Contractors Payment,6200.00,0.00,COMMERCIAL SUPPLIER 
 01-12-2021,Children and Young People,Radical Services Ltd,Residential Placements - Private Contractors Payment,7971.43,0.00,COMMERCIAL SUPPLIER 
 01-12-2021,Housing Revenue Account,GLM Legal LLP t/a Rowan Rose Solicitors,Legal Fees,3357.39,0.00,NON COMMERCIAL SUPPLIER 
 01-12-2021,Housing Revenue Account,Ask Legal Solicitors,Legal Fees,4000.00,0.00,COMMERCIAL SUPPLIER 
 01-12-2021,Environment and Sustainable Transport,Portakabin Ltd,Premises Hire - Facilities,3067.37,0.00,COMMERCIAL SUPPLIER 
 01-12-2021,oneSource - Non Shared,Building A Future (Newham Schools) Limited,"Maintenance - Equipment, Furniture And Materials",270490.62,0.00,VENDOR 
 01-12-2021,oneSource - Non Shared,Building A Future (Newham Schools) Limited,"Maintenance - Equipment, Furniture And Materials",71101.65,0.00,VENDOR 
 01-12-2021,oneSource - Non Shared,Building A Future (Newham Schools) Limited,"Maintenance - Equipment, Furniture And Materials",70354.01,0.00,VENDOR 
 01-12-2021,Balance Sheet,Newham Learning Partnership (Project Co) Limited,Capital Outlay,62500.00,0.00,VENDOR 
 01-12-2021,oneSource - Non Shared,Newham Learning Partnership (Project Co) Limited,"Maintenance - Equipment, Furniture And Materials",308118.65,0.00,VENDOR 
 01-12-2021,oneSource - Non Shared,Newham Learning Partnership (Project Co) Limited,"Maintenance - Equipment, Furniture And Materials",380979.25,0.00,VENDOR 
 01-12-2021,oneSource - Non Shared,Newham Learning Partnership (Project Co) Limited,"Maintenance - Equipment, Furniture And Materials",22571.00,0.00,VENDOR 
 01-12-2021,oneSource - Non Shared,Newham Learning Partnership (Project Co) Limited,"Maintenance - Equipment, Furniture And Materials",17689.00,0.00,VENDOR 
 01-12-2021,"People, Policy and Performance",NEC Software Solutions UK Ltd,Ict Licences,550.00,0.00,COMMERCIAL SUPPLIER 
 01-12-2021,RMS,Benchmarx Kitchens and Joinery,Consultancy Fees,293.39,0.00,COMMERCIAL SUPPLIER 
 01-12-2021,Children and Young People,Dormwell Ltd T/A Street Support,Supported Other Accommodation - Private Contractors Payment,375.00,0.00,FOSTER CARERS 
 01-12-2021,Children and Young People,Dormwell Ltd T/A Street Support,Supported Other Accommodation - Private Contractors Payment,107.14,0.00,FOSTER CARERS 
 01-12-2021,Children and Young People,Dormwell Ltd T/A Street Support,Supported Other Accommodation - Private Contractors Payment,375.00,0.00,FOSTER CARERS 
 01-12-2021,Inclusive Economy & Housing,Miles & Partners LLP,Legal Fees,5650.00,0.00,COMMERCIAL SUPPLIER 
 01-12-2021,Adults & Health,Blade Security UK,Security Of Premises,13770.00,0.00,COMMERCIAL SUPPLIER 
 01-12-2021,Adults & Health,CommUNITY Barnet,Private Contractors Payment - Other,13750.00,0.00,VOLUNTARY ORGANISATION 
 01-12-2021,Adults & Health,Look Ahead Housing and Care Ltd,Supported Other Accommodation - Private Contractors Payment,199.80,0.00,COMMERCIAL SUPPLIER 
 01-12-2021,Adults & Health,Look Ahead Housing and Care Ltd,Supported Other Accommodation - Private Contractors Payment,413.40,0.00,COMMERCIAL SUPPLIER 
 01-12-2021,Adults & Health,Look Ahead Housing and Care Ltd,Supported Other Accommodation - Private Contractors Payment,413.40,0.00,COMMERCIAL SUPPLIER 
 01-12-2021,Adults & Health,Look Ahead Housing and Care Ltd,Supported Other Accommodation - Private Contractors Payment,413.40,0.00,COMMERCIAL SUPPLIER 
 01-12-2021,Environment and Sustainable Transport,City Traffic Management Services Ltd,"Purchase - Equipment, Furniture And Materials",625.00,0.00,COMMERCIAL SUPPLIER 
 01-12-2021,Environment and Sustainable Transport,City Traffic Management Services Ltd,"Purchase - Equipment, Furniture And Materials",3520.00,0.00,COMMERCIAL SUPPLIER 
 01-12-2021,Children and Young People,Developing Steps Nursery,Section 17 - Private Contractors Payment,825.00,0.00,NON COMMERCIAL SUPPLIER 
 01-12-2021,Children and Young People,Developing Steps Nursery,Section 17 - Private Contractors Payment,660.00,0.00,NON COMMERCIAL SUPPLIER 
 01-12-2021,Children and Young People,Developing Steps Nursery,Section 17 - Private Contractors Payment,825.00,0.00,NON COMMERCIAL SUPPLIER 
 01-12-2021,Children and Young People,Developing Steps Nursery,Section 17 - Private Contractors Payment,660.00,0.00,NON COMMERCIAL SUPPLIER 
 01-12-2021,Children and Young People,Developing Steps Nursery,Section 17 - Private Contractors Payment,660.00,0.00,NON COMMERCIAL SUPPLIER 
 01-12-2021,Children and Young People,Developing Steps Nursery,Section 17 - Private Contractors Payment,825.00,0.00,NON COMMERCIAL SUPPLIER 
 01-12-2021,Children and Young People,Developing Steps Nursery,Section 17 - Private Contractors Payment,660.00,0.00,NON COMMERCIAL SUPPLIER 
 01-12-2021,Balance Sheet,Nhs Pension  Scheme,Pension Fund Sundry Creditor,2635.03,0.00,INDIVIDUALS 
 01-12-2021,Balance Sheet,Nhs Pension  Scheme,Pension Fund Sundry Creditor,4852.22,0.00,INDIVIDUALS 
 01-12-2021,Balance Sheet,Nhs Pension  Scheme,Pension Fund Sundry Creditor,98807.16,0.00,INDIVIDUALS 
 01-12-2021,Children and Young People,Ecass - Evolve Care And Support Service,Supported Other Accommodation - Private Contractors Payment,450.00,0.00,COMMERCIAL SUPPLIER 
 01-12-2021,Children and Young People,Ecass - Evolve Care And Support Service,Supported Other Accommodation - Private Contractors Payment,450.00,0.00,COMMERCIAL SUPPLIER 
 01-12-2021,Children and Young People,Ecass - Evolve Care And Support Service,Supported Other Accommodation - Private Contractors Payment,450.00,0.00,COMMERCIAL SUPPLIER 
 01-12-2021,Children and Young People,Ecass - Evolve Care And Support Service,Supported Other Accommodation - Private Contractors Payment,450.00,0.00,COMMERCIAL SUPPLIER 
 01-12-2021,Children and Young People,Ecass - Evolve Care And Support Service,Supported Other Accommodation - Private Contractors Payment,450.00,0.00,COMMERCIAL SUPPLIER 
 01-12-2021,Children and Young People,Ecass - Evolve Care And Support Service,Supported Other Accommodation - Private Contractors Payment,450.00,0.00,COMMERCIAL SUPPLIER 
 01-12-2021,Children and Young People,Ecass - Evolve Care And Support Service,Supported Other Accommodation - Private Contractors Payment,450.00,0.00,COMMERCIAL SUPPLIER 
 01-12-2021,Children and Young People,Ecass - Evolve Care And Support Service,Supported Other Accommodation - Private Contractors Payment,450.00,0.00,COMMERCIAL SUPPLIER 
 01-12-2021,Inclusive Economy & Housing,Chartered Institute of Environmental Health-cieh,Staff Development And Training,495.00,0.00,NON COMMERCIAL SUPPLIER 
 01-12-2021,Adults & Health,East London Care And Support Limited,Home Care - Private Contractors Payment,527.40,0.00,VENDOR 
 01-12-2021,Adults & Health,East London Care And Support Limited,Home Care - Private Contractors Payment,748.80,0.00,VENDOR 
 01-12-2021,Adults & Health,East London Care And Support Limited,Home Care - Private Contractors Payment,748.80,0.00,VENDOR 
 01-12-2021,Adults & Health,East London Care And Support Limited,Home Care - Private Contractors Payment,748.80,0.00,VENDOR 
 01-12-2021,Adults & Health,Matrix Scm,Agency Staff,714.76,0.00, 
 01-12-2021,Adults & Health,Matrix Scm,Agency Staff,2019.75,0.00, 
 01-12-2021,Adults & Health,Matrix Scm,Agency Staff,941.92,0.00, 
 01-12-2021,Adults & Health,Matrix Scm,Agency Staff,1169.28,0.00, 
 01-12-2021,Adults & Health,Matrix Scm,Agency Staff,1169.28,0.00, 
 01-12-2021,Adults & Health,Matrix Scm,Agency Staff,746.28,0.00, 
 01-12-2021,Adults & Health,Matrix Scm,Agency Staff,304.36,0.00, 
 01-12-2021,Adults & Health,Matrix Scm,Agency Staff,436.60,0.00, 
 01-12-2021,Adults & Health,Matrix Scm,Agency Staff,152.18,0.00, 
 01-12-2021,Adults & Health,Matrix Scm,Agency Staff,592.53,0.00, 
 01-12-2021,Adults & Health,Matrix Scm,Agency Staff,145.68,0.00, 
 01-12-2021,Adults & Health,Matrix Scm,Agency Staff,182.61,0.00, 
 01-12-2021,Adults & Health,Matrix Scm,Agency Staff,374.22,0.00, 
 01-12-2021,Adults & Health,Matrix Scm,Agency Staff,202.90,0.00, 
 01-12-2021,Adults & Health,Matrix Scm,Agency Staff,2772.75,0.00, 
 01-12-2021,Children and Young People,Matrix Scm,Agency Staff,1160.64,0.00, 
 01-12-2021,Children and Young People,Matrix Scm,Agency Staff,1860.48,0.00, 
 01-12-2021,Children and Young People,Matrix Scm,Agency Staff,1650.96,0.00, 
 01-12-2021,Children and Young People,Matrix Scm,Agency Staff,1680.48,0.00, 
 01-12-2021,Environment and Sustainable Transport,Matrix Scm,Agency Staff,208.22,0.00, 
 01-12-2021,Environment and Sustainable Transport,Matrix Scm,Agency Staff,460.38,0.00, 
 01-12-2021,Environment and Sustainable Transport,Matrix Scm,Agency Staff,516.96,0.00, 
 01-12-2021,Environment and Sustainable Transport,Matrix Scm,Agency Staff,208.22,0.00, 
 01-12-2021,Environment and Sustainable Transport,Matrix Scm,Agency Staff,344.21,0.00, 
 01-12-2021,Environment and Sustainable Transport,Matrix Scm,Agency Staff,502.60,0.00, 
 01-12-2021,Environment and Sustainable Transport,Matrix Scm,Agency Staff,576.35,0.00, 
 01-12-2021,Environment and Sustainable Transport,Matrix Scm,Agency Staff,516.96,0.00, 
 01-12-2021,Environment and Sustainable Transport,Matrix Scm,Agency Staff,520.55,0.00, 
 01-12-2021,Environment and Sustainable Transport,Matrix Scm,Agency Staff,520.55,0.00, 
 01-12-2021,Environment and Sustainable Transport,Matrix Scm,Agency Staff,520.55,0.00, 
 01-12-2021,Environment and Sustainable Transport,Matrix Scm,Agency Staff,126.88,0.00, 
 01-12-2021,Environment and Sustainable Transport,Matrix Scm,Agency Staff,580.35,0.00, 
 01-12-2021,Environment and Sustainable Transport,Matrix Scm,Agency Staff,705.25,0.00, 
 01-12-2021,Environment and Sustainable Transport,Matrix Scm,Agency Staff,645.48,0.00, 
 01-12-2021,Environment and Sustainable Transport,Matrix Scm,Agency Staff,645.48,0.00, 
 01-12-2021,Children and Young People,Matrix Scm,Agency Staff,409.38,0.00, 
 01-12-2021,Children and Young People,Matrix Scm,Agency Staff,319.40,0.00, 
 01-12-2021,Children and Young People,Matrix Scm,Agency Staff,316.20,0.00, 
 01-12-2021,Children and Young People,Matrix Scm,Agency Staff,322.00,0.00, 
 01-12-2021,Environment and Sustainable Transport,Matrix Scm,Agency Staff,1429.33,0.00, 
 01-12-2021,Environment and Sustainable Transport,Matrix Scm,Agency Staff,330.99,0.00, 
 01-12-2021,Environment and Sustainable Transport,Matrix Scm,Agency Staff,60.18,0.00, 
 01-12-2021,Environment and Sustainable Transport,Matrix Scm,Agency Staff,540.86,0.00, 
 01-12-2021,Inclusive Economy & Housing,Matrix Scm,Agency Staff,1540.39,0.00, 
 01-12-2021,Inclusive Economy & Housing,Matrix Scm,Agency Staff,894.42,0.00, 
 01-12-2021,Inclusive Economy & Housing,Matrix Scm,Agency Staff,1493.66,0.00, 
 01-12-2021,Inclusive Economy & Housing,Matrix Scm,Agency Staff,1504.08,0.00, 
 01-12-2021,Inclusive Economy & Housing,Matrix Scm,Agency Staff,673.04,0.00, 
 01-12-2021,Adults & Health,Matrix Scm,Agency Staff,955.08,0.00, 
 01-12-2021,Adults & Health,Matrix Scm,Agency Staff,1688.58,0.00, 
 01-12-2021,Adults & Health,Matrix Scm,Agency Staff,843.30,0.00, 
 01-12-2021,Adults & Health,Matrix Scm,Agency Staff,2851.45,0.00, 
 01-12-2021,Adults & Health,Matrix Scm,Agency Staff,611.60,0.00, 
 01-12-2021,Adults & Health,Matrix Scm,Agency Staff,611.60,0.00, 
 01-12-2021,Adults & Health,Matrix Scm,Agency Staff,648.82,0.00, 
 01-12-2021,Adults & Health,Matrix Scm,Agency Staff,2033.75,0.00, 
 01-12-2021,Adults & Health,Matrix Scm,Agency Staff,859.56,0.00, 
 01-12-2021,Adults & Health,Matrix Scm,Agency Staff,25.95,0.00, 
 01-12-2021,Adults & Health,Matrix Scm,Agency Staff,896.68,0.00, 
 01-12-2021,Adults & Health,Matrix Scm,Agency Staff,0.00,0.00, 
 01-12-2021,Adults & Health,Matrix Scm,Agency Staff,599.44,0.00, 
 01-12-2021,Adults & Health,Matrix Scm,Agency Staff,869.01,0.00, 
 01-12-2021,Adults & Health,Matrix Scm,Agency Staff,1060.76,0.00, 
 01-12-2021,Adults & Health,Matrix Scm,Agency Staff,135.88,0.00, 
 01-12-2021,Adults & Health,Matrix Scm,Agency Staff,1016.60,0.00, 
 01-12-2021,Adults & Health,Matrix Scm,Agency Staff,67.70,0.00, 
 01-12-2021,Adults & Health,Matrix Scm,Agency Staff,743.45,0.00, 
 01-12-2021,Adults & Health,Matrix Scm,Agency Staff,863.47,0.00, 
 01-12-2021,Adults & Health,Matrix Scm,Agency Staff,748.78,0.00, 
 01-12-2021,Environment and Sustainable Transport,Matrix Scm,Agency Staff,643.68,0.00, 
 01-12-2021,Environment and Sustainable Transport,Matrix Scm,Agency Staff,516.96,0.00, 
 01-12-2021,Environment and Sustainable Transport,Matrix Scm,Agency Staff,226.38,0.00, 
 01-12-2021,Environment and Sustainable Transport,Matrix Scm,Agency Staff,576.74,0.00, 
 01-12-2021,Environment and Sustainable Transport,Matrix Scm,Agency Staff,672.86,0.00, 
 01-12-2021,Environment and Sustainable Transport,Matrix Scm,Agency Staff,100.52,0.00, 
 01-12-2021,Environment and Sustainable Transport,Matrix Scm,Agency Staff,603.12,0.00, 
 01-12-2021,Environment and Sustainable Transport,Matrix Scm,Agency Staff,621.07,0.00, 
 01-12-2021,Environment and Sustainable Transport,Matrix Scm,Agency Staff,574.91,0.00, 
 01-12-2021,Environment and Sustainable Transport,Matrix Scm,Agency Staff,565.22,0.00, 
 01-12-2021,Environment and Sustainable Transport,Matrix Scm,Agency Staff,592.74,0.00, 
 01-12-2021,Environment and Sustainable Transport,Matrix Scm,Agency Staff,576.74,0.00, 
 01-12-2021,Environment and Sustainable Transport,Matrix Scm,Agency Staff,576.74,0.00, 
 01-12-2021,Environment and Sustainable Transport,Matrix Scm,Agency Staff,576.74,0.00, 
 01-12-2021,Environment and Sustainable Transport,Matrix Scm,Agency Staff,574.91,0.00, 
 01-12-2021,Environment and Sustainable Transport,Matrix Scm,Agency Staff,750.58,0.00, 
 01-12-2021,Environment and Sustainable Transport,Matrix Scm,Agency Staff,2208.50,0.00, 
 01-12-2021,RMS,Matrix Scm,Agency Staff,944.00,0.00, 
 01-12-2021,RMS,Matrix Scm,Agency Staff,769.88,0.00, 
 01-12-2021,RMS,Matrix Scm,Agency Staff,898.92,0.00, 
 01-12-2021,RMS,Matrix Scm,Agency Staff,754.50,0.00, 
 01-12-2021,RMS,Matrix Scm,Agency Staff,1073.71,0.00, 
 01-12-2021,RMS,Matrix Scm,Agency Staff,1064.65,0.00, 
 01-12-2021,RMS,Matrix Scm,Agency Staff,390.88,0.00, 
 01-12-2021,RMS,Matrix Scm,Agency Staff,1064.65,0.00, 
 01-12-2021,RMS,Matrix Scm,Agency Staff,1150.50,0.00, 
 01-12-2021,RMS,Matrix Scm,Agency Staff,1163.20,0.00, 
 01-12-2021,RMS,Matrix Scm,Agency Staff,730.90,0.00, 
 01-12-2021,RMS,Matrix Scm,Agency Staff,188.80,0.00, 
 01-12-2021,RMS,Matrix Scm,Agency Staff,775.04,0.00, 
 01-12-2021,RMS,Matrix Scm,Agency Staff,799.10,0.00, 
 01-12-2021,oneSource - Non Shared,Matrix Scm,Agency Staff,1686.01,0.00, 
 01-12-2021,Inclusive Economy & Housing,Matrix Scm,Agency Staff,879.12,0.00, 
 01-12-2021,Inclusive Economy & Housing,Matrix Scm,Agency Staff,982.08,0.00, 
 01-12-2021,Inclusive Economy & Housing,Matrix Scm,Agency Staff,838.08,0.00, 
 01-12-2021,Inclusive Economy & Housing,Matrix Scm,Agency Staff,820.80,0.00, 
 01-12-2021,Inclusive Economy & Housing,Matrix Scm,Agency Staff,853.92,0.00, 
 01-12-2021,Adults & Health,Matrix Scm,Agency Staff,1069.92,0.00, 
 01-12-2021,Adults & Health,Matrix Scm,Agency Staff,1069.92,0.00, 
 01-12-2021,Inclusive Economy & Housing,Matrix Scm,Agency Staff,748.44,0.00, 
 01-12-2021,Inclusive Economy & Housing,Matrix Scm,Agency Staff,1021.69,0.00, 
 01-12-2021,Inclusive Economy & Housing,Matrix Scm,Agency Staff,748.44,0.00, 
 01-12-2021,Inclusive Economy & Housing,Matrix Scm,Agency Staff,724.32,0.00, 
 01-12-2021,Inclusive Economy & Housing,Matrix Scm,Agency Staff,988.94,0.00, 
 01-12-2021,Inclusive Economy & Housing,Matrix Scm,Agency Staff,877.68,0.00, 
 01-12-2021,Inclusive Economy & Housing,Matrix Scm,Agency Staff,949.68,0.00, 
 01-12-2021,Inclusive Economy & Housing,Matrix Scm,Agency Staff,722.53,0.00, 
 01-12-2021,Inclusive Economy & Housing,Matrix Scm,Agency Staff,730.44,0.00, 
 01-12-2021,Inclusive Economy & Housing,Matrix Scm,Agency Staff,967.33,0.00, 
 01-12-2021,Inclusive Economy & Housing,Matrix Scm,Agency Staff,877.68,0.00, 
 01-12-2021,Inclusive Economy & Housing,Matrix Scm,Agency Staff,1002.85,0.00, 
 01-12-2021,Inclusive Economy & Housing,Matrix Scm,Agency Staff,840.96,0.00, 
 01-12-2021,Inclusive Economy & Housing,Matrix Scm,Agency Staff,971.30,0.00, 
 01-12-2021,Environment and Sustainable Transport,Matrix Scm,Agency Staff,572.77,0.00, 
 01-12-2021,Environment and Sustainable Transport,Matrix Scm,Agency Staff,482.16,0.00, 
 01-12-2021,RMS,Matrix Scm,Agency Staff,1477.50,0.00, 
 01-12-2021,RMS,Matrix Scm,Agency Staff,720.42,0.00, 
 01-12-2021,RMS,Matrix Scm,Agency Staff,1200.70,0.00, 
 01-12-2021,RMS,Matrix Scm,Agency Staff,1121.60,0.00, 
 01-12-2021,RMS,Matrix Scm,Agency Staff,404.67,0.00, 
 01-12-2021,RMS,Matrix Scm,Agency Staff,1245.00,0.00, 
 01-12-2021,RMS,Matrix Scm,Agency Staff,1682.40,0.00, 
 01-12-2021,Environment and Sustainable Transport,Matrix Scm,Agency Staff,576.74,0.00, 
 01-12-2021,Environment and Sustainable Transport,Matrix Scm,Agency Staff,576.74,0.00, 
 01-12-2021,Environment and Sustainable Transport,Matrix Scm,Agency Staff,576.74,0.00, 
 01-12-2021,Environment and Sustainable Transport,Matrix Scm,Agency Staff,574.91,0.00, 
 01-12-2021,Environment and Sustainable Transport,Matrix Scm,Agency Staff,458.48,0.00, 
 01-12-2021,Environment and Sustainable Transport,Matrix Scm,Agency Staff,502.60,0.00, 
 01-12-2021,Environment and Sustainable Transport,Matrix Scm,Agency Staff,703.64,0.00, 
 01-12-2021,Environment and Sustainable Transport,Matrix Scm,Agency Staff,542.97,0.00, 
 01-12-2021,Environment and Sustainable Transport,Matrix Scm,Agency Staff,341.72,0.00, 
 01-12-2021,Environment and Sustainable Transport,Matrix Scm,Agency Staff,460.59,0.00, 
 01-12-2021,Environment and Sustainable Transport,Matrix Scm,Agency Staff,565.22,0.00, 
 01-12-2021,Environment and Sustainable Transport,Matrix Scm,Agency Staff,752.96,0.00, 
 01-12-2021,Environment and Sustainable Transport,Matrix Scm,Agency Staff,516.96,0.00, 
 01-12-2021,Environment and Sustainable Transport,Matrix Scm,Agency Staff,100.52,0.00, 
 01-12-2021,Environment and Sustainable Transport,Matrix Scm,Agency Staff,224.14,0.00, 
 01-12-2021,Environment and Sustainable Transport,Matrix Scm,Agency Staff,688.88,0.00, 
 01-12-2021,Environment and Sustainable Transport,Matrix Scm,Agency Staff,515.17,0.00, 
 01-12-2021,Environment and Sustainable Transport,Matrix Scm,Agency Staff,115.01,0.00, 
 01-12-2021,Environment and Sustainable Transport,Matrix Scm,Agency Staff,389.60,0.00, 
 01-12-2021,Environment and Sustainable Transport,Matrix Scm,Agency Staff,343.35,0.00, 
 01-12-2021,Environment and Sustainable Transport,Matrix Scm,Agency Staff,143.52,0.00, 
 01-12-2021,Environment and Sustainable Transport,Matrix Scm,Agency Staff,416.44,0.00, 
 01-12-2021,Environment and Sustainable Transport,Matrix Scm,Agency Staff,352.44,0.00, 
 01-12-2021,Environment and Sustainable Transport,Matrix Scm,Agency Staff,574.91,0.00, 
 01-12-2021,Environment and Sustainable Transport,Matrix Scm,Agency Staff,721.44,0.00, 
 01-12-2021,Environment and Sustainable Transport,Matrix Scm,Agency Staff,721.44,0.00, 
 01-12-2021,Environment and Sustainable Transport,Matrix Scm,Agency Staff,226.38,0.00, 
 01-12-2021,Environment and Sustainable Transport,Matrix Scm,Agency Staff,574.91,0.00, 
 01-12-2021,Environment and Sustainable Transport,Matrix Scm,Agency Staff,502.60,0.00, 
 01-12-2021,Environment and Sustainable Transport,Matrix Scm,Agency Staff,458.48,0.00, 
 01-12-2021,Environment and Sustainable Transport,Matrix Scm,Agency Staff,464.60,0.00, 
 01-12-2021,Environment and Sustainable Transport,Matrix Scm,Agency Staff,576.74,0.00, 
 01-12-2021,Environment and Sustainable Transport,Matrix Scm,Agency Staff,129.99,0.00, 
 01-12-2021,Environment and Sustainable Transport,Matrix Scm,Agency Staff,500.85,0.00, 
 01-12-2021,Environment and Sustainable Transport,Matrix Scm,Agency Staff,118.86,0.00, 
 01-12-2021,Environment and Sustainable Transport,Matrix Scm,Agency Staff,560.70,0.00, 
 01-12-2021,Environment and Sustainable Transport,Matrix Scm,Agency Staff,352.44,0.00, 
 01-12-2021,Environment and Sustainable Transport,Matrix Scm,Agency Staff,516.96,0.00, 
 01-12-2021,Environment and Sustainable Transport,Matrix Scm,Agency Staff,515.17,0.00, 
 01-12-2021,Environment and Sustainable Transport,Matrix Scm,Agency Staff,104.11,0.00, 
 01-12-2021,Environment and Sustainable Transport,Matrix Scm,Agency Staff,601.92,0.00, 
 01-12-2021,Environment and Sustainable Transport,Matrix Scm,Agency Staff,597.05,0.00, 
 01-12-2021,Environment and Sustainable Transport,Matrix Scm,Agency Staff,574.91,0.00, 
 01-12-2021,Environment and Sustainable Transport,Matrix Scm,Agency Staff,430.80,0.00, 
 01-12-2021,Environment and Sustainable Transport,Matrix Scm,Agency Staff,304.10,0.00, 
 01-12-2021,Environment and Sustainable Transport,Matrix Scm,Agency Staff,569.15,0.00, 
 01-12-2021,Environment and Sustainable Transport,Matrix Scm,Agency Staff,460.59,0.00, 
 01-12-2021,Environment and Sustainable Transport,Matrix Scm,Agency Staff,558.95,0.00, 
 01-12-2021,Environment and Sustainable Transport,Matrix Scm,Agency Staff,557.90,0.00, 
 01-12-2021,Environment and Sustainable Transport,Matrix Scm,Agency Staff,576.74,0.00, 
 01-12-2021,Environment and Sustainable Transport,Matrix Scm,Agency Staff,159.18,0.00, 
 01-12-2021,Environment and Sustainable Transport,Matrix Scm,Agency Staff,206.20,0.00, 
 01-12-2021,Environment and Sustainable Transport,Matrix Scm,Agency Staff,520.55,0.00, 
 01-12-2021,Environment and Sustainable Transport,Matrix Scm,Agency Staff,516.96,0.00, 
 01-12-2021,Environment and Sustainable Transport,Matrix Scm,Agency Staff,176.67,0.00, 
 01-12-2021,Environment and Sustainable Transport,Matrix Scm,Agency Staff,222.97,0.00, 
 01-12-2021,Environment and Sustainable Transport,Matrix Scm,Agency Staff,566.66,0.00, 
 01-12-2021,RMS,Matrix Scm,Agency Staff,179.04,0.00, 
 01-12-2021,RMS,Matrix Scm,Agency Staff,754.40,0.00, 
 01-12-2021,RMS,Matrix Scm,Agency Staff,172.32,0.00, 
 01-12-2021,RMS,Matrix Scm,Agency Staff,179.04,0.00, 
 01-12-2021,RMS,Matrix Scm,Agency Staff,754.40,0.00, 
 01-12-2021,RMS,Matrix Scm,Agency Staff,133.20,0.00, 
 01-12-2021,RMS,Matrix Scm,Agency Staff,538.20,0.00, 
 01-12-2021,RMS,Matrix Scm,Agency Staff,1535.65,0.00, 
 01-12-2021,RMS,Matrix Scm,Agency Staff,989.82,0.00, 
 01-12-2021,RMS,Matrix Scm,Agency Staff,811.65,0.00, 
 01-12-2021,RMS,Matrix Scm,Agency Staff,1429.15,0.00, 
 01-12-2021,RMS,Matrix Scm,Agency Staff,1454.99,0.00, 
 01-12-2021,RMS,Matrix Scm,Agency Staff,326.40,0.00, 
 01-12-2021,RMS,Matrix Scm,Agency Staff,1570.88,0.00, 
 01-12-2021,Inclusive Economy & Housing,Matrix Scm,Agency Staff,1272.20,0.00, 
 01-12-2021,Inclusive Economy & Housing,Matrix Scm,Agency Staff,1180.59,0.00, 
 01-12-2021,RMS,Matrix Scm,Agency Staff,1200.62,0.00, 
 01-12-2021,RMS,Matrix Scm,Agency Staff,829.26,0.00, 
 01-12-2021,RMS,Matrix Scm,Agency Staff,1470.56,0.00, 
 01-12-2021,RMS,Matrix Scm,Agency Staff,1442.28,0.00, 
 01-12-2021,RMS,Matrix Scm,Agency Staff,1014.93,0.00, 
 01-12-2021,RMS,Matrix Scm,Agency Staff,1373.33,0.00, 
 01-12-2021,RMS,Matrix Scm,Agency Staff,456.00,0.00, 
 01-12-2021,RMS,Matrix Scm,Agency Staff,548.25,0.00, 
 01-12-2021,RMS,Matrix Scm,Agency Staff,1034.17,0.00, 
 01-12-2021,RMS,Matrix Scm,Agency Staff,848.64,0.00, 
 01-12-2021,RMS,Matrix Scm,Agency Staff,1442.28,0.00, 
 01-12-2021,RMS,Matrix Scm,Agency Staff,784.40,0.00, 
 01-12-2021,RMS,Matrix Scm,Agency Staff,776.88,0.00, 
 01-12-2021,RMS,Matrix Scm,Agency Staff,879.48,0.00, 
 01-12-2021,RMS,Matrix Scm,Agency Staff,623.72,0.00, 
 01-12-2021,RMS,Matrix Scm,Agency Staff,1117.07,0.00, 
 01-12-2021,RMS,Matrix Scm,Agency Staff,1404.75,0.00, 
 01-12-2021,RMS,Matrix Scm,Agency Staff,1399.86,0.00, 
 01-12-2021,RMS,Matrix Scm,Agency Staff,894.16,0.00, 
 01-12-2021,RMS,Matrix Scm,Agency Staff,939.40,0.00, 
 01-12-2021,RMS,Matrix Scm,Agency Staff,767.88,0.00, 
 01-12-2021,RMS,Matrix Scm,Agency Staff,1682.40,0.00, 
 01-12-2021,RMS,Matrix Scm,Agency Staff,1477.50,0.00, 
 01-12-2021,RMS,Matrix Scm,Agency Staff,1422.24,0.00, 
 01-12-2021,Children and Young People,Matrix Scm,Agency Staff,844.57,0.00, 
 01-12-2021,Children and Young People,Matrix Scm,Agency Staff,586.50,0.00, 
 01-12-2021,Dedicated Schools Budget,Matrix Scm,Agency Staff,637.34,0.00, 
 01-12-2021,"People, Policy and Performance",Matrix Scm,Agency Staff,535.50,0.00, 
 01-12-2021,"People, Policy and Performance",Matrix Scm,Agency Staff,535.50,0.00, 
 01-12-2021,"People, Policy and Performance",Matrix Scm,Agency Staff,494.90,0.00, 
 01-12-2021,"People, Policy and Performance",Matrix Scm,Agency Staff,41.95,0.00, 
 01-12-2021,"People, Policy and Performance",Matrix Scm,Agency Staff,0.00,0.00, 
 01-12-2021,"People, Policy and Performance",Matrix Scm,Agency Staff,707.45,0.00, 
 01-12-2021,"People, Policy and Performance",Matrix Scm,Agency Staff,282.80,0.00, 
 01-12-2021,"People, Policy and Performance",Matrix Scm,Agency Staff,282.80,0.00, 
 01-12-2021,"People, Policy and Performance",Matrix Scm,Agency Staff,802.08,0.00, 
 01-12-2021,"People, Policy and Performance",Matrix Scm,Agency Staff,636.84,0.00, 
 01-12-2021,"People, Policy and Performance",Matrix Scm,Agency Staff,494.90,0.00, 
 01-12-2021,"People, Policy and Performance",Matrix Scm,Agency Staff,2285.20,0.00, 
 01-12-2021,"People, Policy and Performance",Matrix Scm,Agency Staff,4562.00,0.00, 
 01-12-2021,"People, Policy and Performance",Matrix Scm,Agency Staff,3992.75,0.00, 
 01-12-2021,"People, Policy and Performance",Matrix Scm,Agency Staff,3992.75,0.00, 
 01-12-2021,"People, Policy and Performance",Matrix Scm,Agency Staff,4562.00,0.00, 
 01-12-2021,Inclusive Economy & Housing,Matrix Scm,Agency Staff,2422.63,0.00, 
 01-12-2021,RMS,Matrix Scm,Agency Staff,1181.50,0.00, 
 01-12-2021,RMS,Matrix Scm,Agency Staff,1099.35,0.00, 
 01-12-2021,RMS,Matrix Scm,Agency Staff,780.50,0.00, 
 01-12-2021,RMS,Matrix Scm,Agency Staff,998.80,0.00, 
 01-12-2021,RMS,Matrix Scm,Agency Staff,744.40,0.00, 
 01-12-2021,RMS,Matrix Scm,Agency Staff,960.64,0.00, 
 01-12-2021,RMS,Matrix Scm,Agency Staff,998.80,0.00, 
 01-12-2021,RMS,Matrix Scm,Agency Staff,976.50,0.00, 
 01-12-2021,RMS,Matrix Scm,Agency Staff,1360.86,0.00, 
 01-12-2021,RMS,Matrix Scm,Agency Staff,1123.65,0.00, 
 01-12-2021,RMS,Matrix Scm,Agency Staff,998.80,0.00, 
 01-12-2021,RMS,Matrix Scm,Agency Staff,1747.90,0.00, 
 01-12-2021,RMS,Matrix Scm,Agency Staff,971.10,0.00, 
 01-12-2021,RMS,Matrix Scm,Agency Staff,1002.80,0.00, 
 01-12-2021,RMS,Matrix Scm,Agency Staff,1710.10,0.00, 
 01-12-2021,RMS,Matrix Scm,Agency Staff,1747.90,0.00, 
 01-12-2021,RMS,Matrix Scm,Agency Staff,1747.90,0.00, 
 01-12-2021,RMS,Matrix Scm,Agency Staff,1300.51,0.00, 
 01-12-2021,RMS,Matrix Scm,Agency Staff,998.80,0.00, 
 01-12-2021,RMS,Matrix Scm,Agency Staff,1216.32,0.00, 
 01-12-2021,RMS,Matrix Scm,Agency Staff,758.88,0.00, 
 01-12-2021,RMS,Matrix Scm,Agency Staff,628.00,0.00, 
 01-12-2021,RMS,Matrix Scm,Agency Staff,1045.44,0.00, 
 01-12-2021,RMS,Matrix Scm,Agency Staff,628.00,0.00, 
 01-12-2021,RMS,Matrix Scm,Agency Staff,2150.52,0.00, 
 01-12-2021,RMS,Matrix Scm,Agency Staff,819.20,0.00, 
 01-12-2021,RMS,Matrix Scm,Agency Staff,1045.44,0.00, 
 01-12-2021,RMS,Matrix Scm,Agency Staff,1212.96,0.00, 
 01-12-2021,RMS,Matrix Scm,Agency Staff,973.20,0.00, 
 01-12-2021,RMS,Matrix Scm,Agency Staff,701.66,0.00, 
 01-12-2021,RMS,Matrix Scm,Agency Staff,1056.62,0.00, 
 01-12-2021,RMS,Matrix Scm,Agency Staff,977.20,0.00, 
 01-12-2021,RMS,Matrix Scm,Agency Staff,1002.00,0.00, 
 01-12-2021,RMS,Matrix Scm,Agency Staff,1338.00,0.00, 
 01-12-2021,RMS,Matrix Scm,Agency Staff,1104.00,0.00, 
 01-12-2021,RMS,Matrix Scm,Agency Staff,1104.00,0.00, 
 01-12-2021,RMS,Matrix Scm,Agency Staff,1339.20,0.00, 
 01-12-2021,RMS,Matrix Scm,Agency Staff,1237.20,0.00, 
 01-12-2021,RMS,Matrix Scm,Agency Staff,1002.00,0.00, 
 01-12-2021,RMS,Matrix Scm,Agency Staff,849.00,0.00, 
 01-12-2021,RMS,Matrix Scm,Agency Staff,1380.30,0.00, 
 01-12-2021,RMS,Matrix Scm,Agency Staff,504.74,0.00, 
 01-12-2021,RMS,Matrix Scm,Agency Staff,1002.00,0.00, 
 01-12-2021,RMS,Matrix Scm,Agency Staff,172.32,0.00, 
 01-12-2021,Housing Revenue Account,Matrix Scm,Agency Staff,516.96,0.00, 
 01-12-2021,Housing Revenue Account,Matrix Scm,Agency Staff,589.31,0.00, 
 01-12-2021,Housing Revenue Account,Matrix Scm,Agency Staff,569.15,0.00, 
 01-12-2021,Housing Revenue Account,Matrix Scm,Agency Staff,596.88,0.00, 
 01-12-2021,Housing Revenue Account,Matrix Scm,Agency Staff,796.74,0.00, 
 01-12-2021,Housing Revenue Account,Matrix Scm,Agency Staff,736.65,0.00, 
 01-12-2021,Housing Revenue Account,Matrix Scm,Agency Staff,809.48,0.00, 
 01-12-2021,Children and Young People,Matrix Scm,Agency Staff,1349.28,0.00, 
 01-12-2021,Children and Young People,Matrix Scm,Agency Staff,937.08,0.00, 
 01-12-2021,Children and Young People,Matrix Scm,Agency Staff,1349.28,0.00, 
 01-12-2021,Adults & Health,Matrix Scm,Agency Staff,1408.80,0.00, 
 01-12-2021,Adults & Health,Matrix Scm,Agency Staff,536.55,0.00, 
 01-12-2021,Adults & Health,Matrix Scm,Agency Staff,555.70,0.00, 
 01-12-2021,Brighter Futures Director,Matrix Scm,Agency Staff,1080.35,0.00, 
 01-12-2021,Inclusive Economy & Housing,Matrix Scm,Agency Staff,177.10,0.00, 
 01-12-2021,Inclusive Economy & Housing,Matrix Scm,Agency Staff,619.85,0.00, 
 01-12-2021,"People, Policy and Performance",Matrix Scm,Agency Staff,688.50,0.00, 
 01-12-2021,Brighter Futures Director,Matrix Scm,Agency Staff,2269.15,0.00, 
 01-12-2021,Children and Young People,Matrix Scm,Agency Staff,337.13,0.00, 
 01-12-2021,Children and Young People,Matrix Scm,Agency Staff,1859.31,0.00, 
 01-12-2021,Children and Young People,Matrix Scm,Agency Staff,215.65,0.00, 
 01-12-2021,Children and Young People,Matrix Scm,Agency Staff,417.89,0.00, 
 01-12-2021,Brighter Futures Director,Matrix Scm,Agency Staff,41.95,0.00, 
 01-12-2021,Brighter Futures Director,Matrix Scm,Agency Staff,0.00,0.00, 
 01-12-2021,Brighter Futures Director,Matrix Scm,Agency Staff,41.95,0.00, 
 01-12-2021,Brighter Futures Director,Matrix Scm,Agency Staff,0.00,0.00, 
 01-12-2021,Brighter Futures Director,Matrix Scm,Agency Staff,921.25,0.00, 
 01-12-2021,Children and Young People,Matrix Scm,Agency Staff,1349.28,0.00, 
 01-12-2021,Children and Young People,Matrix Scm,Agency Staff,1349.28,0.00, 
 01-12-2021,Children and Young People,Matrix Scm,Agency Staff,1427.41,0.00, 
 01-12-2021,Children and Young People,Matrix Scm,Agency Staff,1601.28,0.00, 
 01-12-2021,Children and Young People,Matrix Scm,Agency Staff,1397.54,0.00, 
 01-12-2021,Children and Young People,Matrix Scm,Agency Staff,1601.28,0.00, 
 01-12-2021,Children and Young People,Matrix Scm,Agency Staff,1349.28,0.00, 
 01-12-2021,Children and Young People,Matrix Scm,Agency Staff,1349.28,0.00, 
 01-12-2021,Children and Young People,Matrix Scm,Agency Staff,1397.54,0.00, 
 01-12-2021,Children and Young People,Matrix Scm,Agency Staff,2289.45,0.00, 
 01-12-2021,Children and Young People,Matrix Scm,Agency Staff,39.15,0.00, 
 01-12-2021,Children and Young People,Matrix Scm,Agency Staff,13.95,0.00, 
 01-12-2021,Children and Young People,Matrix Scm,Agency Staff,1457.28,0.00, 
 01-12-2021,Children and Young People,Matrix Scm,Agency Staff,337.32,0.00, 
 01-12-2021,Children and Young People,Matrix Scm,Agency Staff,1457.28,0.00, 
 01-12-2021,Children and Young People,Matrix Scm,Agency Staff,1349.28,0.00, 
 01-12-2021,Children and Young People,Matrix Scm,Agency Staff,190.35,0.00, 
 01-12-2021,Children and Young People,Matrix Scm,Agency Staff,1601.28,0.00, 
 01-12-2021,Children and Young People,Matrix Scm,Agency Staff,1923.14,0.00, 
 01-12-2021,Children and Young People,Matrix Scm,Agency Staff,2246.95,0.00, 
 01-12-2021,Children and Young People,Matrix Scm,Agency Staff,1137.00,0.00, 
 01-12-2021,Housing Revenue Account,Matrix Scm,Agency Staff,2208.50,0.00, 
 01-12-2021,Housing Revenue Account,Matrix Scm,Agency Staff,752.65,0.00, 
 01-12-2021,Housing Revenue Account,Matrix Scm,Agency Staff,2208.50,0.00, 
 01-12-2021,Housing Revenue Account,Matrix Scm,Agency Staff,2208.50,0.00, 
 01-12-2021,Housing Revenue Account,Matrix Scm,Agency Staff,2758.50,0.00, 
 01-12-2021,Housing Revenue Account,Matrix Scm,Agency Staff,1963.10,0.00, 
 01-12-2021,Housing Revenue Account,Matrix Scm,Agency Staff,1933.50,0.00, 
 01-12-2021,Housing Revenue Account,Matrix Scm,Agency Staff,1941.20,0.00, 
 01-12-2021,Housing Revenue Account,Matrix Scm,Agency Staff,2208.50,0.00, 
 01-12-2021,Housing Revenue Account,Matrix Scm,Agency Staff,1655.10,0.00, 
 01-12-2021,Housing Revenue Account,Matrix Scm,Agency Staff,5.72,0.00, 
 01-12-2021,Housing Revenue Account,Matrix Scm,Agency Staff,2208.50,0.00, 
 01-12-2021,Housing Revenue Account,Matrix Scm,Agency Staff,1103.40,0.00, 
 01-12-2021,Housing Revenue Account,Matrix Scm,Agency Staff,1933.50,0.00, 
 01-12-2021,Housing Revenue Account,Matrix Scm,Agency Staff,720.99,0.00, 
 01-12-2021,Housing Revenue Account,Matrix Scm,Agency Staff,2208.50,0.00, 
 01-12-2021,Housing Revenue Account,Matrix Scm,Agency Staff,1227.00,0.00, 
 01-12-2021,Housing Revenue Account,Matrix Scm,Agency Staff,1227.00,0.00, 
 01-12-2021,Housing Revenue Account,Matrix Scm,Agency Staff,1319.48,0.00, 
 01-12-2021,Housing Revenue Account,Matrix Scm,Agency Staff,2537.00,0.00, 
 01-12-2021,Housing Revenue Account,Matrix Scm,Agency Staff,2226.42,0.00, 
 01-12-2021,Housing Revenue Account,Matrix Scm,Agency Staff,707.16,0.00, 
 01-12-2021,Housing Revenue Account,Matrix Scm,Agency Staff,254.48,0.00, 
 01-12-2021,Housing Revenue Account,Matrix Scm,Agency Staff,677.28,0.00, 
 01-12-2021,Housing Revenue Account,Matrix Scm,Agency Staff,550.43,0.00, 
 01-12-2021,Housing Revenue Account,Matrix Scm,Agency Staff,686.93,0.00, 
 01-12-2021,Housing Revenue Account,Matrix Scm,Agency Staff,638.56,0.00, 
 01-12-2021,Housing Revenue Account,Matrix Scm,Agency Staff,736.65,0.00, 
 01-12-2021,Housing Revenue Account,Matrix Scm,Agency Staff,589.32,0.00, 
 01-12-2021,Housing Revenue Account,Matrix Scm,Agency Staff,581.40,0.00, 
 01-12-2021,Housing Revenue Account,Matrix Scm,Agency Staff,689.28,0.00, 
 01-12-2021,Housing Revenue Account,Matrix Scm,Agency Staff,775.20,0.00, 
 01-12-2021,Housing Revenue Account,Matrix Scm,Agency Staff,516.96,0.00, 
 01-12-2021,Housing Revenue Account,Matrix Scm,Agency Staff,516.96,0.00, 
 01-12-2021,Housing Revenue Account,Matrix Scm,Agency Staff,795.36,0.00, 
 01-12-2021,Housing Revenue Account,Matrix Scm,Agency Staff,589.32,0.00, 
 01-12-2021,Housing Revenue Account,Matrix Scm,Agency Staff,994.20,0.00, 
 01-12-2021,Housing Revenue Account,Matrix Scm,Agency Staff,775.20,0.00, 
 01-12-2021,Housing Revenue Account,Matrix Scm,Agency Staff,516.96,0.00, 
 01-12-2021,Housing Revenue Account,Matrix Scm,Agency Staff,1356.60,0.00, 
 01-12-2021,Housing Revenue Account,Matrix Scm,Agency Staff,994.20,0.00, 
 01-12-2021,Housing Revenue Account,Matrix Scm,Agency Staff,1193.04,0.00, 
 01-12-2021,Housing Revenue Account,Matrix Scm,Agency Staff,585.00,0.00, 
 01-12-2021,Housing Revenue Account,Matrix Scm,Agency Staff,397.68,0.00, 
 01-12-2021,Housing Revenue Account,Matrix Scm,Agency Staff,589.32,0.00, 
 01-12-2021,Housing Revenue Account,Matrix Scm,Agency Staff,594.72,0.00, 
 01-12-2021,oneSource - Non Shared,Matrix Scm,Agency Staff,502.45,0.00, 
 01-12-2021,oneSource - Non Shared,Matrix Scm,Agency Staff,504.35,0.00, 
 01-12-2021,oneSource,Matrix Scm,Agency Staff,1167.49,0.00, 
 01-12-2021,Housing Revenue Account,Matrix Scm,Agency Staff,413.82,0.00, 
 01-12-2021,Housing Revenue Account,Matrix Scm,Agency Staff,804.65,0.00, 
 01-12-2021,Housing Revenue Account,Matrix Scm,Agency Staff,569.15,0.00, 
 01-12-2021,Housing Revenue Account,Matrix Scm,Agency Staff,208.22,0.00, 
 01-12-2021,Housing Revenue Account,Matrix Scm,Agency Staff,576.74,0.00, 
 01-12-2021,Housing Revenue Account,Matrix Scm,Agency Staff,344.21,0.00, 
 01-12-2021,Housing Revenue Account,Matrix Scm,Agency Staff,520.55,0.00, 
 01-12-2021,Environment and Sustainable Transport,Matrix Scm,Agency Staff,909.73,0.00, 
 01-12-2021,Environment and Sustainable Transport,Matrix Scm,Agency Staff,909.74,0.00, 
 01-12-2021,Environment and Sustainable Transport,Matrix Scm,Agency Staff,626.78,0.00, 
 01-12-2021,Environment and Sustainable Transport,Matrix Scm,Agency Staff,130.20,0.00, 
 01-12-2021,Environment and Sustainable Transport,Matrix Scm,Agency Staff,520.80,0.00, 
 01-12-2021,Environment and Sustainable Transport,Matrix Scm,Agency Staff,609.35,0.00, 
 01-12-2021,Environment and Sustainable Transport,Matrix Scm,Agency Staff,157.44,0.00, 
 01-12-2021,Environment and Sustainable Transport,Matrix Scm,Agency Staff,661.60,0.00, 
 01-12-2021,Environment and Sustainable Transport,Matrix Scm,Agency Staff,887.91,0.00, 
 01-12-2021,Environment and Sustainable Transport,Matrix Scm,Agency Staff,383.02,0.00, 
 01-12-2021,Environment and Sustainable Transport,Matrix Scm,Agency Staff,626.78,0.00, 
 01-12-2021,Environment and Sustainable Transport,Matrix Scm,Agency Staff,909.73,0.00, 
 01-12-2021,Environment and Sustainable Transport,Matrix Scm,Agency Staff,609.35,0.00, 
 01-12-2021,Environment and Sustainable Transport,Matrix Scm,Agency Staff,709.47,0.00, 
 01-12-2021,Environment and Sustainable Transport,Matrix Scm,Agency Staff,626.76,0.00, 
 01-12-2021,Environment and Sustainable Transport,Matrix Scm,Agency Staff,948.60,0.00, 
 01-12-2021,Environment and Sustainable Transport,Matrix Scm,Agency Staff,700.75,0.00, 
 01-12-2021,Environment and Sustainable Transport,Matrix Scm,Agency Staff,1002.70,0.00, 
 01-12-2021,Environment and Sustainable Transport,Matrix Scm,Agency Staff,626.76,0.00, 
 01-12-2021,Environment and Sustainable Transport,Matrix Scm,Agency Staff,169.76,0.00, 
 01-12-2021,Environment and Sustainable Transport,Matrix Scm,Agency Staff,669.60,0.00, 
 01-12-2021,Children and Young People,Matrix Scm,Agency Staff,920.51,0.00, 
 01-12-2021,Children and Young People,Matrix Scm,Agency Staff,1164.96,0.00, 
 01-12-2021,oneSource,Matrix Scm,Agency Staff,2272.28,0.00, 
 01-12-2021,oneSource,Matrix Scm,Agency Staff,421.44,0.00, 
 01-12-2021,oneSource,Matrix Scm,Agency Staff,2840.35,0.00, 
 01-12-2021,oneSource,Matrix Scm,Agency Staff,2840.35,0.00, 
 01-12-2021,oneSource,Matrix Scm,Agency Staff,2840.35,0.00, 
 01-12-2021,Resources,Matrix Scm,Agency Staff,2685.65,0.00, 
 01-12-2021,Resources,Matrix Scm,Agency Staff,2469.70,0.00, 
 01-12-2021,Resources,Matrix Scm,Agency Staff,2469.70,0.00, 
 01-12-2021,Resources,Matrix Scm,Agency Staff,348.35,0.00, 
 01-12-2021,Resources,Matrix Scm,Agency Staff,2090.13,0.00, 
 01-12-2021,oneSource,Matrix Scm,Agency Staff,4231.30,0.00, 
 01-12-2021,oneSource,Matrix Scm,Agency Staff,1692.52,0.00, 
 01-12-2021,oneSource,Matrix Scm,Agency Staff,1044.35,0.00, 
 01-12-2021,oneSource,Matrix Scm,Agency Staff,2403.65,0.00, 
 01-12-2021,Environment and Sustainable Transport,Matrix Scm,Agency Staff,1209.25,0.00, 
 01-12-2021,Housing Revenue Account,Matrix Scm,Agency Staff,1264.64,0.00, 
 01-12-2021,Housing Revenue Account,Matrix Scm,Agency Staff,758.07,0.00, 
 01-12-2021,Housing Revenue Account,Matrix Scm,Agency Staff,3568.50,0.00, 
 01-12-2021,Housing Revenue Account,Matrix Scm,Agency Staff,1164.61,0.00, 
 01-12-2021,Housing Revenue Account,Matrix Scm,Agency Staff,1164.61,0.00, 
 01-12-2021,Housing Revenue Account,Matrix Scm,Agency Staff,586.79,0.00, 
 01-12-2021,Housing Revenue Account,Matrix Scm,Agency Staff,168.81,0.00, 
 01-12-2021,Housing Revenue Account,Matrix Scm,Agency Staff,557.76,0.00, 
 01-12-2021,Housing Revenue Account,Matrix Scm,Agency Staff,622.50,0.00, 
 01-12-2021,Housing Revenue Account,Matrix Scm,Agency Staff,694.56,0.00, 
 01-12-2021,Housing Revenue Account,Matrix Scm,Agency Staff,178.74,0.00, 
 01-12-2021,Housing Revenue Account,Matrix Scm,Agency Staff,836.64,0.00, 
 01-12-2021,Housing Revenue Account,Matrix Scm,Agency Staff,2288.40,0.00, 
 01-12-2021,Adults & Health,Matrix Scm,Agency Staff,877.32,0.00, 
 01-12-2021,Adults & Health,Matrix Scm,Agency Staff,25.95,0.00, 
 01-12-2021,Adults & Health,Matrix Scm,Agency Staff,351.54,0.00, 
 01-12-2021,Adults & Health,Matrix Scm,Agency Staff,1030.57,0.00, 
 01-12-2021,Adults & Health,Matrix Scm,Agency Staff,922.49,0.00, 
 01-12-2021,Adults & Health,Matrix Scm,Agency Staff,613.25,0.00, 
 01-12-2021,Environment and Sustainable Transport,Matrix Scm,Agency Staff,1056.00,0.00, 
 01-12-2021,Environment and Sustainable Transport,Matrix Scm,Agency Staff,459.13,0.00, 
 01-12-2021,Environment and Sustainable Transport,Matrix Scm,Agency Staff,918.75,0.00, 
 01-12-2021,Environment and Sustainable Transport,Matrix Scm,Agency Staff,1224.00,0.00, 
 01-12-2021,Environment and Sustainable Transport,Matrix Scm,Agency Staff,1210.40,0.00, 
 01-12-2021,Environment and Sustainable Transport,Matrix Scm,Agency Staff,320.16,0.00, 
 01-12-2021,Environment and Sustainable Transport,Matrix Scm,Agency Staff,570.24,0.00, 
 01-12-2021,Environment and Sustainable Transport,Matrix Scm,Agency Staff,170.91,0.00, 
 01-12-2021,Environment and Sustainable Transport,Matrix Scm,Agency Staff,526.69,0.00, 
 01-12-2021,Environment and Sustainable Transport,Matrix Scm,Agency Staff,31.50,0.00, 
 01-12-2021,Environment and Sustainable Transport,Matrix Scm,Agency Staff,576.35,0.00, 
 01-12-2021,Environment and Sustainable Transport,Matrix Scm,Agency Staff,573.12,0.00, 
 01-12-2021,Environment and Sustainable Transport,Matrix Scm,Agency Staff,574.56,0.00, 
 01-12-2021,Environment and Sustainable Transport,Matrix Scm,Agency Staff,369.51,0.00, 
 01-12-2021,Environment and Sustainable Transport,Matrix Scm,Agency Staff,573.12,0.00, 
 01-12-2021,Environment and Sustainable Transport,Matrix Scm,Agency Staff,821.90,0.00, 
 01-12-2021,Environment and Sustainable Transport,Matrix Scm,Agency Staff,573.12,0.00, 
 01-12-2021,Environment and Sustainable Transport,Matrix Scm,Agency Staff,528.13,0.00, 
 01-12-2021,Environment and Sustainable Transport,Matrix Scm,Agency Staff,570.96,0.00, 
 01-12-2021,Environment and Sustainable Transport,Matrix Scm,Agency Staff,18.00,0.00, 
 01-12-2021,Environment and Sustainable Transport,Matrix Scm,Agency Staff,90.00,0.00, 
 01-12-2021,Environment and Sustainable Transport,Matrix Scm,Agency Staff,576.35,0.00, 
 01-12-2021,Environment and Sustainable Transport,Matrix Scm,Agency Staff,323.57,0.00, 
 01-12-2021,Environment and Sustainable Transport,Matrix Scm,Agency Staff,570.98,0.00, 
 01-12-2021,"People, Policy and Performance",Matrix Scm,Agency Staff,866.52,0.00, 
 01-12-2021,"People, Policy and Performance",Matrix Scm,Agency Staff,577.68,0.00, 
 01-12-2021,"People, Policy and Performance",Matrix Scm,Agency Staff,529.57,0.00, 
 01-12-2021,"People, Policy and Performance",Matrix Scm,Agency Staff,812.52,0.00, 
 01-12-2021,"People, Policy and Performance",Matrix Scm,Agency Staff,842.45,0.00, 
 01-12-2021,"People, Policy and Performance",Matrix Scm,Agency Staff,854.71,0.00, 
 01-12-2021,"People, Policy and Performance",Matrix Scm,Agency Staff,878.78,0.00, 
 01-12-2021,"People, Policy and Performance",Matrix Scm,Agency Staff,686.01,0.00, 
 01-12-2021,"People, Policy and Performance",Matrix Scm,Agency Staff,805.70,0.00, 
 01-12-2021,"People, Policy and Performance",Matrix Scm,Agency Staff,1004.92,0.00, 
 01-12-2021,oneSource,Matrix Scm,Agency Staff,2758.50,0.00, 
 01-12-2021,oneSource,Matrix Scm,Agency Staff,3296.50,0.00, 
 01-12-2021,oneSource,Matrix Scm,Agency Staff,2854.40,0.00, 
 01-12-2021,"People, Policy and Performance",Matrix Scm,Agency Staff,643.26,0.00, 
 01-12-2021,oneSource,Matrix Scm,Agency Staff,840.75,0.00, 
 01-12-2021,oneSource,Matrix Scm,Agency Staff,2234.15,0.00, 
 01-12-2021,oneSource,Matrix Scm,Agency Staff,983.17,0.00, 
 01-12-2021,oneSource,Matrix Scm,Agency Staff,983.16,0.00, 
 01-12-2021,oneSource,Matrix Scm,Agency Staff,978.48,0.00, 
 01-12-2021,Adults & Health,Matrix Scm,Agency Staff,1471.56,0.00, 
 01-12-2021,Adults & Health,Matrix Scm,Agency Staff,1397.15,0.00, 
 01-12-2021,Adults & Health,Matrix Scm,Agency Staff,28.08,0.00, 
 01-12-2021,Adults & Health,Matrix Scm,Agency Staff,893.52,0.00, 
 01-12-2021,Adults & Health,Matrix Scm,Agency Staff,1312.56,0.00, 
 01-12-2021,Adults & Health,Matrix Scm,Agency Staff,1169.28,0.00, 
 01-12-2021,Adults & Health,Matrix Scm,Agency Staff,1169.28,0.00, 
 01-12-2021,Adults & Health,Matrix Scm,Agency Staff,1966.95,0.00, 
 01-12-2021,Balance Sheet,Matrix Scm,Debtor Accruals - Other Entities And Individuals,187.66,0.00, 
 01-12-2021,Balance Sheet,Matrix Scm,Debtor Accruals - Other Entities And Individuals,576.35,0.00, 
 01-12-2021,Adults & Health,Matrix Scm,Agency Staff,1227.97,0.00, 
 01-12-2021,Resources,Matrix Scm,Agency Staff,1766.80,0.00, 
 01-12-2021,Adults & Health,Matrix Scm,Agency Staff,2483.50,0.00, 
 01-12-2021,Resources,Matrix Scm,Agency Staff,311.76,0.00, 
 01-12-2021,Adults & Health,Matrix Scm,Agency Staff,751.34,0.00, 
 01-12-2021,Adults & Health,Matrix Scm,Agency Staff,1209.95,0.00, 
 01-12-2021,Adults & Health,Matrix Scm,Agency Staff,1169.28,0.00, 
 01-12-2021,Adults & Health,Matrix Scm,Agency Staff,1153.79,0.00, 
 01-12-2021,Adults & Health,Matrix Scm,Agency Staff,687.83,0.00, 
 01-12-2021,Adults & Health,Matrix Scm,Agency Staff,719.30,0.00, 
 01-12-2021,Adults & Health,Matrix Scm,Agency Staff,994.34,0.00, 
 01-12-2021,Adults & Health,Matrix Scm,Agency Staff,899.22,0.00, 
 01-12-2021,Adults & Health,Matrix Scm,Agency Staff,1169.28,0.00, 
 01-12-2021,Adults & Health,Matrix Scm,Agency Staff,1295.30,0.00, 
 01-12-2021,Adults & Health,Matrix Scm,Agency Staff,845.53,0.00, 
 01-12-2021,Adults & Health,Matrix Scm,Agency Staff,1277.28,0.00, 
 01-12-2021,Adults & Health,Matrix Scm,Agency Staff,965.44,0.00, 
 01-12-2021,Adults & Health,Matrix Scm,Agency Staff,6.30,0.00, 
 01-12-2021,Adults & Health,Matrix Scm,Agency Staff,8.10,0.00, 
 01-12-2021,Adults & Health,Matrix Scm,Agency Staff,6.75,0.00, 
 01-12-2021,Adults & Health,Matrix Scm,Agency Staff,13.50,0.00, 
 01-12-2021,Adults & Health,Matrix Scm,Agency Staff,1014.43,0.00, 
 01-12-2021,Adults & Health,Matrix Scm,Agency Staff,827.30,0.00, 
 01-12-2021,Adults & Health,Matrix Scm,Agency Staff,1295.28,0.00, 
 01-12-2021,Adults & Health,Matrix Scm,Agency Staff,1372.32,0.00, 
 01-12-2021,Adults & Health,Matrix Scm,Agency Staff,1331.30,0.00, 
 01-12-2021,Adults & Health,Matrix Scm,Agency Staff,1169.28,0.00, 
 01-12-2021,Adults & Health,Matrix Scm,Agency Staff,1169.28,0.00, 
 01-12-2021,Adults & Health,Matrix Scm,Agency Staff,883.46,0.00, 
 01-12-2021,Adults & Health,Matrix Scm,Agency Staff,454.72,0.00, 
 01-12-2021,Adults & Health,Matrix Scm,Agency Staff,1209.95,0.00, 
 01-12-2021,Adults & Health,Matrix Scm,Agency Staff,1349.28,0.00, 
 01-12-2021,Adults & Health,Matrix Scm,Agency Staff,1133.28,0.00, 
 01-12-2021,Adults & Health,Matrix Scm,Agency Staff,1169.28,0.00, 
 01-12-2021,Children and Young People,Matrix Scm,Agency Staff,1709.28,0.00, 
 01-12-2021,Children and Young People,Matrix Scm,Agency Staff,85.05,0.00, 
 01-12-2021,Children and Young People,Matrix Scm,Agency Staff,1457.28,0.00, 
 01-12-2021,Children and Young People,Matrix Scm,Agency Staff,1349.28,0.00, 
 01-12-2021,Children and Young People,Matrix Scm,Agency Staff,1349.28,0.00, 
 01-12-2021,Children and Young People,Matrix Scm,Agency Staff,16.65,0.00, 
 01-12-2021,Children and Young People,Matrix Scm,Agency Staff,1483.55,0.00, 
 01-12-2021,Children and Young People,Matrix Scm,Agency Staff,1373.76,0.00, 
 01-12-2021,Children and Young People,Matrix Scm,Agency Staff,1349.28,0.00, 
 01-12-2021,Children and Young People,Matrix Scm,Agency Staff,1349.28,0.00, 
 01-12-2021,Children and Young People,Matrix Scm,Agency Staff,1457.28,0.00, 
 01-12-2021,Children and Young People,Matrix Scm,Agency Staff,1349.28,0.00, 
 01-12-2021,Children and Young People,Matrix Scm,Agency Staff,1349.28,0.00, 
 01-12-2021,Children and Young People,Matrix Scm,Agency Staff,86.86,0.00, 
 01-12-2021,Children and Young People,Matrix Scm,Agency Staff,83.70,0.00, 
 01-12-2021,Children and Young People,Matrix Scm,Agency Staff,1349.28,0.00, 
 01-12-2021,Children and Young People,Matrix Scm,Agency Staff,1349.28,0.00, 
 01-12-2021,Children and Young People,Matrix Scm,Agency Staff,1601.28,0.00, 
 01-12-2021,Children and Young People,Matrix Scm,Agency Staff,1601.28,0.00, 
 01-12-2021,Children and Young People,Matrix Scm,Agency Staff,56.70,0.00, 
 01-12-2021,Children and Young People,Matrix Scm,Agency Staff,1349.28,0.00, 
 01-12-2021,Children and Young People,Matrix Scm,Agency Staff,1349.28,0.00, 
 01-12-2021,Children and Young People,Matrix Scm,Agency Staff,1349.28,0.00, 
 01-12-2021,Children and Young People,Matrix Scm,Agency Staff,1612.40,0.00, 
 01-12-2021,Children and Young People,Matrix Scm,Agency Staff,1601.28,0.00, 
 01-12-2021,Children and Young People,Matrix Scm,Agency Staff,1349.28,0.00, 
 01-12-2021,Children and Young People,Matrix Scm,Agency Staff,774.88,0.00, 
 01-12-2021,Children and Young People,Matrix Scm,Agency Staff,944.29,0.00, 
 01-12-2021,Children and Young People,Matrix Scm,Agency Staff,1135.94,0.00, 
 01-12-2021,Children and Young People,Matrix Scm,Agency Staff,1349.28,0.00, 
 01-12-2021,Children and Young People,Matrix Scm,Agency Staff,1349.28,0.00, 
 01-12-2021,Children and Young People,Matrix Scm,Agency Staff,1601.28,0.00, 
 01-12-2021,Children and Young People,Matrix Scm,Agency Staff,1709.28,0.00, 
 01-12-2021,Children and Young People,Matrix Scm,Agency Staff,1709.28,0.00, 
 01-12-2021,Children and Young People,Matrix Scm,Agency Staff,1709.28,0.00, 
 01-12-2021,Children and Young People,Matrix Scm,Agency Staff,1397.52,0.00, 
 01-12-2021,Children and Young People,Matrix Scm,Agency Staff,1457.28,0.00, 
 01-12-2021,Children and Young People,Matrix Scm,Agency Staff,989.28,0.00, 
 01-12-2021,Children and Young People,Matrix Scm,Agency Staff,1457.28,0.00, 
 01-12-2021,Children and Young People,Matrix Scm,Agency Staff,1667.16,0.00, 
 01-12-2021,Children and Young People,Matrix Scm,Agency Staff,1645.76,0.00, 
 01-12-2021,Children and Young People,Matrix Scm,Agency Staff,74.96,0.00, 
 01-12-2021,Children and Young People,Matrix Scm,Agency Staff,74.96,0.00, 
 01-12-2021,Children and Young People,Matrix Scm,Agency Staff,1349.28,0.00, 
 01-12-2021,Children and Young People,Matrix Scm,Agency Staff,1349.28,0.00, 
 01-12-2021,Children and Young People,Matrix Scm,Agency Staff,74.96,0.00, 
 01-12-2021,"People, Policy and Performance",Matrix Scm,Agency Staff,2258.50,0.00, 
 01-12-2021,"People, Policy and Performance",Matrix Scm,Agency Staff,219.24,0.00, 
 01-12-2021,"People, Policy and Performance",Matrix Scm,Agency Staff,1806.80,0.00, 
 01-12-2021,Children and Young People,Matrix Scm,Agency Staff,36.45,0.00, 
 01-12-2021,Children and Young People,Matrix Scm,Agency Staff,1601.28,0.00, 
 01-12-2021,Children and Young People,Matrix Scm,Agency Staff,1349.28,0.00, 
 01-12-2021,Children and Young People,Matrix Scm,Agency Staff,1349.28,0.00, 
 01-12-2021,Children and Young People,Matrix Scm,Agency Staff,870.32,0.00, 
 01-12-2021,Children and Young People,Matrix Scm,Agency Staff,1349.28,0.00, 
 01-12-2021,Children and Young People,Matrix Scm,Agency Staff,1349.28,0.00, 
 01-12-2021,Children and Young People,Matrix Scm,Agency Staff,1311.80,0.00, 
 01-12-2021,Children and Young People,Matrix Scm,Agency Staff,1709.28,0.00, 
 01-12-2021,Children and Young People,Matrix Scm,Agency Staff,1457.28,0.00, 
 01-12-2021,Children and Young People,Matrix Scm,Agency Staff,1457.28,0.00, 
 01-12-2021,Children and Young People,Matrix Scm,Agency Staff,1483.55,0.00, 
 01-12-2021,Children and Young People,Matrix Scm,Agency Staff,1349.28,0.00, 
 01-12-2021,Children and Young People,Matrix Scm,Agency Staff,1457.28,0.00, 
 01-12-2021,Children and Young People,Matrix Scm,Agency Staff,1349.28,0.00, 
 01-12-2021,Children and Young People,Matrix Scm,Agency Staff,1483.56,0.00, 
 01-12-2021,Children and Young People,Matrix Scm,Agency Staff,1483.55,0.00, 
 01-12-2021,Children and Young People,Matrix Scm,Agency Staff,1457.28,0.00, 
 01-12-2021,Children and Young People,Matrix Scm,Agency Staff,1457.28,0.00, 
 01-12-2021,Children and Young People,Matrix Scm,Agency Staff,1630.43,0.00, 
 01-12-2021,Children and Young People,Matrix Scm,Agency Staff,1482.50,0.00, 
 01-12-2021,Children and Young People,Matrix Scm,Agency Staff,1483.55,0.00, 
 01-12-2021,Children and Young People,Matrix Scm,Agency Staff,1457.28,0.00, 
 01-12-2021,Children and Young People,Matrix Scm,Agency Staff,1385.28,0.00, 
 01-12-2021,Children and Young People,Matrix Scm,Agency Staff,1349.28,0.00, 
 01-12-2021,Children and Young People,Matrix Scm,Agency Staff,1164.93,0.00, 
 01-12-2021,Children and Young People,Matrix Scm,Agency Staff,1457.28,0.00, 
 01-12-2021,Children and Young People,Matrix Scm,Agency Staff,1349.28,0.00, 
 01-12-2021,Children and Young People,Matrix Scm,Agency Staff,43.20,0.00, 
 01-12-2021,Children and Young People,Matrix Scm,Agency Staff,33.75,0.00, 
 01-12-2021,Children and Young People,Matrix Scm,Agency Staff,1414.87,0.00, 
 01-12-2021,Children and Young People,Matrix Scm,Agency Staff,75.00,0.00, 
 01-12-2021,Children and Young People,Matrix Scm,Agency Staff,1482.50,0.00, 
 01-12-2021,Children and Young People,Matrix Scm,Agency Staff,1349.28,0.00, 
 01-12-2021,Children and Young People,Matrix Scm,Agency Staff,1457.28,0.00, 
 01-12-2021,Children and Young People,Matrix Scm,Agency Staff,1457.28,0.00, 
 01-12-2021,Children and Young People,Matrix Scm,Agency Staff,1457.28,0.00, 
 01-12-2021,Children and Young People,Matrix Scm,Agency Staff,1457.28,0.00, 
 01-12-2021,Children and Young People,Matrix Scm,Agency Staff,1457.28,0.00, 
 01-12-2021,Children and Young People,Matrix Scm,Agency Staff,1457.28,0.00, 
 01-12-2021,Children and Young People,Matrix Scm,Agency Staff,120.30,0.00, 
 01-12-2021,Children and Young People,Matrix Scm,Agency Staff,43.97,0.00, 
 01-12-2021,Children and Young People,Matrix Scm,Agency Staff,1349.28,0.00, 
 01-12-2021,Children and Young People,Matrix Scm,Agency Staff,1483.20,0.00, 
 01-12-2021,Children and Young People,Matrix Scm,Agency Staff,1373.76,0.00, 
 01-12-2021,Children and Young People,Matrix Scm,Agency Staff,1457.28,0.00, 
 01-12-2021,Children and Young People,Matrix Scm,Agency Staff,1457.28,0.00, 
 01-12-2021,Children and Young People,Matrix Scm,Agency Staff,1745.28,0.00, 
 01-12-2021,Children and Young People,Matrix Scm,Agency Staff,1373.76,0.00, 
 01-12-2021,Children and Young People,Matrix Scm,Agency Staff,1349.28,0.00, 
 01-12-2021,Children and Young People,Matrix Scm,Agency Staff,1171.45,0.00, 
 01-12-2021,Children and Young People,Matrix Scm,Agency Staff,943.94,0.00, 
 01-12-2021,Children and Young People,Matrix Scm,Agency Staff,944.29,0.00, 
 01-12-2021,Children and Young People,Matrix Scm,Agency Staff,1349.28,0.00, 
 01-12-2021,Children and Young People,Matrix Scm,Agency Staff,-900.38,0.00, 
 01-12-2021,Children and Young People,Matrix Scm,Agency Staff,961.92,0.00, 
 01-12-2021,Children and Young People,Matrix Scm,Agency Staff,1171.44,0.00, 
 01-12-2021,Children and Young People,Matrix Scm,Agency Staff,-900.38,0.00, 
 01-12-2021,Children and Young People,Matrix Scm,Agency Staff,1171.44,0.00, 
 01-12-2021,Children and Young People,Matrix Scm,Agency Staff,-900.36,0.00, 
 01-12-2021,Children and Young People,Matrix Scm,Agency Staff,1171.44,0.00, 
 01-12-2021,Children and Young People,Matrix Scm,Agency Staff,-900.37,0.00, 
 01-12-2021,Children and Young People,Matrix Scm,Agency Staff,1171.44,0.00, 
 01-12-2021,Children and Young People,Matrix Scm,Agency Staff,-900.37,0.00, 
 01-12-2021,Children and Young People,Matrix Scm,Agency Staff,1171.44,0.00, 
 01-12-2021,Children and Young People,Matrix Scm,Agency Staff,-900.37,0.00, 
 01-12-2021,Children and Young People,Matrix Scm,Agency Staff,1171.46,0.00, 
 01-12-2021,Children and Young People,Matrix Scm,Agency Staff,-900.36,0.00, 
 01-12-2021,Children and Young People,Matrix Scm,Agency Staff,1171.45,0.00, 
 01-12-2021,Children and Young People,Matrix Scm,Agency Staff,-900.37,0.00, 
 01-12-2021,Children and Young People,Matrix Scm,Agency Staff,1171.44,0.00, 
 01-12-2021,Children and Young People,Matrix Scm,Agency Staff,-900.37,0.00, 
 01-12-2021,Children and Young People,Matrix Scm,Agency Staff,1171.45,0.00, 
 01-12-2021,Children and Young People,Matrix Scm,Agency Staff,-900.37,0.00, 
 01-12-2021,Children and Young People,Matrix Scm,Agency Staff,1171.45,0.00, 
 01-12-2021,Children and Young People,Matrix Scm,Agency Staff,-900.37,0.00, 
 01-12-2021,Children and Young People,Matrix Scm,Agency Staff,1171.44,0.00, 
 01-12-2021,Children and Young People,Matrix Scm,Agency Staff,43.20,0.00, 
 01-12-2021,Children and Young People,Matrix Scm,Agency Staff,-900.37,0.00, 
 01-12-2021,Children and Young People,Matrix Scm,Agency Staff,1171.44,0.00, 
 01-12-2021,Children and Young People,Matrix Scm,Agency Staff,-900.38,0.00, 
 01-12-2021,Children and Young People,Matrix Scm,Agency Staff,1171.44,0.00, 
 01-12-2021,Children and Young People,Matrix Scm,Agency Staff,1457.28,0.00, 
 01-12-2021,Children and Young People,Matrix Scm,Agency Staff,1709.28,0.00, 
 01-12-2021,Children and Young People,Matrix Scm,Agency Staff,1349.28,0.00, 
 01-12-2021,Children and Young People,Matrix Scm,Agency Staff,1397.52,0.00, 
 01-12-2021,Children and Young People,Matrix Scm,Agency Staff,1457.28,0.00, 
 01-12-2021,Children and Young People,Matrix Scm,Agency Staff,1457.28,0.00, 
 01-12-2021,Children and Young People,Matrix Scm,Agency Staff,1349.28,0.00, 
 01-12-2021,Children and Young People,Matrix Scm,Agency Staff,18.00,0.00, 
 01-12-2021,Children and Young People,Matrix Scm,Agency Staff,45.00,0.00, 
 01-12-2021,Children and Young People,Matrix Scm,Agency Staff,1509.12,0.00, 
 01-12-2021,Children and Young People,Matrix Scm,Agency Staff,1349.28,0.00, 
 01-12-2021,Children and Young People,Matrix Scm,Agency Staff,1409.76,0.00, 
 01-12-2021,Children and Young People,Matrix Scm,Agency Staff,1349.28,0.00, 
 01-12-2021,Children and Young People,Matrix Scm,Agency Staff,1423.76,0.00, 
 01-12-2021,Children and Young People,Matrix Scm,Agency Staff,60.15,0.00, 
 01-12-2021,Children and Young People,Matrix Scm,Agency Staff,1518.85,0.00, 
 01-12-2021,Children and Young People,Matrix Scm,Agency Staff,1889.45,0.00, 
 01-12-2021,Children and Young People,Matrix Scm,Agency Staff,1709.28,0.00, 
 01-12-2021,Children and Young People,Matrix Scm,Agency Staff,1397.52,0.00, 
 01-12-2021,Children and Young People,Matrix Scm,Agency Staff,1349.28,0.00, 
 01-12-2021,Children and Young People,Matrix Scm,Agency Staff,1397.54,0.00, 
 01-12-2021,Children and Young People,Matrix Scm,Agency Staff,1457.28,0.00, 
 01-12-2021,Children and Young People,Matrix Scm,Agency Staff,1457.28,0.00, 
 01-12-2021,Children and Young People,Matrix Scm,Agency Staff,1457.28,0.00, 
 01-12-2021,Children and Young People,Matrix Scm,Agency Staff,1601.28,0.00, 
 01-12-2021,Children and Young People,Matrix Scm,Agency Staff,15.19,0.00, 
 01-12-2021,Adults & Health,Matrix Scm,Agency Staff,3739.85,0.00, 
 01-12-2021,Adults & Health,Matrix Scm,Agency Staff,2332.80,0.00, 
 01-12-2021,Adults & Health,Matrix Scm,Agency Staff,1054.43,0.00, 
 01-12-2021,Adults & Health,Matrix Scm,Agency Staff,781.44,0.00, 
 01-12-2021,Adults & Health,Matrix Scm,Agency Staff,960.48,0.00, 
 01-12-2021,Adults & Health,Matrix Scm,Agency Staff,1208.20,0.00, 
 01-12-2021,Adults & Health,Matrix Scm,Agency Staff,1080.38,0.00, 
 01-12-2021,Children and Young People,Matrix Scm,Agency Staff,2208.45,0.00, 
 01-12-2021,Children and Young People,Matrix Scm,Agency Staff,2589.45,0.00, 
 01-12-2021,Children and Young People,Matrix Scm,Agency Staff,2589.45,0.00, 
 01-12-2021,Children and Young People,Matrix Scm,Agency Staff,2071.56,0.00, 
 01-12-2021,Children and Young People,Matrix Scm,Agency Staff,3640.20,0.00, 
 01-12-2021,Children and Young People,Matrix Scm,Agency Staff,2195.76,0.00, 
 01-12-2021,Children and Young People,Matrix Scm,Agency Staff,1493.67,0.00, 
 01-12-2021,Children and Young People,Matrix Scm,Agency Staff,1108.45,0.00, 
 01-12-2021,Children and Young People,Matrix Scm,Agency Staff,1480.68,0.00, 
 01-12-2021,Balance Sheet,Baylis Landscape Contractors Ltd,Capital Outlay,11135.50,0.00,CIS 
 01-12-2021,Housing Revenue Account,East London Community Sports Association,Premises Hire - Facilities,572.50,0.00,VENDOR 
 01-12-2021,Children and Young People,Care 4 Children Residential Services Ltd,Residential Placements - Private Contractors Payment,4490.00,0.00,COMMERCIAL SUPPLIER 
 01-12-2021,Children and Young People,Care 4 Children Residential Services Ltd,Residential Placements - Private Contractors Payment,1924.33,0.00,COMMERCIAL SUPPLIER 
 01-12-2021,Children and Young People,Care 4 Children Residential Services Ltd,Residential Placements - Private Contractors Payment,4490.00,0.00,COMMERCIAL SUPPLIER 
 01-12-2021,Children and Young People,Care 4 Children Residential Services Ltd,Residential Placements - Private Contractors Payment,4490.00,0.00,COMMERCIAL SUPPLIER 
 01-12-2021,Children and Young People,Care 4 Children Residential Services Ltd,Residential Placements - Private Contractors Payment,4490.00,0.00,COMMERCIAL SUPPLIER 
 01-12-2021,Children and Young People,Personal Information - Redacted,Legal Fees,800.00,0.00,LEGAL SERVICES 
 01-12-2021,Children and Young People,Personal Information - Redacted,Legal Fees,1000.00,0.00,NON COMMERCIAL SUPPLIER 
 01-12-2021,Children and Young People,Personal Information - Redacted,Legal Fees,700.00,0.00,COMMERCIAL SUPPLIER 
 01-12-2021,Children and Young People,Aldanat Care,Supported Other Accommodation - Private Contractors Payment,161.38,0.00,VENDOR 
 01-12-2021,Children and Young People,Aldanat Care,Supported Other Accommodation - Private Contractors Payment,6827.58,0.00,VENDOR 
 01-12-2021,Children and Young People,Aldanat Care,Supported Other Accommodation - Private Contractors Payment,161.38,0.00,VENDOR 
 01-12-2021,Children and Young People,Aldanat Care,Supported Other Accommodation - Private Contractors Payment,6827.58,0.00,VENDOR 
 01-12-2021,Children and Young People,Aldanat Care,Supported Other Accommodation - Private Contractors Payment,6827.58,0.00,VENDOR 
 01-12-2021,Children and Young People,Aldanat Care,Supported Other Accommodation - Private Contractors Payment,6827.58,0.00,VENDOR 
 01-12-2021,Children and Young People,Aldanat Care,Supported Other Accommodation - Private Contractors Payment,161.38,0.00,VENDOR 
 01-12-2021,Children and Young People,Aldanat Care,Supported Other Accommodation - Private Contractors Payment,161.38,0.00,VENDOR 
 01-12-2021,Brighter Futures Director,Kulan Somali Organisation,Private Contractors Payment - Other,25889.60,0.00,NON COMMERCIAL SUPPLIER 
 01-12-2021,Brighter Futures Director,Personal Information - Redacted,Staff Development And Training,1200.00,0.00,NON COMMERCIAL SUPPLIER 
 01-12-2021,Inclusive Economy & Housing,Personal Information - Redacted,Professional Services - General,130.00,0.00,Employee 
 01-12-2021,Dedicated Schools Budget,Personal Information - Redacted,Arts And Leisure Costs,55.95,0.00,Employee 
 01-12-2021,"People, Policy and Performance",Personal Information - Redacted,Building Alterations And Materials,10.89,0.00,Employee 
 01-12-2021,"People, Policy and Performance",Personal Information - Redacted,"Purchase - Equipment, Furniture And Materials",49.55,0.00,Employee 
 01-12-2021,"People, Policy and Performance",Personal Information - Redacted,Building Alterations And Materials,119.00,0.00,Employee 
 01-12-2021,Adults & Health,London Black Women's Project,Private Contractors Payment - Other,16494.00,0.00,VENDOR 
 01-12-2021,Adults & Health,L & Q Living,Daycare - Private Contractors Payment,111.02,0.00,VENDOR 
 01-12-2021,Adults & Health,L & Q Living,Daycare - Private Contractors Payment,111.02,0.00,VENDOR 
 01-12-2021,Adults & Health,L & Q Living,Daycare - Private Contractors Payment,111.02,0.00,VENDOR 
 01-12-2021,Adults & Health,L & Q Living,Daycare - Private Contractors Payment,111.02,0.00,VENDOR 
 01-12-2021,Adults & Health,L & Q Living,Supported Other Accommodation - Private Contractors Payment,975.56,0.00,VENDOR 
 01-12-2021,Adults & Health,L & Q Living,Supported Other Accommodation - Private Contractors Payment,975.96,0.00,VENDOR 
 01-12-2021,Adults & Health,L & Q Living,Supported Other Accommodation - Private Contractors Payment,975.56,0.00,VENDOR 
 01-12-2021,Adults & Health,L & Q Living,Supported Other Accommodation - Private Contractors Payment,975.56,0.00,VENDOR 
 01-12-2021,Adults & Health,L & Q Living,Supported Other Accommodation - Private Contractors Payment,1108.66,0.00,VENDOR 
 01-12-2021,Adults & Health,L & Q Living,Supported Other Accommodation - Private Contractors Payment,1108.66,0.00,VENDOR 
 01-12-2021,Adults & Health,L & Q Living,Supported Other Accommodation - Private Contractors Payment,1108.66,0.00,VENDOR 
 01-12-2021,Adults & Health,L & Q Living,Supported Other Accommodation - Private Contractors Payment,1108.66,0.00,VENDOR 
 01-12-2021,Adults & Health,L & Q Living,Supported Other Accommodation - Private Contractors Payment,975.66,0.00,VENDOR 
 01-12-2021,Adults & Health,L & Q Living,Supported Other Accommodation - Private Contractors Payment,975.66,0.00,VENDOR 
 01-12-2021,Adults & Health,L & Q Living,Supported Other Accommodation - Private Contractors Payment,975.66,0.00,VENDOR 
 01-12-2021,Adults & Health,L & Q Living,Supported Other Accommodation - Private Contractors Payment,975.66,0.00,VENDOR 
 01-12-2021,Adults & Health,Metro Homecare Ltd,Home Care - Private Contractors Payment,37.44,0.00,COMMERCIAL SUPPLIER 
 01-12-2021,Adults & Health,Metro Homecare Ltd,Home Care - Private Contractors Payment,15.84,0.00,COMMERCIAL SUPPLIER 
 01-12-2021,Adults & Health,Metro Homecare Ltd,Daycare - Private Contractors Payment,108.00,0.00,COMMERCIAL SUPPLIER 
 01-12-2021,Adults & Health,Metro Homecare Ltd,Home Care - Private Contractors Payment,15.84,0.00,COMMERCIAL SUPPLIER 
 01-12-2021,Adults & Health,Metro Homecare Ltd,Respite Care - Private Contractors Payment,56.16,0.00,COMMERCIAL SUPPLIER 
 01-12-2021,Adults & Health,Metro Homecare Ltd,Daycare - Private Contractors Payment,27.36,0.00,COMMERCIAL SUPPLIER 
 01-12-2021,Adults & Health,Metro Homecare Ltd,Home Care - Private Contractors Payment,221.76,0.00,COMMERCIAL SUPPLIER 
 01-12-2021,Adults & Health,Metro Homecare Ltd,Daycare - Private Contractors Payment,47.52,0.00,COMMERCIAL SUPPLIER 
 01-12-2021,Adults & Health,Metro Homecare Ltd,Home Care - Private Contractors Payment,15.84,0.00,COMMERCIAL SUPPLIER 
 01-12-2021,Adults & Health,Metro Homecare Ltd,Daycare - Private Contractors Payment,28.80,0.00,COMMERCIAL SUPPLIER 
 01-12-2021,Adults & Health,Metro Homecare Ltd,Daycare - Private Contractors Payment,-8.64,0.00,COMMERCIAL SUPPLIER 
 01-12-2021,Adults & Health,Metro Homecare Ltd,Daycare - Private Contractors Payment,28.08,0.00,COMMERCIAL SUPPLIER 
 01-12-2021,Adults & Health,Metro Homecare Ltd,Respite Care - Private Contractors Payment,190.08,0.00,COMMERCIAL SUPPLIER 
 01-12-2021,Adults & Health,Metro Homecare Ltd,Home Care - Private Contractors Payment,28.08,0.00,COMMERCIAL SUPPLIER 
 01-12-2021,Adults & Health,Metro Homecare Ltd,Daycare - Private Contractors Payment,56.16,0.00,COMMERCIAL SUPPLIER 
 01-12-2021,Adults & Health,Metro Homecare Ltd,Home Care - Private Contractors Payment,18.72,0.00,COMMERCIAL SUPPLIER 
 01-12-2021,Adults & Health,Metro Homecare Ltd,Home Care - Private Contractors Payment,37.44,0.00,COMMERCIAL SUPPLIER 
 01-12-2021,Adults & Health,Metro Homecare Ltd,Home Care - Private Contractors Payment,37.44,0.00,COMMERCIAL SUPPLIER 
 01-12-2021,Adults & Health,Metro Homecare Ltd,Daycare - Private Contractors Payment,37.44,0.00,COMMERCIAL SUPPLIER 
 01-12-2021,Adults & Health,Metro Homecare Ltd,Respite Care - Private Contractors Payment,131.04,0.00,COMMERCIAL SUPPLIER 
 01-12-2021,Adults & Health,Metro Homecare Ltd,Daycare - Private Contractors Payment,37.44,0.00,COMMERCIAL SUPPLIER 
 01-12-2021,Adults & Health,Metro Homecare Ltd,Daycare - Private Contractors Payment,18.72,0.00,COMMERCIAL SUPPLIER 
 01-12-2021,Adults & Health,Metro Homecare Ltd,Home Care - Private Contractors Payment,37.44,0.00,COMMERCIAL SUPPLIER 
 01-12-2021,Adults & Health,Metro Homecare Ltd,Respite Care - Private Contractors Payment,74.88,0.00,COMMERCIAL SUPPLIER 
 01-12-2021,Adults & Health,Metro Homecare Ltd,Daycare - Private Contractors Payment,56.16,0.00,COMMERCIAL SUPPLIER 
 01-12-2021,Adults & Health,Metro Homecare Ltd,Daycare - Private Contractors Payment,18.72,0.00,COMMERCIAL SUPPLIER 
 01-12-2021,Adults & Health,Metro Homecare Ltd,Home Care - Private Contractors Payment,37.44,0.00,COMMERCIAL SUPPLIER 
 01-12-2021,Adults & Health,Metro Homecare Ltd,Home Care - Private Contractors Payment,18.72,0.00,COMMERCIAL SUPPLIER 
 01-12-2021,Adults & Health,Metro Homecare Ltd,Daycare - Private Contractors Payment,112.32,0.00,COMMERCIAL SUPPLIER 
 01-12-2021,Adults & Health,Metro Homecare Ltd,Daycare - Private Contractors Payment,131.04,0.00,COMMERCIAL SUPPLIER 
 01-12-2021,Adults & Health,Metro Homecare Ltd,Home Care - Private Contractors Payment,56.16,0.00,COMMERCIAL SUPPLIER 
 01-12-2021,Adults & Health,Metro Homecare Ltd,Daycare - Private Contractors Payment,74.88,0.00,COMMERCIAL SUPPLIER 
 01-12-2021,Adults & Health,Metro Homecare Ltd,Daycare - Private Contractors Payment,74.88,0.00,COMMERCIAL SUPPLIER 
 01-12-2021,Adults & Health,Metro Homecare Ltd,Home Care - Private Contractors Payment,37.44,0.00,COMMERCIAL SUPPLIER 
 01-12-2021,Adults & Health,Metro Homecare Ltd,Home Care - Private Contractors Payment,360.36,0.00,COMMERCIAL SUPPLIER 
 01-12-2021,Adults & Health,Metro Homecare Ltd,Daycare - Private Contractors Payment,131.04,0.00,COMMERCIAL SUPPLIER 
 01-12-2021,Adults & Health,Metro Homecare Ltd,Home Care - Private Contractors Payment,37.44,0.00,COMMERCIAL SUPPLIER 
 01-12-2021,Adults & Health,Metro Homecare Ltd,Daycare - Private Contractors Payment,56.16,0.00,COMMERCIAL SUPPLIER 
 01-12-2021,Adults & Health,Metro Homecare Ltd,Home Care - Private Contractors Payment,18.72,0.00,COMMERCIAL SUPPLIER 
 01-12-2021,Adults & Health,Metro Homecare Ltd,Home Care - Private Contractors Payment,56.16,0.00,COMMERCIAL SUPPLIER 
 01-12-2021,Adults & Health,Metro Homecare Ltd,Respite Care - Private Contractors Payment,31.68,0.00,COMMERCIAL SUPPLIER 
 01-12-2021,Adults & Health,Metro Homecare Ltd,Respite Care - Private Contractors Payment,131.04,0.00,COMMERCIAL SUPPLIER 
 01-12-2021,Adults & Health,Metro Homecare Ltd,Home Care - Private Contractors Payment,74.88,0.00,COMMERCIAL SUPPLIER 
 01-12-2021,Adults & Health,Metro Homecare Ltd,Daycare - Private Contractors Payment,131.04,0.00,COMMERCIAL SUPPLIER 
 01-12-2021,Adults & Health,Metro Homecare Ltd,Daycare - Private Contractors Payment,18.72,0.00,COMMERCIAL SUPPLIER 
 01-12-2021,Adults & Health,Metro Homecare Ltd,Daycare - Private Contractors Payment,74.88,0.00,COMMERCIAL SUPPLIER 
 01-12-2021,Adults & Health,Metro Homecare Ltd,Daycare - Private Contractors Payment,28.08,0.00,COMMERCIAL SUPPLIER 
 01-12-2021,Adults & Health,Metro Homecare Ltd,Daycare - Private Contractors Payment,37.44,0.00,COMMERCIAL SUPPLIER 
 01-12-2021,Adults & Health,Metro Homecare Ltd,Daycare - Private Contractors Payment,56.16,0.00,COMMERCIAL SUPPLIER 
 01-12-2021,Adults & Health,Metro Homecare Ltd,Home Care - Private Contractors Payment,18.72,0.00,COMMERCIAL SUPPLIER 
 01-12-2021,Adults & Health,Metro Homecare Ltd,Home Care - Private Contractors Payment,37.44,0.00,COMMERCIAL SUPPLIER 
 01-12-2021,Adults & Health,Metro Homecare Ltd,Home Care - Private Contractors Payment,18.72,0.00,COMMERCIAL SUPPLIER 
 01-12-2021,Adults & Health,Metro Homecare Ltd,Daycare - Private Contractors Payment,56.16,0.00,COMMERCIAL SUPPLIER 
 01-12-2021,Adults & Health,Metro Homecare Ltd,Daycare - Private Contractors Payment,56.16,0.00,COMMERCIAL SUPPLIER 
 01-12-2021,Adults & Health,Metro Homecare Ltd,Home Care - Private Contractors Payment,18.72,0.00,COMMERCIAL SUPPLIER 
 01-12-2021,Adults & Health,Metro Homecare Ltd,Home Care - Private Contractors Payment,37.44,0.00,COMMERCIAL SUPPLIER 
 01-12-2021,Adults & Health,Metro Homecare Ltd,Daycare - Private Contractors Payment,131.04,0.00,COMMERCIAL SUPPLIER 
 01-12-2021,Adults & Health,Metro Homecare Ltd,Daycare - Private Contractors Payment,74.88,0.00,COMMERCIAL SUPPLIER 
 01-12-2021,Adults & Health,Metro Homecare Ltd,Home Care - Private Contractors Payment,37.44,0.00,COMMERCIAL SUPPLIER 
 01-12-2021,Adults & Health,Metro Homecare Ltd,Home Care - Private Contractors Payment,18.72,0.00,COMMERCIAL SUPPLIER 
 01-12-2021,Adults & Health,Metro Homecare Ltd,Respite Care - Private Contractors Payment,56.16,0.00,COMMERCIAL SUPPLIER 
 01-12-2021,Adults & Health,Metro Homecare Ltd,Home Care - Private Contractors Payment,28.08,0.00,COMMERCIAL SUPPLIER 
 01-12-2021,Adults & Health,Metro Homecare Ltd,Home Care - Private Contractors Payment,56.16,0.00,COMMERCIAL SUPPLIER 
 01-12-2021,Adults & Health,Metro Homecare Ltd,Home Care - Private Contractors Payment,37.44,0.00,COMMERCIAL SUPPLIER 
 01-12-2021,Adults & Health,Metro Homecare Ltd,Home Care - Private Contractors Payment,37.44,0.00,COMMERCIAL SUPPLIER 
 01-12-2021,Adults & Health,Metro Homecare Ltd,Daycare - Private Contractors Payment,37.44,0.00,COMMERCIAL SUPPLIER 
 01-12-2021,Adults & Health,Metro Homecare Ltd,Daycare - Private Contractors Payment,37.44,0.00,COMMERCIAL SUPPLIER 
 01-12-2021,Adults & Health,Metro Homecare Ltd,Home Care - Private Contractors Payment,262.08,0.00,COMMERCIAL SUPPLIER 
 01-12-2021,Adults & Health,Metro Homecare Ltd,Home Care - Private Contractors Payment,18.72,0.00,COMMERCIAL SUPPLIER 
 01-12-2021,Adults & Health,Metro Homecare Ltd,Home Care - Private Contractors Payment,18.72,0.00,COMMERCIAL SUPPLIER 
 01-12-2021,Adults & Health,Metro Homecare Ltd,Home Care - Private Contractors Payment,28.08,0.00,COMMERCIAL SUPPLIER 
 01-12-2021,Adults & Health,Metro Homecare Ltd,Daycare - Private Contractors Payment,93.60,0.00,COMMERCIAL SUPPLIER 
 01-12-2021,Adults & Health,Metro Homecare Ltd,Daycare - Private Contractors Payment,112.32,0.00,COMMERCIAL SUPPLIER 
 01-12-2021,Adults & Health,Metro Homecare Ltd,Home Care - Private Contractors Payment,18.72,0.00,COMMERCIAL SUPPLIER 
 01-12-2021,Adults & Health,Metro Homecare Ltd,Daycare - Private Contractors Payment,37.44,0.00,COMMERCIAL SUPPLIER 
 01-12-2021,Adults & Health,Metro Homecare Ltd,Home Care - Private Contractors Payment,37.44,0.00,COMMERCIAL SUPPLIER 
 01-12-2021,Adults & Health,Metro Homecare Ltd,Respite Care - Private Contractors Payment,131.04,0.00,COMMERCIAL SUPPLIER 
 01-12-2021,Adults & Health,Metro Homecare Ltd,Daycare - Private Contractors Payment,56.16,0.00,COMMERCIAL SUPPLIER 
 01-12-2021,Adults & Health,Metro Homecare Ltd,Home Care - Private Contractors Payment,37.44,0.00,COMMERCIAL SUPPLIER 
 01-12-2021,Adults & Health,Metro Homecare Ltd,Home Care - Private Contractors Payment,131.04,0.00,COMMERCIAL SUPPLIER 
 01-12-2021,Adults & Health,Metro Homecare Ltd,Daycare - Private Contractors Payment,37.44,0.00,COMMERCIAL SUPPLIER 
 01-12-2021,Adults & Health,Metro Homecare Ltd,Daycare - Private Contractors Payment,131.04,0.00,COMMERCIAL SUPPLIER 
 01-12-2021,Adults & Health,Metro Homecare Ltd,Home Care - Private Contractors Payment,18.72,0.00,COMMERCIAL SUPPLIER 
 01-12-2021,Adults & Health,Metro Homecare Ltd,Respite Care - Private Contractors Payment,224.64,0.00,COMMERCIAL SUPPLIER 
 01-12-2021,Adults & Health,Metro Homecare Ltd,Home Care - Private Contractors Payment,556.92,0.00,COMMERCIAL SUPPLIER 
 01-12-2021,Adults & Health,Metro Homecare Ltd,Daycare - Private Contractors Payment,92.16,0.00,COMMERCIAL SUPPLIER 
 01-12-2021,Adults & Health,Metro Homecare Ltd,Home Care - Private Contractors Payment,31.68,0.00,COMMERCIAL SUPPLIER 
 01-12-2021,Adults & Health,Metro Homecare Ltd,Home Care - Private Contractors Payment,15.84,0.00,COMMERCIAL SUPPLIER 
 01-12-2021,Adults & Health,Metro Homecare Ltd,Daycare - Private Contractors Payment,23.76,0.00,COMMERCIAL SUPPLIER 
 01-12-2021,Adults & Health,Metro Homecare Ltd,Home Care - Private Contractors Payment,18.72,0.00,COMMERCIAL SUPPLIER 
 01-12-2021,Adults & Health,Metro Homecare Ltd,Daycare - Private Contractors Payment,74.88,0.00,COMMERCIAL SUPPLIER 
 01-12-2021,Adults & Health,Metro Homecare Ltd,Daycare - Private Contractors Payment,23.04,0.00,COMMERCIAL SUPPLIER 
 01-12-2021,Adults & Health,Metro Homecare Ltd,Daycare - Private Contractors Payment,131.04,0.00,COMMERCIAL SUPPLIER 
 01-12-2021,Adults & Health,Metro Homecare Ltd,Home Care - Private Contractors Payment,56.16,0.00,COMMERCIAL SUPPLIER 
 01-12-2021,Adults & Health,Metro Homecare Ltd,Daycare - Private Contractors Payment,112.32,0.00,COMMERCIAL SUPPLIER 
 01-12-2021,Adults & Health,Metro Homecare Ltd,Home Care - Private Contractors Payment,37.44,0.00,COMMERCIAL SUPPLIER 
 01-12-2021,Adults & Health,Metro Homecare Ltd,Home Care - Private Contractors Payment,18.72,0.00,COMMERCIAL SUPPLIER 
 01-12-2021,Adults & Health,Metro Homecare Ltd,Daycare - Private Contractors Payment,37.44,0.00,COMMERCIAL SUPPLIER 
 01-12-2021,Adults & Health,Metro Homecare Ltd,Daycare - Private Contractors Payment,37.44,0.00,COMMERCIAL SUPPLIER 
 01-12-2021,Adults & Health,Metro Homecare Ltd,Respite Care - Private Contractors Payment,224.64,0.00,COMMERCIAL SUPPLIER 
 01-12-2021,Adults & Health,Metro Homecare Ltd,Daycare - Private Contractors Payment,74.88,0.00,COMMERCIAL SUPPLIER 
 01-12-2021,Adults & Health,Metro Homecare Ltd,Home Care - Private Contractors Payment,18.72,0.00,COMMERCIAL SUPPLIER 
 01-12-2021,Adults & Health,Metro Homecare Ltd,Home Care - Private Contractors Payment,56.16,0.00,COMMERCIAL SUPPLIER 
 01-12-2021,Adults & Health,Metro Homecare Ltd,Home Care - Private Contractors Payment,18.72,0.00,COMMERCIAL SUPPLIER 
 01-12-2021,Adults & Health,Metro Homecare Ltd,Home Care - Private Contractors Payment,18.72,0.00,COMMERCIAL SUPPLIER 
 01-12-2021,Adults & Health,Metro Homecare Ltd,Daycare - Private Contractors Payment,37.44,0.00,COMMERCIAL SUPPLIER 
 01-12-2021,Adults & Health,Metro Homecare Ltd,Daycare - Private Contractors Payment,131.04,0.00,COMMERCIAL SUPPLIER 
 01-12-2021,Adults & Health,Metro Homecare Ltd,Daycare - Private Contractors Payment,131.04,0.00,COMMERCIAL SUPPLIER 
 01-12-2021,Adults & Health,Metro Homecare Ltd,Home Care - Private Contractors Payment,18.72,0.00,COMMERCIAL SUPPLIER 
 01-12-2021,Adults & Health,Metro Homecare Ltd,Respite Care - Private Contractors Payment,131.04,0.00,COMMERCIAL SUPPLIER 
 01-12-2021,Adults & Health,Metro Homecare Ltd,Home Care - Private Contractors Payment,56.16,0.00,COMMERCIAL SUPPLIER 
 01-12-2021,Adults & Health,Metro Homecare Ltd,Home Care - Private Contractors Payment,318.24,0.00,COMMERCIAL SUPPLIER 
 01-12-2021,Adults & Health,Metro Homecare Ltd,Home Care - Private Contractors Payment,18.72,0.00,COMMERCIAL SUPPLIER 
 01-12-2021,Adults & Health,Metro Homecare Ltd,Home Care - Private Contractors Payment,18.72,0.00,COMMERCIAL SUPPLIER 
 01-12-2021,Adults & Health,Metro Homecare Ltd,Home Care - Private Contractors Payment,18.72,0.00,COMMERCIAL SUPPLIER 
 01-12-2021,Adults & Health,Metro Homecare Ltd,Respite Care - Private Contractors Payment,28.08,0.00,COMMERCIAL SUPPLIER 
 01-12-2021,Adults & Health,Metro Homecare Ltd,Daycare - Private Contractors Payment,18.72,0.00,COMMERCIAL SUPPLIER 
 01-12-2021,Adults & Health,Metro Homecare Ltd,Home Care - Private Contractors Payment,18.72,0.00,COMMERCIAL SUPPLIER 
 01-12-2021,Adults & Health,Metro Homecare Ltd,Daycare - Private Contractors Payment,28.08,0.00,COMMERCIAL SUPPLIER 
 01-12-2021,Adults & Health,Metro Homecare Ltd,Home Care - Private Contractors Payment,18.72,0.00,COMMERCIAL SUPPLIER 
 01-12-2021,Adults & Health,Metro Homecare Ltd,Home Care - Private Contractors Payment,28.08,0.00,COMMERCIAL SUPPLIER 
 01-12-2021,Adults & Health,Metro Homecare Ltd,Home Care - Private Contractors Payment,37.44,0.00,COMMERCIAL SUPPLIER 
 01-12-2021,Adults & Health,Metro Homecare Ltd,Home Care - Private Contractors Payment,37.44,0.00,COMMERCIAL SUPPLIER 
 01-12-2021,Adults & Health,Metro Homecare Ltd,Home Care - Private Contractors Payment,37.44,0.00,COMMERCIAL SUPPLIER 
 01-12-2021,Adults & Health,Metro Homecare Ltd,Home Care - Private Contractors Payment,131.04,0.00,COMMERCIAL SUPPLIER 
 01-12-2021,Adults & Health,Metro Homecare Ltd,Home Care - Private Contractors Payment,18.72,0.00,COMMERCIAL SUPPLIER 
 01-12-2021,Adults & Health,Metro Homecare Ltd,Daycare - Private Contractors Payment,131.04,0.00,COMMERCIAL SUPPLIER 
 01-12-2021,Adults & Health,Metro Homecare Ltd,Home Care - Private Contractors Payment,56.16,0.00,COMMERCIAL SUPPLIER 
 01-12-2021,Adults & Health,Metro Homecare Ltd,Home Care - Private Contractors Payment,74.88,0.00,COMMERCIAL SUPPLIER 
 01-12-2021,Adults & Health,Metro Homecare Ltd,Daycare - Private Contractors Payment,84.24,0.00,COMMERCIAL SUPPLIER 
 01-12-2021,Adults & Health,Metro Homecare Ltd,Home Care - Private Contractors Payment,18.72,0.00,COMMERCIAL SUPPLIER 
 01-12-2021,Adults & Health,Metro Homecare Ltd,Home Care - Private Contractors Payment,56.16,0.00,COMMERCIAL SUPPLIER 
 01-12-2021,Adults & Health,Metro Homecare Ltd,Daycare - Private Contractors Payment,74.88,0.00,COMMERCIAL SUPPLIER 
 01-12-2021,Adults & Health,Metro Homecare Ltd,Daycare - Private Contractors Payment,74.88,0.00,COMMERCIAL SUPPLIER 
 01-12-2021,Adults & Health,Metro Homecare Ltd,Home Care - Private Contractors Payment,28.08,0.00,COMMERCIAL SUPPLIER 
 01-12-2021,Adults & Health,Metro Homecare Ltd,Daycare - Private Contractors Payment,112.32,0.00,COMMERCIAL SUPPLIER 
 01-12-2021,Adults & Health,Metro Homecare Ltd,Home Care - Private Contractors Payment,18.72,0.00,COMMERCIAL SUPPLIER 
 01-12-2021,Adults & Health,Metro Homecare Ltd,Home Care - Private Contractors Payment,18.72,0.00,COMMERCIAL SUPPLIER 
 01-12-2021,Adults & Health,Metro Homecare Ltd,Home Care - Private Contractors Payment,56.16,0.00,COMMERCIAL SUPPLIER 
 01-12-2021,Adults & Health,Metro Homecare Ltd,Daycare - Private Contractors Payment,37.44,0.00,COMMERCIAL SUPPLIER 
 01-12-2021,Adults & Health,Metro Homecare Ltd,Daycare - Private Contractors Payment,74.88,0.00,COMMERCIAL SUPPLIER 
 01-12-2021,Adults & Health,Metro Homecare Ltd,Home Care - Private Contractors Payment,28.08,0.00,COMMERCIAL SUPPLIER 
 01-12-2021,Adults & Health,Metro Homecare Ltd,Home Care - Private Contractors Payment,37.44,0.00,COMMERCIAL SUPPLIER 
 01-12-2021,Adults & Health,Metro Homecare Ltd,Daycare - Private Contractors Payment,56.16,0.00,COMMERCIAL SUPPLIER 
 01-12-2021,Adults & Health,Metro Homecare Ltd,Home Care - Private Contractors Payment,18.72,0.00,COMMERCIAL SUPPLIER 
 01-12-2021,Adults & Health,Metro Homecare Ltd,Daycare - Private Contractors Payment,37.44,0.00,COMMERCIAL SUPPLIER 
 01-12-2021,Adults & Health,Metro Homecare Ltd,Respite Care - Private Contractors Payment,131.04,0.00,COMMERCIAL SUPPLIER 
 01-12-2021,Adults & Health,Metro Homecare Ltd,Daycare - Private Contractors Payment,37.44,0.00,COMMERCIAL SUPPLIER 
 01-12-2021,Adults & Health,Metro Homecare Ltd,Home Care - Private Contractors Payment,18.72,0.00,COMMERCIAL SUPPLIER 
 01-12-2021,Adults & Health,Metro Homecare Ltd,Daycare - Private Contractors Payment,93.60,0.00,COMMERCIAL SUPPLIER 
 01-12-2021,Adults & Health,Metro Homecare Ltd,Daycare - Private Contractors Payment,37.44,0.00,COMMERCIAL SUPPLIER 
 01-12-2021,Adults & Health,Metro Homecare Ltd,Respite Care - Private Contractors Payment,131.04,0.00,COMMERCIAL SUPPLIER 
 01-12-2021,Adults & Health,Metro Homecare Ltd,Home Care - Private Contractors Payment,56.16,0.00,COMMERCIAL SUPPLIER 
 01-12-2021,Adults & Health,Metro Homecare Ltd,Home Care - Private Contractors Payment,56.16,0.00,COMMERCIAL SUPPLIER 
 01-12-2021,Adults & Health,Metro Homecare Ltd,Daycare - Private Contractors Payment,131.04,0.00,COMMERCIAL SUPPLIER 
 01-12-2021,Adults & Health,Metro Homecare Ltd,Respite Care - Private Contractors Payment,74.88,0.00,COMMERCIAL SUPPLIER 
 01-12-2021,Adults & Health,Metro Homecare Ltd,Home Care - Private Contractors Payment,37.44,0.00,COMMERCIAL SUPPLIER 
 01-12-2021,Adults & Health,Metro Homecare Ltd,Home Care - Private Contractors Payment,37.44,0.00,COMMERCIAL SUPPLIER 
 01-12-2021,Adults & Health,Metro Homecare Ltd,Respite Care - Private Contractors Payment,56.16,0.00,COMMERCIAL SUPPLIER 
 01-12-2021,Adults & Health,Metro Homecare Ltd,Home Care - Private Contractors Payment,18.72,0.00,COMMERCIAL SUPPLIER 
 01-12-2021,Adults & Health,Metro Homecare Ltd,Home Care - Private Contractors Payment,18.72,0.00,COMMERCIAL SUPPLIER 
 01-12-2021,Adults & Health,Metro Homecare Ltd,Home Care - Private Contractors Payment,18.72,0.00,COMMERCIAL SUPPLIER 
 01-12-2021,Adults & Health,Metro Homecare Ltd,Home Care - Private Contractors Payment,56.16,0.00,COMMERCIAL SUPPLIER 
 01-12-2021,Adults & Health,Metro Homecare Ltd,Daycare - Private Contractors Payment,37.44,0.00,COMMERCIAL SUPPLIER 
 01-12-2021,Adults & Health,Metro Homecare Ltd,Home Care - Private Contractors Payment,56.16,0.00,COMMERCIAL SUPPLIER 
 01-12-2021,Adults & Health,Metro Homecare Ltd,Home Care - Private Contractors Payment,74.88,0.00,COMMERCIAL SUPPLIER 
 01-12-2021,Adults & Health,Metro Homecare Ltd,Home Care - Private Contractors Payment,360.36,0.00,COMMERCIAL SUPPLIER 
 01-12-2021,Adults & Health,Metro Homecare Ltd,Daycare - Private Contractors Payment,112.32,0.00,COMMERCIAL SUPPLIER 
 01-12-2021,Adults & Health,Metro Homecare Ltd,Daycare - Private Contractors Payment,56.16,0.00,COMMERCIAL SUPPLIER 
 01-12-2021,Adults & Health,Metro Homecare Ltd,Home Care - Private Contractors Payment,56.16,0.00,COMMERCIAL SUPPLIER 
 01-12-2021,Adults & Health,Metro Homecare Ltd,Home Care - Private Contractors Payment,37.44,0.00,COMMERCIAL SUPPLIER 
 01-12-2021,Adults & Health,Metro Homecare Ltd,Home Care - Private Contractors Payment,28.08,0.00,COMMERCIAL SUPPLIER 
 01-12-2021,Adults & Health,Metro Homecare Ltd,Home Care - Private Contractors Payment,37.44,0.00,COMMERCIAL SUPPLIER 
 01-12-2021,Adults & Health,Metro Homecare Ltd,Home Care - Private Contractors Payment,18.72,0.00,COMMERCIAL SUPPLIER 
 01-12-2021,Adults & Health,Metro Homecare Ltd,Daycare - Private Contractors Payment,131.04,0.00,COMMERCIAL SUPPLIER 
 01-12-2021,Adults & Health,Metro Homecare Ltd,Home Care - Private Contractors Payment,47.52,0.00,COMMERCIAL SUPPLIER 
 01-12-2021,Adults & Health,Metro Homecare Ltd,Daycare - Private Contractors Payment,31.68,0.00,COMMERCIAL SUPPLIER 
 01-12-2021,Adults & Health,Metro Homecare Ltd,Home Care - Private Contractors Payment,15.84,0.00,COMMERCIAL SUPPLIER 
